Workbook

Sheet Wall Heights and Lengths
B1: WALL HEIGHTS AND LENGTHS
C5: This section is a step-by-step process of determining wall heights and the total amount of wall length that corresponds to each height. | S5: 56'0"
C9: 1 | D9: Note the scale of the plan i.e.. 1/4" = 1 foot
C12: 2 | D12: Determine the wall heights of all Omni Block walls on the floor plan. Reference the Elevation section of plan for assistance. | AB12: 40'0"
J14: 56'0"
C15: 2.1 | D15: Color coding individual wall heights may be helpful.
C18: 3 | D18: Select a starting point on the plan (note the location) and determine the wall length sections according to height.
AB19: 16'0"
C21: 3.1 | D21: Always work clockwise to help you remember your place.
O23: 24'0" | V23: 32'0"
C24: 3.2 | D24: On a separate sheet of paper write down the individual wall lengths per each height and then total.
Q26: Red = 10'0" wall height
C27: 4 | D27: Enter wall section heights into the Omni Block Calculator (see tab at bottom) under the heading WALL INFORMATION in the first row entitled "Wall Height".
Q28: Green = 12'0" wall height
Q30: Yellow = 14'0" wall height
C31: 4.1 | D31: Under the column "Wall 1" enter first wall height; "Wall 2" your second, and so on.
C34: 5 | D34: Enter the total lengths of each height in the "Wall Length" field under the appropriate wall height column that you assigned.

Sheet Omni Block Calculator
D4: WALL INFORMATION | Q4: WINDOWS AND DOORS | Y4: =2/3 -> 0.6666666667 | AD4: 0.1
Y5: Windows & Doors
D6: Number of Omni Block Wall Heights | F6: 2 | Q6: QUANTITY | R6: WIDTH | S6: HEIGHT | T6: VERTICAL | U6: SQ. FT. | Y6: Omni Block Wall Height | AA6: Bond Beam Height | AD6: Extra Pallets | AF6: CMU Sizes
D7: Number of 8" CMU Wall Heights | F7: 1 | Q7: 4 | R7: 4 | S7: 6 | T7: =IF(Q7="","",Q7*S7) -> 24 | U7: =IF(Q7="","",Q7*(R7*S7)) -> 96 | X7: 1 | Y7: =ROUND($X7*$Y$4,2) -> 0.67 | AA7: Yes | AB7: 0.67 | AD7: 0 | AF7: 4 | AH7: 0
D8: Number of 4" CMU Wall Heights | F8: 1 | Q8: 2 | R8: 2 | S8: 4 | T8: =IF(Q8="","",Q8*S8) -> 8 | U8: =IF(Q8="","",Q8*(R8*S8)) -> 16 | X8: 2 | Y8: 1.33 | AA8: No | AB8: 0 | AD8: 0.1 | AF8: 8 | AH8: 1
G9: 2 | H9: 3 | I9: 4 | J9: 5 | L9: 1 | M9: 2 | N9: 1 | Q9: 3 | R9: 5.33 | S9: 5.33 | T9: =IF(Q9="","",Q9*S9) -> 15.99 | U9: =IF(Q9="","",Q9*(R9*S9)) -> 85.2267 | X9: 3 | Y9: 2 | AD9: 0.2 | AH9: 2
F10: Omni Block | G10: =IF($F$6<G9,"","Omni Block") -> Omni Block | H10: =IF($F$6<H9,"","Omni Block") ->  | I10: =IF($F$6<I9,"","Omni Block") ->  | J10: =IF($F$6<J9,"","Omni Block") ->  | L10: =IF($F$7<L9,"","8'' CMU") -> 8'' CMU | M10: =IF($F$7<M9,"","8'' CMU") ->  | N10: =IF($F$8<N9,"","4'' CMU") -> 4'' CMU | X10: 4 | Y10: 2.67 | AD10: =AD9+$AD$4 -> 0.3 | AH10: 3
F11: 1 | G11: =IF($F$6<G9,"",G9) -> 2 | H11: =IF($F$6<H9,"",H9) ->  | I11: =IF($F$6<I9,"",I9) ->  | J11: =IF($F$6<J9,"",J9) ->  | L11: =IF($F$7<L9,"",L9) -> 1 | M11: =IF($F$7<M9,"",M9) ->  | N11: =IF($F$8<N9,"",N9) -> 1 | X11: 5 | Y11: 3.33 | AD11: 0.4 | AH11: 4
X12: 6 | Y12: 4 | AD12: 0.5 | AH12: 5
D13: Wall Height | F13: 10 | G13: 12 | L13: 2 | N13: =IF(F8>0,"0.33","") -> 0.33 | X13: 7 | Y13: 4.67 | AD13: 0.6 | AH13: 6
D14: Top of Wall Bond Beam (Yes / No) | F14: Yes | G14: Yes | L14: Yes | N14: =IF(F8>0,"No","") -> No | X14: 8 | Y14: 5.33 | AD14: 0.7 | AH14: 7
D15: Wall Length | F15: 100 | G15: 100 | L15: 216 | N15: 16 | X15: 9 | Y15: 6 | AD15: 0.8 | AH15: 8
D16: Number of Corners | F16: 4 | G16: 2 | X16: 10 | Y16: 6.67 | AD16: 0.9 | AH16: 9
D17: Total Windows and Doors | F17: 4 | G17: 5 | X17: 11 | Y17: 7.33 | AD17: 1
K18: =IF(K11="","",K13*K15) ->  | X18: 12 | Y18: 8 | AD18: 1.1
D19: Total Wall Square Feet | F19: =IF(F11="","",F13*F15) -> 1000 | G19: =IF(G11="","",G13*G15) -> 1200 | H19: =IF(H11="","",H13*H15) ->  | I19: =IF(I11="","",I13*I15) ->  | J19: =IF(J11="","",J13*J15) ->  | L19: =IF(L11="","",L13*L15) -> 432 | M19: =IF(M11="","",M13*M15) ->  | N19: =IF(N11="","",N13*N15) -> 5.28 | X19: 13 | Y19: 8.67 | AD19: 1.2
X20: 14 | Y20: 9.33 | AD20: 1.3
D21: Total Square Feet of Windows and Doors | F21: =U63 -> 197.2267 | X21: 15 | Y21: 10 | AD21: 1.4
D22: Vertical Height of Windows and Doors | F22: =T63 -> 47.99 | X22: 16 | Y22: 10.67 | AD22: 1.5
X23: 17 | Y23: 11.33 | AD23: 1.6
D24: QUANTITY CALCULATIONS | X24: 18 | Y24: 12 | AD24: 1.7
X25: 19 | Y25: 12.67 | AD25: 1.8
F26: =F10 -> Omni Block | G26: Omni Block | L26: =L10 -> 8'' CMU | N26: 4'' CMU | X26: 20 | Y26: 13.33 | AD26: 1.9
D27: BLOCK | F27: 1 | G27: 2 | L27: 1 | N27: 1 | O27: TOTALS | X27: 21 | Y27: 14 | AD27: 2
E28: Stretchers | F28: =IF(F11="","",IF(F$14="Yes", ROUNDUP((((F13-0.67)*1.5)*(F15*0.75)-(F21/0.89)-(F29)-(F30/2)),0),ROUNDUP(((F13*1.5)*(F15*0.75)-(F21/0.89)-(F29)-(F30/2)),0))) -> 685 | G28: =IF(G11="","",IF(G$14="Yes", ROUNDUP((((G13-0.67)*1.5)*(G15*0.75)-(G21/0.89)-(G29)-(G30/2)),0),ROUNDUP(((G13*1.5)*(G15*0.75)-(G21/0.89)-(G29)-(G30/2)),0))) -> 1059 | H28: =IF(H11="","",IF(H$14="Yes", ROUNDUP((((H13-0.67)*1.5)*(H15*0.75)-(H21/0.89)-(H29)-(H30/2)),0),ROUNDUP(((H13*1.5)*(H15*0.75)-(H21/0.89)-(H29)-(H30/2)),0))) ->  | I28: =IF(I11="","",IF(I$14="Yes", ROUNDUP((((I13-0.67)*1.5)*(I15*0.75)-(I21/0.89)-(I29)-(I30/2)),0),ROUNDUP(((I13*1.5)*(I15*0.75)-(I21/0.89)-(I29)-(I30/2)),0))) ->  | J28: =IF(J11="","",IF(J$14="Yes", ROUNDUP((((J13-0.67)*1.5)*(J15*0.75)-(J21/0.89)-(J29)-(J30/2)),0),ROUNDUP(((J13*1.5)*(J15*0.75)-(J21/0.89)-(J29)-(J30/2)),0))) ->  | O28: =SUM(F28:N28) -> 1744 | X28: 22 | Y28: 14.67 | AD28: 2.1
E29: Corners | F29: =IF(F11="","",ROUNDUP(((F16+F17*2)*(F13*1.5))-F30,0)) -> 108 | G29: =IF(G11="","",ROUNDUP(((G16+G17*2)*(G13*1.5))-G30,0)) -> 216 | H29: =IF(H11="","",ROUNDUP(((H16+H17*2)*(H13*1.5))-H30,0)) ->  | I29: =IF(I11="","",ROUNDUP(((I16+I17*2)*(I13*1.5))-I30,0)) ->  | J29: =IF(J11="","",ROUNDUP(((J16+J17*2)*(J13*1.5))-J30,0)) ->  | O29: 324 | X29: 23 | Y29: 15.33 | AD29: 2.2
E30: 8 x 8 x 8 Halfs | F30: =IF(F11="","",ROUNDUP((F22*1.5),0)) -> 72 | O30: 72 | T30: =IF(Q30="","",Q30*S30) ->  | U30: =IF(Q30="","",Q30*(R30*S30)) ->  | X30: 24 | Y30: 16 | AD30: 2.3
E31: 8 x 8 x 16 Bond Beam CMU | F31: =IF(F11="","",IF(F14="Yes",ROUNDUP(F15*0.75,0),"")) -> 75 | G31: =IF(G11="","",IF(G14="Yes",ROUNDUP(G15*0.75,0),"")) -> 75 | H31: =IF(H11="","",IF(H14="Yes",ROUNDUP(H15*0.75,0),"")) ->  | I31: =IF(I11="","",IF(I14="Yes",ROUNDUP(I15*0.75,0),"")) ->  | J31: =IF(J11="","",IF(J14="Yes",ROUNDUP(J15*0.75,0),"")) ->  | L31: =IF(L11="","",IF(L14="Yes",L15*0.75,"")) -> 162 | M31: =IF(M11="","",IF(M14="Yes",M15*0.75,"")) ->  | O31: 312 | X31: 25 | Y31: 16.67 | AD31: 2.4
E32: 8 x 8 x 16 CMU | L32: =IF(L$11="","",IF(L$14="Yes", ROUNDUP((((L$13-0.67)*1.5)*(L$15*0.75)),0),ROUNDUP(((L$13*1.5)*(L$15*0.75)),0))) -> 324 | M32: =IF(M$11="","",IF(M$14="Yes", ROUNDUP((((M$13-0.67)*1.5)*(M$15*0.75)),0),ROUNDUP(((M$13*1.5)*(M$15*0.75)),0))) ->  | O32: 324 | T32: =IF(Q32="","",Q32*S32) ->  | U32: =IF(Q32="","",Q32*(R32*S32)) ->  | X32: 27 | Y32: 18 | AD32: 2.5
E33: 8 x 4 x 16 CMU | N33: =IF(N$11="","",IF(N$14="Yes", ROUNDUP((((N$13-0.67)*3)*(N$15*0.75)),0),ROUNDUP(((N$13*3)*(N$15*0.75)),0))) -> 12 | O33: 12 | T33: =IF(Q33="","",Q33*S33) ->  | U33: =IF(Q33="","",Q33*(R33*S33)) ->  | X33: 28 | Y33: 18.67 | AD33: 2.6
T34: =IF(Q34="","",Q34*S34) ->  | U34: =IF(Q34="","",Q34*(R34*S34)) ->  | X34: 29 | Y34: 19.33 | AD34: 2.7
D35: INSERTS | X35: 30 | Y35: 20 | AD35: 2.8
E36: Short Inserts | F36: =IF(F37="","",ROUNDUP((F37*1.3),0)) -> 961 | G36: 1518 | O36: =SUM(F36:N36) -> 2479 | X36: 31 | Y36: 20.67 | AD36: 2.9
E37: Long Inserts | F37: =IF(F11="","",ROUNDUP((F28+(F29/2)),0)) -> 739 | G37: 1167 | O37: =SUM(F37:N37) -> 1906 | X37: 32 | Y37: 21.33 | AD37: 3
X38: 33 | Y38: 22 | AD38: 3.1
D39: WHOLESALE COST | T39: =IF(Q39="","",Q39*S39) ->  | U39: =IF(Q39="","",Q39*(R39*S39)) ->  | X39: 34 | Y39: 22.67 | AD39: 3.2
X40: 35 | Y40: 23.33 | AD40: 3.3
A41: Item | B41: Price | F41: Required Pallets | G41: Extra Block | H41: +/- Pallets | I41: Total Extra | J41: Total Pallets | L41: Quantity | M41: Price | N41: Total Cost | T41: =IF(Q41="","",Q41*S41) ->  | U41: =IF(Q41="","",Q41*(R41*S41)) ->  | X41: 36 | Y41: 24 | AD41: 3.4
D42: OMNI BLOCK: | AD42: 3.5
A43: Stretchers | B43: 1.8 | E43: Stretchers | F43: =IF(O28=0,"",ROUNDUP(O28/90,0)) -> 20 | G43: =IF(F43="","",F43*90-O28) -> 56 | H43: 1 | I43: =IF(F43="","",SUM(F43,H43)*90-O28) -> 146 | J43: =IF(F43="","",SUM(F43,H43)) -> 21 | L43: =IF(F43="","",J43*90) -> 1890 | M43: =IF(F43="","",B43) -> 1.8 | N43: =IF(F43="","",M43*L43) -> 3402 | AD43: 3.6
A44: Corners | B44: 1.95 | E44: Corners | F44: =IF(O29=0,"",ROUNDUP(O29/90,0)) -> 4 | G44: =IF(F44="","",F44*90-O29) -> 36 | H44: 0 | I44: =IF(F44="","",SUM(F44,H44)*90-O29) -> 36 | J44: =IF(F44="","",SUM(F44,H44)) -> 4 | L44: =IF(F44="","",J44*90) -> 360 | M44: =IF(F44="","",B44) -> 1.95 | N44: =IF(F44="","",M44*L44) -> 702 | AD44: 3.7
E45: Total Omni Block | N45: =IF(SUM(N43:O44)>0,SUM(N43:O44),0) -> 4104 | AD45: 3.8
AD46: 3.9
D47: OTHER CMU BLOCK: | AD47: 4
A48: 8 x 8 x 8 Halfs | B48: 1.4 | E48: 8 x 8 x 8 Halfs | F48: =IF(O30=0,"",ROUNDUP(O30/180,0)) -> 1 | G48: =IF(F48="","",F48*180 - O30) -> 108 | H48: -0.5 | I48: =IF(F48="","",(F48+H48)*180 - O30) -> 18 | J48: =IF(F48="","",SUM(F48,H48)) -> 0.5 | L48: =IF(F48="","",(F48*180)+(H48*180)) -> 90 | M48: =IF(F48="","",$B48) -> 1.4 | N48: =IF(F48="","",M48*L48) -> 126 | AD48: 4.1
A49: 8 x 8 x 16 CMU | B49: 1.6 | E49: 8 x 8 x 16 Bond Beam CMU | F49: =IF(O31=0,"",ROUNDUP(O31/90,0)) -> 4 | G49: =IF(F49="","",F49*90 - O31) -> 48 | H49: -0.4 | I49: =IF(F49="","",(F49+H49)*90 - O31) -> 12 | J49: =IF(F49="","",SUM(F49,H49)) -> 3.6 | L49: =IF(F49="","",(F49*90)+(H49*90)) -> 324 | M49: =IF(F49="","",$B49) -> 1.6 | N49: =IF(F49="","",M49*L49) -> 518.4 | AD49: 4.2
A50: 8 x 8 x 16 Bond Beam CMU | B50: 1.6 | E50: 8 x 8 x 16 CMU | F50: =IF(O32=0,"",ROUNDUP(O32/90,0)) -> 4 | G50: =IF(F50="","",F50*90 - O32) -> 36 | H50: 0 | I50: =IF(F50="","",(F50+H50)*90 - O32) -> 36 | J50: =IF(F50="","",SUM(F50,H50)) -> 4 | L50: =IF(F50="","",(F50*90)+(H50*90)) -> 360 | M50: =IF(F50="","",$B50) -> 1.6 | N50: =IF(F50="","",M50*L50) -> 576 | AD50: 4.3
A51: 8 x 4 x 16 CMU | B51: 1.55 | E51: 8 x 4 x 16 CMU | F51: =IF(O33=0,"",ROUNDUP(O33/180,0)) -> 1 | G51: =IF(F51="","",F51*180 - O33) -> 168 | H51: -0.9 | I51: =IF(F51="","",(F51+H51)*180 - O33) -> 6 | J51: =IF(F51="","",SUM(F51,H51)) -> 0.1 | L51: =IF(F51="","",(F51*180)+(H51*180)) -> 18 | M51: =IF(F51="","",$B51) -> 1.55 | N51: =IF(F51="","",M51*L51) -> 27.9 | AD51: 4.4
E52: Total Other CMU Block | N52: =IF(SUM(N48:O50)>0,SUM(N48:O50),0) -> 1220.4 | AD52: 4.5
AD53: 4.6
D54: TOTAL BLOCK | N54: =SUM(N52,N45) -> 5324.4 | AD54: 4.7
T55: =IF(Q55="","",Q55*S55) ->  | U55: =IF(Q55="","",Q55*(R55*S55)) ->  | AD55: 4.8
F56: Required Bags | G56: Extra Foam | H56: + Bags | I56: Total Extra | J56: Total Bags | L56: Quantity | M56: Price | AD56: 4.9
D57: INSERTS: | AD57: 5
A58: Short Inserts | B58: 0.96 | E58: Short Inserts | F58: =ROUNDUP(O36/100,0) -> 25 | G58: =ROUNDDOWN(($F58*100) - $O$36,0) -> 21 | H58: 1 | I58: =SUM(F58,H58)*100 - $O$36 -> 121 | J58: =SUM(F58,H58) -> 26 | L58: =J58*100 -> 2600 | M58: =B58 -> 0.96 | N58: =IF(M58*L58=0,"",M58*L58) -> 2496
A59: Long Inserts | B59: 1.06 | E59: Long Inserts | F59: =ROUNDUP(O37/100,0) -> 20 | G59: =ROUNDDOWN(($F59*100) - $O$37,0) -> 94 | H59: 0 | I59: =SUM(F59,H59)*100 - $O$37 -> 94 | J59: =SUM(F59,H59) -> 20 | L59: =J59*100 -> 2000 | M59: =B59 -> 1.06 | N59: =IF(M59*L59=0,"",M59*L59) -> 2120
D61: TOTAL INSERTS | N61: =SUM(N58:O59) -> 4616
Q62: TOTALS
D63: TOTAL BLOCK AND INSERTS | N63: =SUM(N61,N54) -> 9940.4 | Q63: =SUM(Q7:Q61) -> 9 | R63: - | S63: - | T63: =SUM(T7:T61) -> 47.99 | U63: =SUM(U7:U61) -> 197.2267
D65: FREIGHT: (estimated) | L65: Shipments | M65: Price | Q65: QUICK ESTIMATE
A66: Block Freight | B66: 400 | E66: Block Freight | L66: 3 | M66: =B66 -> 400 | N66: =IF(M66*L66=0,"",M66*L66) -> 1200
A67: Foam Insert Freight | B67: 600 | E67: Foam Insert Freight | L67: 1 | M67: =B67 -> 600 | N67: =IF(M67*L67=0,"",M67*L67) -> 600 | Q67: Wall Height | U67: 11.33
Q68: Lineal Feet | U68: 200
D69: TOTAL FREIGHT | N69: =IF(SUM(N66:O68)>0,SUM(N66:O68),0) -> 1800 | Q69: Total Square Feet | U69: =U67*U68 -> 2266
A71: Pallet Charge | B71: 15 | E71: Pallet Charges | L71: =ROUNDUP(SUM(J43:J52),0) -> 34 | M71: =B71 -> 15 | N71: =IF(M71*L71=0,"",M71*L71) -> 510 | Q71: Price per Sq. Ft. | U71: 3.75 | AA71: =ROUNDUP(SUM(Y45:Y52),0) -> 0 | AB71: =Q65 -> QUICK ESTIMATE | AD71: =IF(AB71*AA71=0,"",AB71*AA71) ->  | AE71: Pallet Charge | AF71: 15 | AI71: Pallet Charge | AP71: =ROUNDUP(SUM(AN45:AN52),0) -> 0 | AQ71: =AF71 -> 15 | AS71: =IF(AQ71*AP71=0,"",AQ71*AP71) ->  | AT71: Pallet Charge | AU71: 15 | AX71: Pallet Charge | BE71: =ROUNDUP(SUM(BC45:BC52),0) -> 0 | BF71: =AU71 -> 15 | BH71: =IF(BF71*BE71=0,"",BF71*BE71) ->  | BI71: Pallet Charge | BJ71: 15 | BM71: Pallet Charge | BT71: =ROUNDUP(SUM(BR45:BR52),0) -> 0 | BU71: =BJ71 -> 15 | BW71: =IF(BU71*BT71=0,"",BU71*BT71) ->  | BX71: Pallet Charge | BY71: 15 | CB71: Pallet Charge | CI71: =ROUNDUP(SUM(CG45:CG52),0) -> 0 | CJ71: =BY71 -> 15 | CL71: =IF(CJ71*CI71=0,"",CJ71*CI71) ->  | CM71: Pallet Charge | CN71: 15 | CQ71: Pallet Charge | CX71: =ROUNDUP(SUM(CV45:CV52),0) -> 0 | CY71: =CN71 -> 15 | DA71: =IF(CY71*CX71=0,"",CY71*CX71) ->  | DB71: Pallet Charge | DC71: 15 | DF71: Pallet Charge | DM71: =ROUNDUP(SUM(DK45:DK52),0) -> 0 | DN71: =DC71 -> 15 | DP71: =IF(DN71*DM71=0,"",DN71*DM71) ->  | DQ71: Pallet Charge | DR71: 15 | DU71: Pallet Charge | EB71: =ROUNDUP(SUM(DZ45:DZ52),0) -> 0 | EC71: =DR71 -> 15 | EE71: =IF(EC71*EB71=0,"",EC71*EB71) ->  | EF71: Pallet Charge | EG71: 15 | EJ71: Pallet Charge | EQ71: =ROUNDUP(SUM(EO45:EO52),0) -> 0 | ER71: =EG71 -> 15 | ET71: =IF(ER71*EQ71=0,"",ER71*EQ71) ->  | EU71: Pallet Charge | EV71: 15 | EY71: Pallet Charge | FF71: =ROUNDUP(SUM(FD45:FD52),0) -> 0 | FG71: =EV71 -> 15 | FI71: =IF(FG71*FF71=0,"",FG71*FF71) ->  | FJ71: Pallet Charge | FK71: 15 | FN71: Pallet Charge | FU71: =ROUNDUP(SUM(FS45:FS52),0) -> 0 | FV71: =FK71 -> 15 | FX71: =IF(FV71*FU71=0,"",FV71*FU71) ->  | FY71: Pallet Charge | FZ71: 15 | GC71: Pallet Charge | GJ71: =ROUNDUP(SUM(GH45:GH52),0) -> 0 | GK71: =FZ71 -> 15 | GM71: =IF(GK71*GJ71=0,"",GK71*GJ71) ->  | GN71: Pallet Charge | GO71: 15 | GR71: Pallet Charge | GY71: =ROUNDUP(SUM(GW45:GW52),0) -> 0 | GZ71: =GO71 -> 15 | HB71: =IF(GZ71*GY71=0,"",GZ71*GY71) ->  | HC71: Pallet Charge | HD71: 15 | HG71: Pallet Charge | HN71: =ROUNDUP(SUM(HL45:HL52),0) -> 0 | HO71: =HD71 -> 15 | HQ71: =IF(HO71*HN71=0,"",HO71*HN71) ->  | HR71: Pallet Charge | HS71: 15 | HV71: Pallet Charge | IC71: =ROUNDUP(SUM(IA45:IA52),0) -> 0 | ID71: =HS71 -> 15 | IF71: =IF(ID71*IC71=0,"",ID71*IC71) ->  | IG71: Pallet Charge | IH71: 15 | IK71: Pallet Charge | IR71: =ROUNDUP(SUM(IP45:IP52),0) -> 0 | IS71: =IH71 -> 15 | IU71: =IF(IS71*IR71=0,"",IS71*IR71) ->  | IV71: Pallet Charge | IW71: 15 | IZ71: Pallet Charge | JG71: =ROUNDUP(SUM(JE45:JE52),0) -> 0 | JH71: =IW71 -> 15 | JJ71: =IF(JH71*JG71=0,"",JH71*JG71) ->  | JK71: Pallet Charge | JL71: 15 | JO71: Pallet Charge | JV71: =ROUNDUP(SUM(JT45:JT52),0) -> 0 | JW71: =JL71 -> 15 | JY71: =IF(JW71*JV71=0,"",JW71*JV71) ->  | JZ71: Pallet Charge | KA71: 15 | KD71: Pallet Charge | KK71: =ROUNDUP(SUM(KI45:KI52),0) -> 0 | KL71: =KA71 -> 15 | KN71: =IF(KL71*KK71=0,"",KL71*KK71) ->  | KO71: Pallet Charge | KP71: 15 | KS71: Pallet Charge | KZ71: =ROUNDUP(SUM(KX45:KX52),0) -> 0 | LA71: =KP71 -> 15 | LC71: =IF(LA71*KZ71=0,"",LA71*KZ71) ->  | LD71: Pallet Charge | LE71: 15 | LH71: Pallet Charge | LO71: =ROUNDUP(SUM(LM45:LM52),0) -> 0 | LP71: =LE71 -> 15 | LR71: =IF(LP71*LO71=0,"",LP71*LO71) ->  | LS71: Pallet Charge | LT71: 15 | LW71: Pallet Charge | MD71: =ROUNDUP(SUM(MB45:MB52),0) -> 0 | ME71: =LT71 -> 15 | MG71: =IF(ME71*MD71=0,"",ME71*MD71) ->  | MH71: Pallet Charge | MI71: 15 | ML71: Pallet Charge | MS71: =ROUNDUP(SUM(MQ45:MQ52),0) -> 0 | MT71: =MI71 -> 15 | MV71: =IF(MT71*MS71=0,"",MT71*MS71) ->  | MW71: Pallet Charge | MX71: 15 | NA71: Pallet Charge | NH71: =ROUNDUP(SUM(NF45:NF52),0) -> 0 | NI71: =MX71 -> 15 | NK71: =IF(NI71*NH71=0,"",NI71*NH71) ->  | NL71: Pallet Charge | NM71: 15 | NP71: Pallet Charge | NW71: =ROUNDUP(SUM(NU45:NU52),0) -> 0 | NX71: =NM71 -> 15 | NZ71: =IF(NX71*NW71=0,"",NX71*NW71) ->  | OA71: Pallet Charge | OB71: 15 | OE71: Pallet Charge | OL71: =ROUNDUP(SUM(OJ45:OJ52),0) -> 0 | OM71: =OB71 -> 15 | OO71: =IF(OM71*OL71=0,"",OM71*OL71) ->  | OP71: Pallet Charge | OQ71: 15 | OT71: Pallet Charge | PA71: =ROUNDUP(SUM(OY45:OY52),0) -> 0 | PB71: =OQ71 -> 15 | PD71: =IF(PB71*PA71=0,"",PB71*PA71) ->  | PE71: Pallet Charge | PF71: 15 | PI71: Pallet Charge | PP71: =ROUNDUP(SUM(PN45:PN52),0) -> 0 | PQ71: =PF71 -> 15 | PS71: =IF(PQ71*PP71=0,"",PQ71*PP71) ->  | PT71: Pallet Charge | PU71: 15 | PX71: Pallet Charge | QE71: =ROUNDUP(SUM(QC45:QC52),0) -> 0 | QF71: =PU71 -> 15 | QH71: =IF(QF71*QE71=0,"",QF71*QE71) ->  | QI71: Pallet Charge | QJ71: 15 | QM71: Pallet Charge | QT71: =ROUNDUP(SUM(QR45:QR52),0) -> 0 | QU71: =QJ71 -> 15 | QW71: =IF(QU71*QT71=0,"",QU71*QT71) ->  | QX71: Pallet Charge | QY71: 15 | RB71: Pallet Charge | RI71: =ROUNDUP(SUM(RG45:RG52),0) -> 0 | RJ71: =QY71 -> 15 | RL71: =IF(RJ71*RI71=0,"",RJ71*RI71) ->  | RM71: Pallet Charge | RN71: 15 | RQ71: Pallet Charge | RX71: =ROUNDUP(SUM(RV45:RV52),0) -> 0 | RY71: =RN71 -> 15 | SA71: =IF(RY71*RX71=0,"",RY71*RX71) ->  | SB71: Pallet Charge | SC71: 15 | SF71: Pallet Charge | SM71: =ROUNDUP(SUM(SK45:SK52),0) -> 0 | SN71: =SC71 -> 15 | SP71: =IF(SN71*SM71=0,"",SN71*SM71) ->  | SQ71: Pallet Charge | SR71: 15 | SU71: Pallet Charge | TB71: =ROUNDUP(SUM(SZ45:SZ52),0) -> 0 | TC71: =SR71 -> 15 | TE71: =IF(TC71*TB71=0,"",TC71*TB71) ->  | TF71: Pallet Charge | TG71: 15 | TJ71: Pallet Charge | TQ71: =ROUNDUP(SUM(TO45:TO52),0) -> 0 | TR71: =TG71 -> 15 | TT71: =IF(TR71*TQ71=0,"",TR71*TQ71) ->  | TU71: Pallet Charge | TV71: 15 | TY71: Pallet Charge | UF71: =ROUNDUP(SUM(UD45:UD52),0) -> 0 | UG71: =TV71 -> 15 | UI71: =IF(UG71*UF71=0,"",UG71*UF71) ->  | UJ71: Pallet Charge | UK71: 15 | UN71: Pallet Charge | UU71: =ROUNDUP(SUM(US45:US52),0) -> 0 | UV71: =UK71 -> 15 | UX71: =IF(UV71*UU71=0,"",UV71*UU71) ->  | UY71: Pallet Charge | UZ71: 15 | VC71: Pallet Charge | VJ71: =ROUNDUP(SUM(VH45:VH52),0) -> 0 | VK71: =UZ71 -> 15 | VM71: =IF(VK71*VJ71=0,"",VK71*VJ71) ->  | VN71: Pallet Charge | VO71: 15 | VR71: Pallet Charge | VY71: =ROUNDUP(SUM(VW45:VW52),0) -> 0 | VZ71: =VO71 -> 15 | WB71: =IF(VZ71*VY71=0,"",VZ71*VY71) ->  | WC71: Pallet Charge | WD71: 15 | WG71: Pallet Charge | WN71: =ROUNDUP(SUM(WL45:WL52),0) -> 0 | WO71: =WD71 -> 15 | WQ71: =IF(WO71*WN71=0,"",WO71*WN71) ->  | WR71: Pallet Charge | WS71: 15 | WV71: Pallet Charge | XC71: =ROUNDUP(SUM(XA45:XA52),0) -> 0 | XD71: =WS71 -> 15 | XF71: =IF(XD71*XC71=0,"",XD71*XC71) ->  | XG71: Pallet Charge | XH71: 15 | XK71: Pallet Charge | XR71: =ROUNDUP(SUM(XP45:XP52),0) -> 0 | XS71: =XH71 -> 15 | XU71: =IF(XS71*XR71=0,"",XS71*XR71) ->  | XV71: Pallet Charge | XW71: 15 | XZ71: Pallet Charge | YG71: =ROUNDUP(SUM(YE45:YE52),0) -> 0 | YH71: =XW71 -> 15 | YJ71: =IF(YH71*YG71=0,"",YH71*YG71) ->  | YK71: Pallet Charge | YL71: 15 | YO71: Pallet Charge | YV71: =ROUNDUP(SUM(YT45:YT52),0) -> 0 | YW71: =YL71 -> 15 | YY71: =IF(YW71*YV71=0,"",YW71*YV71) ->  | YZ71: Pallet Charge | ZA71: 15 | ZD71: Pallet Charge | ZK71: =ROUNDUP(SUM(ZI45:ZI52),0) -> 0 | ZL71: =ZA71 -> 15 | ZN71: =IF(ZL71*ZK71=0,"",ZL71*ZK71) ->  | ZO71: Pallet Charge | ZP71: 15 | ZS71: Pallet Charge | ZZ71: =ROUNDUP(SUM(ZX45:ZX52),0) -> 0 | AAA71: =ZP71 -> 15 | AAC71: =IF(AAA71*ZZ71=0,"",AAA71*ZZ71) ->  | AAD71: Pallet Charge | AAE71: 15 | AAH71: Pallet Charge | AAO71: =ROUNDUP(SUM(AAM45:AAM52),0) -> 0 | AAP71: =AAE71 -> 15 | AAR71: =IF(AAP71*AAO71=0,"",AAP71*AAO71) ->  | AAS71: Pallet Charge | AAT71: 15 | AAW71: Pallet Charge | ABD71: =ROUNDUP(SUM(ABB45:ABB52),0) -> 0 | ABE71: =AAT71 -> 15 | ABG71: =IF(ABE71*ABD71=0,"",ABE71*ABD71) ->  | ABH71: Pallet Charge | ABI71: 15 | ABL71: Pallet Charge | ABS71: =ROUNDUP(SUM(ABQ45:ABQ52),0) -> 0 | ABT71: =ABI71 -> 15 | ABV71: =IF(ABT71*ABS71=0,"",ABT71*ABS71) ->  | ABW71: Pallet Charge | ABX71: 15 | ACA71: Pallet Charge | ACH71: =ROUNDUP(SUM(ACF45:ACF52),0) -> 0 | ACI71: =ABX71 -> 15 | ACK71: =IF(ACI71*ACH71=0,"",ACI71*ACH71) ->  | ACL71: Pallet Charge | ACM71: 15 | ACP71: Pallet Charge | ACW71: =ROUNDUP(SUM(ACU45:ACU52),0) -> 0 | ACX71: =ACM71 -> 15 | ACZ71: =IF(ACX71*ACW71=0,"",ACX71*ACW71) ->  | ADA71: Pallet Charge | ADB71: 15 | ADE71: Pallet Charge | ADL71: =ROUNDUP(SUM(ADJ45:ADJ52),0) -> 0 | ADM71: =ADB71 -> 15 | ADO71: =IF(ADM71*ADL71=0,"",ADM71*ADL71) ->  | ADP71: Pallet Charge | ADQ71: 15 | ADT71: Pallet Charge | AEA71: =ROUNDUP(SUM(ADY45:ADY52),0) -> 0 | AEB71: =ADQ71 -> 15 | AED71: =IF(AEB71*AEA71=0,"",AEB71*AEA71) ->  | AEE71: Pallet Charge | AEF71: 15 | AEI71: Pallet Charge | AEP71: =ROUNDUP(SUM(AEN45:AEN52),0) -> 0 | AEQ71: =AEF71 -> 15 | AES71: =IF(AEQ71*AEP71=0,"",AEQ71*AEP71) ->  | AET71: Pallet Charge | AEU71: 15 | AEX71: Pallet Charge | AFE71: =ROUNDUP(SUM(AFC45:AFC52),0) -> 0 | AFF71: =AEU71 -> 15 | AFH71: =IF(AFF71*AFE71=0,"",AFF71*AFE71) ->  | AFI71: Pallet Charge | AFJ71: 15 | AFM71: Pallet Charge | AFT71: =ROUNDUP(SUM(AFR45:AFR52),0) -> 0 | AFU71: =AFJ71 -> 15 | AFW71: =IF(AFU71*AFT71=0,"",AFU71*AFT71) ->  | AFX71: Pallet Charge | AFY71: 15 | AGB71: Pallet Charge | AGI71: =ROUNDUP(SUM(AGG45:AGG52),0) -> 0 | AGJ71: =AFY71 -> 15 | AGL71: =IF(AGJ71*AGI71=0,"",AGJ71*AGI71) ->  | AGM71: Pallet Charge | AGN71: 15 | AGQ71: Pallet Charge | AGX71: =ROUNDUP(SUM(AGV45:AGV52),0) -> 0 | AGY71: =AGN71 -> 15 | AHA71: =IF(AGY71*AGX71=0,"",AGY71*AGX71) ->  | AHB71: Pallet Charge | AHC71: 15 | AHF71: Pallet Charge | AHM71: =ROUNDUP(SUM(AHK45:AHK52),0) -> 0 | AHN71: =AHC71 -> 15 | AHP71: =IF(AHN71*AHM71=0,"",AHN71*AHM71) ->  | AHQ71: Pallet Charge | AHR71: 15 | AHU71: Pallet Charge | AIB71: =ROUNDUP(SUM(AHZ45:AHZ52),0) -> 0 | AIC71: =AHR71 -> 15 | AIE71: =IF(AIC71*AIB71=0,"",AIC71*AIB71) ->  | AIF71: Pallet Charge | AIG71: 15 | AIJ71: Pallet Charge | AIQ71: =ROUNDUP(SUM(AIO45:AIO52),0) -> 0 | AIR71: =AIG71 -> 15 | AIT71: =IF(AIR71*AIQ71=0,"",AIR71*AIQ71) ->  | AIU71: Pallet Charge | AIV71: 15 | AIY71: Pallet Charge | AJF71: =ROUNDUP(SUM(AJD45:AJD52),0) -> 0 | AJG71: =AIV71 -> 15 | AJI71: =IF(AJG71*AJF71=0,"",AJG71*AJF71) ->  | AJJ71: Pallet Charge | AJK71: 15 | AJN71: Pallet Charge | AJU71: =ROUNDUP(SUM(AJS45:AJS52),0) -> 0 | AJV71: =AJK71 -> 15 | AJX71: =IF(AJV71*AJU71=0,"",AJV71*AJU71) ->  | AJY71: Pallet Charge | AJZ71: 15 | AKC71: Pallet Charge | AKJ71: =ROUNDUP(SUM(AKH45:AKH52),0) -> 0 | AKK71: =AJZ71 -> 15 | AKM71: =IF(AKK71*AKJ71=0,"",AKK71*AKJ71) ->  | AKN71: Pallet Charge | AKO71: 15 | AKR71: Pallet Charge | AKY71: =ROUNDUP(SUM(AKW45:AKW52),0) -> 0 | AKZ71: =AKO71 -> 15 | ALB71: =IF(AKZ71*AKY71=0,"",AKZ71*AKY71) ->  | ALC71: Pallet Charge | ALD71: 15 | ALG71: Pallet Charge | ALN71: =ROUNDUP(SUM(ALL45:ALL52),0) -> 0 | ALO71: =ALD71 -> 15 | ALQ71: =IF(ALO71*ALN71=0,"",ALO71*ALN71) ->  | ALR71: Pallet Charge | ALS71: 15 | ALV71: Pallet Charge | AMC71: =ROUNDUP(SUM(AMA45:AMA52),0) -> 0 | AMD71: =ALS71 -> 15 | AMF71: =IF(AMD71*AMC71=0,"",AMD71*AMC71) ->  | AMG71: Pallet Charge | AMH71: 15 | AMK71: Pallet Charge | AMR71: =ROUNDUP(SUM(AMP45:AMP52),0) -> 0 | AMS71: =AMH71 -> 15 | AMU71: =IF(AMS71*AMR71=0,"",AMS71*AMR71) ->  | AMV71: Pallet Charge | AMW71: 15 | AMZ71: Pallet Charge | ANG71: =ROUNDUP(SUM(ANE45:ANE52),0) -> 0 | ANH71: =AMW71 -> 15 | ANJ71: =IF(ANH71*ANG71=0,"",ANH71*ANG71) ->  | ANK71: Pallet Charge | ANL71: 15 | ANO71: Pallet Charge | ANV71: =ROUNDUP(SUM(ANT45:ANT52),0) -> 0 | ANW71: =ANL71 -> 15 | ANY71: =IF(ANW71*ANV71=0,"",ANW71*ANV71) ->  | ANZ71: Pallet Charge | AOA71: 15 | AOD71: Pallet Charge | AOK71: =ROUNDUP(SUM(AOI45:AOI52),0) -> 0 | AOL71: =AOA71 -> 15 | AON71: =IF(AOL71*AOK71=0,"",AOL71*AOK71) ->  | AOO71: Pallet Charge | AOP71: 15 | AOS71: Pallet Charge | AOZ71: =ROUNDUP(SUM(AOX45:AOX52),0) -> 0 | APA71: =AOP71 -> 15 | APC71: =IF(APA71*AOZ71=0,"",APA71*AOZ71) ->  | APD71: Pallet Charge | APE71: 15 | APH71: Pallet Charge | APO71: =ROUNDUP(SUM(APM45:APM52),0) -> 0 | APP71: =APE71 -> 15 | APR71: =IF(APP71*APO71=0,"",APP71*APO71) ->  | APS71: Pallet Charge | APT71: 15 | APW71: Pallet Charge | AQD71: =ROUNDUP(SUM(AQB45:AQB52),0) -> 0 | AQE71: =APT71 -> 15 | AQG71: =IF(AQE71*AQD71=0,"",AQE71*AQD71) ->  | AQH71: Pallet Charge | AQI71: 15 | AQL71: Pallet Charge | AQS71: =ROUNDUP(SUM(AQQ45:AQQ52),0) -> 0 | AQT71: =AQI71 -> 15 | AQV71: =IF(AQT71*AQS71=0,"",AQT71*AQS71) ->  | AQW71: Pallet Charge | AQX71: 15 | ARA71: Pallet Charge | ARH71: =ROUNDUP(SUM(ARF45:ARF52),0) -> 0 | ARI71: =AQX71 -> 15 | ARK71: =IF(ARI71*ARH71=0,"",ARI71*ARH71) ->  | ARL71: Pallet Charge | ARM71: 15 | ARP71: Pallet Charge | ARW71: =ROUNDUP(SUM(ARU45:ARU52),0) -> 0 | ARX71: =ARM71 -> 15 | ARZ71: =IF(ARX71*ARW71=0,"",ARX71*ARW71) ->  | ASA71: Pallet Charge | ASB71: 15 | ASE71: Pallet Charge | ASL71: =ROUNDUP(SUM(ASJ45:ASJ52),0) -> 0 | ASM71: =ASB71 -> 15 | ASO71: =IF(ASM71*ASL71=0,"",ASM71*ASL71) ->  | ASP71: Pallet Charge | ASQ71: 15 | AST71: Pallet Charge | ATA71: =ROUNDUP(SUM(ASY45:ASY52),0) -> 0 | ATB71: =ASQ71 -> 15 | ATD71: =IF(ATB71*ATA71=0,"",ATB71*ATA71) ->  | ATE71: Pallet Charge | ATF71: 15 | ATI71: Pallet Charge | ATP71: =ROUNDUP(SUM(ATN45:ATN52),0) -> 0 | ATQ71: =ATF71 -> 15 | ATS71: =IF(ATQ71*ATP71=0,"",ATQ71*ATP71) ->  | ATT71: Pallet Charge | ATU71: 15 | ATX71: Pallet Charge | AUE71: =ROUNDUP(SUM(AUC45:AUC52),0) -> 0 | AUF71: =ATU71 -> 15 | AUH71: =IF(AUF71*AUE71=0,"",AUF71*AUE71) ->  | AUI71: Pallet Charge | AUJ71: 15 | AUM71: Pallet Charge | AUT71: =ROUNDUP(SUM(AUR45:AUR52),0) -> 0 | AUU71: =AUJ71 -> 15 | AUW71: =IF(AUU71*AUT71=0,"",AUU71*AUT71) ->  | AUX71: Pallet Charge | AUY71: 15 | AVB71: Pallet Charge | AVI71: =ROUNDUP(SUM(AVG45:AVG52),0) -> 0 | AVJ71: =AUY71 -> 15 | AVL71: =IF(AVJ71*AVI71=0,"",AVJ71*AVI71) ->  | AVM71: Pallet Charge | AVN71: 15 | AVQ71: Pallet Charge | AVX71: =ROUNDUP(SUM(AVV45:AVV52),0) -> 0 | AVY71: =AVN71 -> 15 | AWA71: =IF(AVY71*AVX71=0,"",AVY71*AVX71) ->  | AWB71: Pallet Charge | AWC71: 15 | AWF71: Pallet Charge | AWM71: =ROUNDUP(SUM(AWK45:AWK52),0) -> 0 | AWN71: =AWC71 -> 15 | AWP71: =IF(AWN71*AWM71=0,"",AWN71*AWM71) ->  | AWQ71: Pallet Charge | AWR71: 15 | AWU71: Pallet Charge | AXB71: =ROUNDUP(SUM(AWZ45:AWZ52),0) -> 0 | AXC71: =AWR71 -> 15 | AXE71: =IF(AXC71*AXB71=0,"",AXC71*AXB71) ->  | AXF71: Pallet Charge | AXG71: 15 | AXJ71: Pallet Charge | AXQ71: =ROUNDUP(SUM(AXO45:AXO52),0) -> 0 | AXR71: =AXG71 -> 15 | AXT71: =IF(AXR71*AXQ71=0,"",AXR71*AXQ71) ->  | AXU71: Pallet Charge | AXV71: 15 | AXY71: Pallet Charge | AYF71: =ROUNDUP(SUM(AYD45:AYD52),0) -> 0 | AYG71: =AXV71 -> 15 | AYI71: =IF(AYG71*AYF71=0,"",AYG71*AYF71) ->  | AYJ71: Pallet Charge | AYK71: 15 | AYN71: Pallet Charge | AYU71: =ROUNDUP(SUM(AYS45:AYS52),0) -> 0 | AYV71: =AYK71 -> 15 | AYX71: =IF(AYV71*AYU71=0,"",AYV71*AYU71) ->  | AYY71: Pallet Charge | AYZ71: 15 | AZC71: Pallet Charge | AZJ71: =ROUNDUP(SUM(AZH45:AZH52),0) -> 0 | AZK71: =AYZ71 -> 15 | AZM71: =IF(AZK71*AZJ71=0,"",AZK71*AZJ71) ->  | AZN71: Pallet Charge | AZO71: 15 | AZR71: Pallet Charge | AZY71: =ROUNDUP(SUM(AZW45:AZW52),0) -> 0 | AZZ71: =AZO71 -> 15 | BAB71: =IF(AZZ71*AZY71=0,"",AZZ71*AZY71) ->  | BAC71: Pallet Charge | BAD71: 15 | BAG71: Pallet Charge | BAN71: =ROUNDUP(SUM(BAL45:BAL52),0) -> 0 | BAO71: =BAD71 -> 15 | BAQ71: =IF(BAO71*BAN71=0,"",BAO71*BAN71) ->  | BAR71: Pallet Charge | BAS71: 15 | BAV71: Pallet Charge | BBC71: =ROUNDUP(SUM(BBA45:BBA52),0) -> 0 | BBD71: =BAS71 -> 15 | BBF71: =IF(BBD71*BBC71=0,"",BBD71*BBC71) ->  | BBG71: Pallet Charge | BBH71: 15 | BBK71: Pallet Charge | BBR71: =ROUNDUP(SUM(BBP45:BBP52),0) -> 0 | BBS71: =BBH71 -> 15 | BBU71: =IF(BBS71*BBR71=0,"",BBS71*BBR71) ->  | BBV71: Pallet Charge | BBW71: 15 | BBZ71: Pallet Charge | BCG71: =ROUNDUP(SUM(BCE45:BCE52),0) -> 0 | BCH71: =BBW71 -> 15 | BCJ71: =IF(BCH71*BCG71=0,"",BCH71*BCG71) ->  | BCK71: Pallet Charge | BCL71: 15 | BCO71: Pallet Charge | BCV71: =ROUNDUP(SUM(BCT45:BCT52),0) -> 0 | BCW71: =BCL71 -> 15 | BCY71: =IF(BCW71*BCV71=0,"",BCW71*BCV71) ->  | BCZ71: Pallet Charge | BDA71: 15 | BDD71: Pallet Charge | BDK71: =ROUNDUP(SUM(BDI45:BDI52),0) -> 0 | BDL71: =BDA71 -> 15 | BDN71: =IF(BDL71*BDK71=0,"",BDL71*BDK71) ->  | BDO71: Pallet Charge | BDP71: 15 | BDS71: Pallet Charge | BDZ71: =ROUNDUP(SUM(BDX45:BDX52),0) -> 0 | BEA71: =BDP71 -> 15 | BEC71: =IF(BEA71*BDZ71=0,"",BEA71*BDZ71) ->  | BED71: Pallet Charge | BEE71: 15 | BEH71: Pallet Charge | BEO71: =ROUNDUP(SUM(BEM45:BEM52),0) -> 0 | BEP71: =BEE71 -> 15 | BER71: =IF(BEP71*BEO71=0,"",BEP71*BEO71) ->  | BES71: Pallet Charge | BET71: 15 | BEW71: Pallet Charge | BFD71: =ROUNDUP(SUM(BFB45:BFB52),0) -> 0 | BFE71: =BET71 -> 15 | BFG71: =IF(BFE71*BFD71=0,"",BFE71*BFD71) ->  | BFH71: Pallet Charge | BFI71: 15 | BFL71: Pallet Charge | BFS71: =ROUNDUP(SUM(BFQ45:BFQ52),0) -> 0 | BFT71: =BFI71 -> 15 | BFV71: =IF(BFT71*BFS71=0,"",BFT71*BFS71) ->  | BFW71: Pallet Charge | BFX71: 15 | BGA71: Pallet Charge | BGH71: =ROUNDUP(SUM(BGF45:BGF52),0) -> 0 | BGI71: =BFX71 -> 15 | BGK71: =IF(BGI71*BGH71=0,"",BGI71*BGH71) ->  | BGL71: Pallet Charge | BGM71: 15 | BGP71: Pallet Charge | BGW71: =ROUNDUP(SUM(BGU45:BGU52),0) -> 0 | BGX71: =BGM71 -> 15 | BGZ71: =IF(BGX71*BGW71=0,"",BGX71*BGW71) ->  | BHA71: Pallet Charge | BHB71: 15 | BHE71: Pallet Charge | BHL71: =ROUNDUP(SUM(BHJ45:BHJ52),0) -> 0 | BHM71: =BHB71 -> 15 | BHO71: =IF(BHM71*BHL71=0,"",BHM71*BHL71) ->  | BHP71: Pallet Charge | BHQ71: 15 | BHT71: Pallet Charge | BIA71: =ROUNDUP(SUM(BHY45:BHY52),0) -> 0 | BIB71: =BHQ71 -> 15 | BID71: =IF(BIB71*BIA71=0,"",BIB71*BIA71) ->  | BIE71: Pallet Charge | BIF71: 15 | BII71: Pallet Charge | BIP71: =ROUNDUP(SUM(BIN45:BIN52),0) -> 0 | BIQ71: =BIF71 -> 15 | BIS71: =IF(BIQ71*BIP71=0,"",BIQ71*BIP71) ->  | BIT71: Pallet Charge | BIU71: 15 | BIX71: Pallet Charge | BJE71: =ROUNDUP(SUM(BJC45:BJC52),0) -> 0 | BJF71: =BIU71 -> 15 | BJH71: =IF(BJF71*BJE71=0,"",BJF71*BJE71) ->  | BJI71: Pallet Charge | BJJ71: 15 | BJM71: Pallet Charge | BJT71: =ROUNDUP(SUM(BJR45:BJR52),0) -> 0 | BJU71: =BJJ71 -> 15 | BJW71: =IF(BJU71*BJT71=0,"",BJU71*BJT71) ->  | BJX71: Pallet Charge | BJY71: 15 | BKB71: Pallet Charge | BKI71: =ROUNDUP(SUM(BKG45:BKG52),0) -> 0 | BKJ71: =BJY71 -> 15 | BKL71: =IF(BKJ71*BKI71=0,"",BKJ71*BKI71) ->  | BKM71: Pallet Charge | BKN71: 15 | BKQ71: Pallet Charge | BKX71: =ROUNDUP(SUM(BKV45:BKV52),0) -> 0 | BKY71: =BKN71 -> 15 | BLA71: =IF(BKY71*BKX71=0,"",BKY71*BKX71) ->  | BLB71: Pallet Charge | BLC71: 15 | BLF71: Pallet Charge | BLM71: =ROUNDUP(SUM(BLK45:BLK52),0) -> 0 | BLN71: =BLC71 -> 15 | BLP71: =IF(BLN71*BLM71=0,"",BLN71*BLM71) ->  | BLQ71: Pallet Charge | BLR71: 15 | BLU71: Pallet Charge | BMB71: =ROUNDUP(SUM(BLZ45:BLZ52),0) -> 0 | BMC71: =BLR71 -> 15 | BME71: =IF(BMC71*BMB71=0,"",BMC71*BMB71) ->  | BMF71: Pallet Charge | BMG71: 15 | BMJ71: Pallet Charge | BMQ71: =ROUNDUP(SUM(BMO45:BMO52),0) -> 0 | BMR71: =BMG71 -> 15 | BMT71: =IF(BMR71*BMQ71=0,"",BMR71*BMQ71) ->  | BMU71: Pallet Charge | BMV71: 15 | BMY71: Pallet Charge | BNF71: =ROUNDUP(SUM(BND45:BND52),0) -> 0 | BNG71: =BMV71 -> 15 | BNI71: =IF(BNG71*BNF71=0,"",BNG71*BNF71) ->  | BNJ71: Pallet Charge | BNK71: 15 | BNN71: Pallet Charge | BNU71: =ROUNDUP(SUM(BNS45:BNS52),0) -> 0 | BNV71: =BNK71 -> 15 | BNX71: =IF(BNV71*BNU71=0,"",BNV71*BNU71) ->  | BNY71: Pallet Charge | BNZ71: 15 | BOC71: Pallet Charge | BOJ71: =ROUNDUP(SUM(BOH45:BOH52),0) -> 0 | BOK71: =BNZ71 -> 15 | BOM71: =IF(BOK71*BOJ71=0,"",BOK71*BOJ71) ->  | BON71: Pallet Charge | BOO71: 15 | BOR71: Pallet Charge | BOY71: =ROUNDUP(SUM(BOW45:BOW52),0) -> 0 | BOZ71: =BOO71 -> 15 | BPB71: =IF(BOZ71*BOY71=0,"",BOZ71*BOY71) ->  | BPC71: Pallet Charge | BPD71: 15 | BPG71: Pallet Charge | BPN71: =ROUNDUP(SUM(BPL45:BPL52),0) -> 0 | BPO71: =BPD71 -> 15 | BPQ71: =IF(BPO71*BPN71=0,"",BPO71*BPN71) ->  | BPR71: Pallet Charge | BPS71: 15 | BPV71: Pallet Charge | BQC71: =ROUNDUP(SUM(BQA45:BQA52),0) -> 0 | BQD71: =BPS71 -> 15 | BQF71: =IF(BQD71*BQC71=0,"",BQD71*BQC71) ->  | BQG71: Pallet Charge | BQH71: 15 | BQK71: Pallet Charge | BQR71: =ROUNDUP(SUM(BQP45:BQP52),0) -> 0 | BQS71: =BQH71 -> 15 | BQU71: =IF(BQS71*BQR71=0,"",BQS71*BQR71) ->  | BQV71: Pallet Charge | BQW71: 15 | BQZ71: Pallet Charge | BRG71: =ROUNDUP(SUM(BRE45:BRE52),0) -> 0 | BRH71: =BQW71 -> 15 | BRJ71: =IF(BRH71*BRG71=0,"",BRH71*BRG71) ->  | BRK71: Pallet Charge | BRL71: 15 | BRO71: Pallet Charge | BRV71: =ROUNDUP(SUM(BRT45:BRT52),0) -> 0 | BRW71: =BRL71 -> 15 | BRY71: =IF(BRW71*BRV71=0,"",BRW71*BRV71) ->  | BRZ71: Pallet Charge | BSA71: 15 | BSD71: Pallet Charge | BSK71: =ROUNDUP(SUM(BSI45:BSI52),0) -> 0 | BSL71: =BSA71 -> 15 | BSN71: =IF(BSL71*BSK71=0,"",BSL71*BSK71) ->  | BSO71: Pallet Charge | BSP71: 15 | BSS71: Pallet Charge | BSZ71: =ROUNDUP(SUM(BSX45:BSX52),0) -> 0 | BTA71: =BSP71 -> 15 | BTC71: =IF(BTA71*BSZ71=0,"",BTA71*BSZ71) ->  | BTD71: Pallet Charge | BTE71: 15 | BTH71: Pallet Charge | BTO71: =ROUNDUP(SUM(BTM45:BTM52),0) -> 0 | BTP71: =BTE71 -> 15 | BTR71: =IF(BTP71*BTO71=0,"",BTP71*BTO71) ->  | BTS71: Pallet Charge | BTT71: 15 | BTW71: Pallet Charge | BUD71: =ROUNDUP(SUM(BUB45:BUB52),0) -> 0 | BUE71: =BTT71 -> 15 | BUG71: =IF(BUE71*BUD71=0,"",BUE71*BUD71) ->  | BUH71: Pallet Charge | BUI71: 15 | BUL71: Pallet Charge | BUS71: =ROUNDUP(SUM(BUQ45:BUQ52),0) -> 0 | BUT71: =BUI71 -> 15 | BUV71: =IF(BUT71*BUS71=0,"",BUT71*BUS71) ->  | BUW71: Pallet Charge | BUX71: 15 | BVA71: Pallet Charge | BVH71: =ROUNDUP(SUM(BVF45:BVF52),0) -> 0 | BVI71: =BUX71 -> 15 | BVK71: =IF(BVI71*BVH71=0,"",BVI71*BVH71) ->  | BVL71: Pallet Charge | BVM71: 15 | BVP71: Pallet Charge | BVW71: =ROUNDUP(SUM(BVU45:BVU52),0) -> 0 | BVX71: =BVM71 -> 15 | BVZ71: =IF(BVX71*BVW71=0,"",BVX71*BVW71) ->  | BWA71: Pallet Charge | BWB71: 15 | BWE71: Pallet Charge | BWL71: =ROUNDUP(SUM(BWJ45:BWJ52),0) -> 0 | BWM71: =BWB71 -> 15 | BWO71: =IF(BWM71*BWL71=0,"",BWM71*BWL71) ->  | BWP71: Pallet Charge | BWQ71: 15 | BWT71: Pallet Charge | BXA71: =ROUNDUP(SUM(BWY45:BWY52),0) -> 0 | BXB71: =BWQ71 -> 15 | BXD71: =IF(BXB71*BXA71=0,"",BXB71*BXA71) ->  | BXE71: Pallet Charge | BXF71: 15 | BXI71: Pallet Charge | BXP71: =ROUNDUP(SUM(BXN45:BXN52),0) -> 0 | BXQ71: =BXF71 -> 15 | BXS71: =IF(BXQ71*BXP71=0,"",BXQ71*BXP71) ->  | BXT71: Pallet Charge | BXU71: 15 | BXX71: Pallet Charge | BYE71: =ROUNDUP(SUM(BYC45:BYC52),0) -> 0 | BYF71: =BXU71 -> 15 | BYH71: =IF(BYF71*BYE71=0,"",BYF71*BYE71) ->  | BYI71: Pallet Charge | BYJ71: 15 | BYM71: Pallet Charge | BYT71: =ROUNDUP(SUM(BYR45:BYR52),0) -> 0 | BYU71: =BYJ71 -> 15 | BYW71: =IF(BYU71*BYT71=0,"",BYU71*BYT71) ->  | BYX71: Pallet Charge | BYY71: 15 | BZB71: Pallet Charge | BZI71: =ROUNDUP(SUM(BZG45:BZG52),0) -> 0 | BZJ71: =BYY71 -> 15 | BZL71: =IF(BZJ71*BZI71=0,"",BZJ71*BZI71) ->  | BZM71: Pallet Charge | BZN71: 15 | BZQ71: Pallet Charge | BZX71: =ROUNDUP(SUM(BZV45:BZV52),0) -> 0 | BZY71: =BZN71 -> 15 | CAA71: =IF(BZY71*BZX71=0,"",BZY71*BZX71) ->  | CAB71: Pallet Charge | CAC71: 15 | CAF71: Pallet Charge | CAM71: =ROUNDUP(SUM(CAK45:CAK52),0) -> 0 | CAN71: =CAC71 -> 15 | CAP71: =IF(CAN71*CAM71=0,"",CAN71*CAM71) ->  | CAQ71: Pallet Charge | CAR71: 15 | CAU71: Pallet Charge | CBB71: =ROUNDUP(SUM(CAZ45:CAZ52),0) -> 0 | CBC71: =CAR71 -> 15 | CBE71: =IF(CBC71*CBB71=0,"",CBC71*CBB71) ->  | CBF71: Pallet Charge | CBG71: 15 | CBJ71: Pallet Charge | CBQ71: =ROUNDUP(SUM(CBO45:CBO52),0) -> 0 | CBR71: =CBG71 -> 15 | CBT71: =IF(CBR71*CBQ71=0,"",CBR71*CBQ71) ->  | CBU71: Pallet Charge | CBV71: 15 | CBY71: Pallet Charge | CCF71: =ROUNDUP(SUM(CCD45:CCD52),0) -> 0 | CCG71: =CBV71 -> 15 | CCI71: =IF(CCG71*CCF71=0,"",CCG71*CCF71) ->  | CCJ71: Pallet Charge | CCK71: 15 | CCN71: Pallet Charge | CCU71: =ROUNDUP(SUM(CCS45:CCS52),0) -> 0 | CCV71: =CCK71 -> 15 | CCX71: =IF(CCV71*CCU71=0,"",CCV71*CCU71) ->  | CCY71: Pallet Charge | CCZ71: 15 | CDC71: Pallet Charge | CDJ71: =ROUNDUP(SUM(CDH45:CDH52),0) -> 0 | CDK71: =CCZ71 -> 15 | CDM71: =IF(CDK71*CDJ71=0,"",CDK71*CDJ71) ->  | CDN71: Pallet Charge | CDO71: 15 | CDR71: Pallet Charge | CDY71: =ROUNDUP(SUM(CDW45:CDW52),0) -> 0 | CDZ71: =CDO71 -> 15 | CEB71: =IF(CDZ71*CDY71=0,"",CDZ71*CDY71) ->  | CEC71: Pallet Charge | CED71: 15 | CEG71: Pallet Charge | CEN71: =ROUNDUP(SUM(CEL45:CEL52),0) -> 0 | CEO71: =CED71 -> 15 | CEQ71: =IF(CEO71*CEN71=0,"",CEO71*CEN71) ->  | CER71: Pallet Charge | CES71: 15 | CEV71: Pallet Charge | CFC71: =ROUNDUP(SUM(CFA45:CFA52),0) -> 0 | CFD71: =CES71 -> 15 | CFF71: =IF(CFD71*CFC71=0,"",CFD71*CFC71) ->  | CFG71: Pallet Charge | CFH71: 15 | CFK71: Pallet Charge | CFR71: =ROUNDUP(SUM(CFP45:CFP52),0) -> 0 | CFS71: =CFH71 -> 15 | CFU71: =IF(CFS71*CFR71=0,"",CFS71*CFR71) ->  | CFV71: Pallet Charge | CFW71: 15 | CFZ71: Pallet Charge | CGG71: =ROUNDUP(SUM(CGE45:CGE52),0) -> 0 | CGH71: =CFW71 -> 15 | CGJ71: =IF(CGH71*CGG71=0,"",CGH71*CGG71) ->  | CGK71: Pallet Charge | CGL71: 15 | CGO71: Pallet Charge | CGV71: =ROUNDUP(SUM(CGT45:CGT52),0) -> 0 | CGW71: =CGL71 -> 15 | CGY71: =IF(CGW71*CGV71=0,"",CGW71*CGV71) ->  | CGZ71: Pallet Charge | CHA71: 15 | CHD71: Pallet Charge | CHK71: =ROUNDUP(SUM(CHI45:CHI52),0) -> 0 | CHL71: =CHA71 -> 15 | CHN71: =IF(CHL71*CHK71=0,"",CHL71*CHK71) ->  | CHO71: Pallet Charge | CHP71: 15 | CHS71: Pallet Charge | CHZ71: =ROUNDUP(SUM(CHX45:CHX52),0) -> 0 | CIA71: =CHP71 -> 15 | CIC71: =IF(CIA71*CHZ71=0,"",CIA71*CHZ71) ->  | CID71: Pallet Charge | CIE71: 15 | CIH71: Pallet Charge | CIO71: =ROUNDUP(SUM(CIM45:CIM52),0) -> 0 | CIP71: =CIE71 -> 15 | CIR71: =IF(CIP71*CIO71=0,"",CIP71*CIO71) ->  | CIS71: Pallet Charge | CIT71: 15 | CIW71: Pallet Charge | CJD71: =ROUNDUP(SUM(CJB45:CJB52),0) -> 0 | CJE71: =CIT71 -> 15 | CJG71: =IF(CJE71*CJD71=0,"",CJE71*CJD71) ->  | CJH71: Pallet Charge | CJI71: 15 | CJL71: Pallet Charge | CJS71: =ROUNDUP(SUM(CJQ45:CJQ52),0) -> 0 | CJT71: =CJI71 -> 15 | CJV71: =IF(CJT71*CJS71=0,"",CJT71*CJS71) ->  | CJW71: Pallet Charge | CJX71: 15 | CKA71: Pallet Charge | CKH71: =ROUNDUP(SUM(CKF45:CKF52),0) -> 0 | CKI71: =CJX71 -> 15 | CKK71: =IF(CKI71*CKH71=0,"",CKI71*CKH71) ->  | CKL71: Pallet Charge | CKM71: 15 | CKP71: Pallet Charge | CKW71: =ROUNDUP(SUM(CKU45:CKU52),0) -> 0 | CKX71: =CKM71 -> 15 | CKZ71: =IF(CKX71*CKW71=0,"",CKX71*CKW71) ->  | CLA71: Pallet Charge | CLB71: 15 | CLE71: Pallet Charge | CLL71: =ROUNDUP(SUM(CLJ45:CLJ52),0) -> 0 | CLM71: =CLB71 -> 15 | CLO71: =IF(CLM71*CLL71=0,"",CLM71*CLL71) ->  | CLP71: Pallet Charge | CLQ71: 15 | CLT71: Pallet Charge | CMA71: =ROUNDUP(SUM(CLY45:CLY52),0) -> 0 | CMB71: =CLQ71 -> 15 | CMD71: =IF(CMB71*CMA71=0,"",CMB71*CMA71) ->  | CME71: Pallet Charge | CMF71: 15 | CMI71: Pallet Charge | CMP71: =ROUNDUP(SUM(CMN45:CMN52),0) -> 0 | CMQ71: =CMF71 -> 15 | CMS71: =IF(CMQ71*CMP71=0,"",CMQ71*CMP71) ->  | CMT71: Pallet Charge | CMU71: 15 | CMX71: Pallet Charge | CNE71: =ROUNDUP(SUM(CNC45:CNC52),0) -> 0 | CNF71: =CMU71 -> 15 | CNH71: =IF(CNF71*CNE71=0,"",CNF71*CNE71) ->  | CNI71: Pallet Charge | CNJ71: 15 | CNM71: Pallet Charge | CNT71: =ROUNDUP(SUM(CNR45:CNR52),0) -> 0 | CNU71: =CNJ71 -> 15 | CNW71: =IF(CNU71*CNT71=0,"",CNU71*CNT71) ->  | CNX71: Pallet Charge | CNY71: 15 | COB71: Pallet Charge | COI71: =ROUNDUP(SUM(COG45:COG52),0) -> 0 | COJ71: =CNY71 -> 15 | COL71: =IF(COJ71*COI71=0,"",COJ71*COI71) ->  | COM71: Pallet Charge | CON71: 15 | COQ71: Pallet Charge | COX71: =ROUNDUP(SUM(COV45:COV52),0) -> 0 | COY71: =CON71 -> 15 | CPA71: =IF(COY71*COX71=0,"",COY71*COX71) ->  | CPB71: Pallet Charge | CPC71: 15 | CPF71: Pallet Charge | CPM71: =ROUNDUP(SUM(CPK45:CPK52),0) -> 0 | CPN71: =CPC71 -> 15 | CPP71: =IF(CPN71*CPM71=0,"",CPN71*CPM71) ->  | CPQ71: Pallet Charge | CPR71: 15 | CPU71: Pallet Charge | CQB71: =ROUNDUP(SUM(CPZ45:CPZ52),0) -> 0 | CQC71: =CPR71 -> 15 | CQE71: =IF(CQC71*CQB71=0,"",CQC71*CQB71) ->  | CQF71: Pallet Charge | CQG71: 15 | CQJ71: Pallet Charge | CQQ71: =ROUNDUP(SUM(CQO45:CQO52),0) -> 0 | CQR71: =CQG71 -> 15 | CQT71: =IF(CQR71*CQQ71=0,"",CQR71*CQQ71) ->  | CQU71: Pallet Charge | CQV71: 15 | CQY71: Pallet Charge | CRF71: =ROUNDUP(SUM(CRD45:CRD52),0) -> 0 | CRG71: =CQV71 -> 15 | CRI71: =IF(CRG71*CRF71=0,"",CRG71*CRF71) ->  | CRJ71: Pallet Charge | CRK71: 15 | CRN71: Pallet Charge | CRU71: =ROUNDUP(SUM(CRS45:CRS52),0) -> 0 | CRV71: =CRK71 -> 15 | CRX71: =IF(CRV71*CRU71=0,"",CRV71*CRU71) ->  | CRY71: Pallet Charge | CRZ71: 15 | CSC71: Pallet Charge | CSJ71: =ROUNDUP(SUM(CSH45:CSH52),0) -> 0 | CSK71: =CRZ71 -> 15 | CSM71: =IF(CSK71*CSJ71=0,"",CSK71*CSJ71) ->  | CSN71: Pallet Charge | CSO71: 15 | CSR71: Pallet Charge | CSY71: =ROUNDUP(SUM(CSW45:CSW52),0) -> 0 | CSZ71: =CSO71 -> 15 | CTB71: =IF(CSZ71*CSY71=0,"",CSZ71*CSY71) ->  | CTC71: Pallet Charge | CTD71: 15 | CTG71: Pallet Charge | CTN71: =ROUNDUP(SUM(CTL45:CTL52),0) -> 0 | CTO71: =CTD71 -> 15 | CTQ71: =IF(CTO71*CTN71=0,"",CTO71*CTN71) ->  | CTR71: Pallet Charge | CTS71: 15 | CTV71: Pallet Charge | CUC71: =ROUNDUP(SUM(CUA45:CUA52),0) -> 0 | CUD71: =CTS71 -> 15 | CUF71: =IF(CUD71*CUC71=0,"",CUD71*CUC71) ->  | CUG71: Pallet Charge | CUH71: 15 | CUK71: Pallet Charge | CUR71: =ROUNDUP(SUM(CUP45:CUP52),0) -> 0 | CUS71: =CUH71 -> 15 | CUU71: =IF(CUS71*CUR71=0,"",CUS71*CUR71) ->  | CUV71: Pallet Charge | CUW71: 15 | CUZ71: Pallet Charge | CVG71: =ROUNDUP(SUM(CVE45:CVE52),0) -> 0 | CVH71: =CUW71 -> 15 | CVJ71: =IF(CVH71*CVG71=0,"",CVH71*CVG71) ->  | CVK71: Pallet Charge | CVL71: 15 | CVO71: Pallet Charge | CVV71: =ROUNDUP(SUM(CVT45:CVT52),0) -> 0 | CVW71: =CVL71 -> 15 | CVY71: =IF(CVW71*CVV71=0,"",CVW71*CVV71) ->  | CVZ71: Pallet Charge | CWA71: 15 | CWD71: Pallet Charge | CWK71: =ROUNDUP(SUM(CWI45:CWI52),0) -> 0 | CWL71: =CWA71 -> 15 | CWN71: =IF(CWL71*CWK71=0,"",CWL71*CWK71) ->  | CWO71: Pallet Charge | CWP71: 15 | CWS71: Pallet Charge | CWZ71: =ROUNDUP(SUM(CWX45:CWX52),0) -> 0 | CXA71: =CWP71 -> 15 | CXC71: =IF(CXA71*CWZ71=0,"",CXA71*CWZ71) ->  | CXD71: Pallet Charge | CXE71: 15 | CXH71: Pallet Charge | CXO71: =ROUNDUP(SUM(CXM45:CXM52),0) -> 0 | CXP71: =CXE71 -> 15 | CXR71: =IF(CXP71*CXO71=0,"",CXP71*CXO71) ->  | CXS71: Pallet Charge | CXT71: 15 | CXW71: Pallet Charge | CYD71: =ROUNDUP(SUM(CYB45:CYB52),0) -> 0 | CYE71: =CXT71 -> 15 | CYG71: =IF(CYE71*CYD71=0,"",CYE71*CYD71) ->  | CYH71: Pallet Charge | CYI71: 15 | CYL71: Pallet Charge | CYS71: =ROUNDUP(SUM(CYQ45:CYQ52),0) -> 0 | CYT71: =CYI71 -> 15 | CYV71: =IF(CYT71*CYS71=0,"",CYT71*CYS71) ->  | CYW71: Pallet Charge | CYX71: 15 | CZA71: Pallet Charge | CZH71: =ROUNDUP(SUM(CZF45:CZF52),0) -> 0 | CZI71: =CYX71 -> 15 | CZK71: =IF(CZI71*CZH71=0,"",CZI71*CZH71) ->  | CZL71: Pallet Charge | CZM71: 15 | CZP71: Pallet Charge | CZW71: =ROUNDUP(SUM(CZU45:CZU52),0) -> 0 | CZX71: =CZM71 -> 15 | CZZ71: =IF(CZX71*CZW71=0,"",CZX71*CZW71) ->  | DAA71: Pallet Charge | DAB71: 15 | DAE71: Pallet Charge | DAL71: =ROUNDUP(SUM(DAJ45:DAJ52),0) -> 0 | DAM71: =DAB71 -> 15 | DAO71: =IF(DAM71*DAL71=0,"",DAM71*DAL71) ->  | DAP71: Pallet Charge | DAQ71: 15 | DAT71: Pallet Charge | DBA71: =ROUNDUP(SUM(DAY45:DAY52),0) -> 0 | DBB71: =DAQ71 -> 15 | DBD71: =IF(DBB71*DBA71=0,"",DBB71*DBA71) ->  | DBE71: Pallet Charge | DBF71: 15 | DBI71: Pallet Charge | DBP71: =ROUNDUP(SUM(DBN45:DBN52),0) -> 0 | DBQ71: =DBF71 -> 15 | DBS71: =IF(DBQ71*DBP71=0,"",DBQ71*DBP71) ->  | DBT71: Pallet Charge | DBU71: 15 | DBX71: Pallet Charge | DCE71: =ROUNDUP(SUM(DCC45:DCC52),0) -> 0 | DCF71: =DBU71 -> 15 | DCH71: =IF(DCF71*DCE71=0,"",DCF71*DCE71) ->  | DCI71: Pallet Charge | DCJ71: 15 | DCM71: Pallet Charge | DCT71: =ROUNDUP(SUM(DCR45:DCR52),0) -> 0 | DCU71: =DCJ71 -> 15 | DCW71: =IF(DCU71*DCT71=0,"",DCU71*DCT71) ->  | DCX71: Pallet Charge | DCY71: 15 | DDB71: Pallet Charge | DDI71: =ROUNDUP(SUM(DDG45:DDG52),0) -> 0 | DDJ71: =DCY71 -> 15 | DDL71: =IF(DDJ71*DDI71=0,"",DDJ71*DDI71) ->  | DDM71: Pallet Charge | DDN71: 15 | DDQ71: Pallet Charge | DDX71: =ROUNDUP(SUM(DDV45:DDV52),0) -> 0 | DDY71: =DDN71 -> 15 | DEA71: =IF(DDY71*DDX71=0,"",DDY71*DDX71) ->  | DEB71: Pallet Charge | DEC71: 15 | DEF71: Pallet Charge | DEM71: =ROUNDUP(SUM(DEK45:DEK52),0) -> 0 | DEN71: =DEC71 -> 15 | DEP71: =IF(DEN71*DEM71=0,"",DEN71*DEM71) ->  | DEQ71: Pallet Charge | DER71: 15 | DEU71: Pallet Charge | DFB71: =ROUNDUP(SUM(DEZ45:DEZ52),0) -> 0 | DFC71: =DER71 -> 15 | DFE71: =IF(DFC71*DFB71=0,"",DFC71*DFB71) ->  | DFF71: Pallet Charge | DFG71: 15 | DFJ71: Pallet Charge | DFQ71: =ROUNDUP(SUM(DFO45:DFO52),0) -> 0 | DFR71: =DFG71 -> 15 | DFT71: =IF(DFR71*DFQ71=0,"",DFR71*DFQ71) ->  | DFU71: Pallet Charge | DFV71: 15 | DFY71: Pallet Charge | DGF71: =ROUNDUP(SUM(DGD45:DGD52),0) -> 0 | DGG71: =DFV71 -> 15 | DGI71: =IF(DGG71*DGF71=0,"",DGG71*DGF71) ->  | DGJ71: Pallet Charge | DGK71: 15 | DGN71: Pallet Charge | DGU71: =ROUNDUP(SUM(DGS45:DGS52),0) -> 0 | DGV71: =DGK71 -> 15 | DGX71: =IF(DGV71*DGU71=0,"",DGV71*DGU71) ->  | DGY71: Pallet Charge | DGZ71: 15 | DHC71: Pallet Charge | DHJ71: =ROUNDUP(SUM(DHH45:DHH52),0) -> 0 | DHK71: =DGZ71 -> 15 | DHM71: =IF(DHK71*DHJ71=0,"",DHK71*DHJ71) ->  | DHN71: Pallet Charge | DHO71: 15 | DHR71: Pallet Charge | DHY71: =ROUNDUP(SUM(DHW45:DHW52),0) -> 0 | DHZ71: =DHO71 -> 15 | DIB71: =IF(DHZ71*DHY71=0,"",DHZ71*DHY71) ->  | DIC71: Pallet Charge | DID71: 15 | DIG71: Pallet Charge | DIN71: =ROUNDUP(SUM(DIL45:DIL52),0) -> 0 | DIO71: =DID71 -> 15 | DIQ71: =IF(DIO71*DIN71=0,"",DIO71*DIN71) ->  | DIR71: Pallet Charge | DIS71: 15 | DIV71: Pallet Charge | DJC71: =ROUNDUP(SUM(DJA45:DJA52),0) -> 0 | DJD71: =DIS71 -> 15 | DJF71: =IF(DJD71*DJC71=0,"",DJD71*DJC71) ->  | DJG71: Pallet Charge | DJH71: 15 | DJK71: Pallet Charge | DJR71: =ROUNDUP(SUM(DJP45:DJP52),0) -> 0 | DJS71: =DJH71 -> 15 | DJU71: =IF(DJS71*DJR71=0,"",DJS71*DJR71) ->  | DJV71: Pallet Charge | DJW71: 15 | DJZ71: Pallet Charge | DKG71: =ROUNDUP(SUM(DKE45:DKE52),0) -> 0 | DKH71: =DJW71 -> 15 | DKJ71: =IF(DKH71*DKG71=0,"",DKH71*DKG71) ->  | DKK71: Pallet Charge | DKL71: 15 | DKO71: Pallet Charge | DKV71: =ROUNDUP(SUM(DKT45:DKT52),0) -> 0 | DKW71: =DKL71 -> 15 | DKY71: =IF(DKW71*DKV71=0,"",DKW71*DKV71) ->  | DKZ71: Pallet Charge | DLA71: 15 | DLD71: Pallet Charge | DLK71: =ROUNDUP(SUM(DLI45:DLI52),0) -> 0 | DLL71: =DLA71 -> 15 | DLN71: =IF(DLL71*DLK71=0,"",DLL71*DLK71) ->  | DLO71: Pallet Charge | DLP71: 15 | DLS71: Pallet Charge | DLZ71: =ROUNDUP(SUM(DLX45:DLX52),0) -> 0 | DMA71: =DLP71 -> 15 | DMC71: =IF(DMA71*DLZ71=0,"",DMA71*DLZ71) ->  | DMD71: Pallet Charge | DME71: 15 | DMH71: Pallet Charge | DMO71: =ROUNDUP(SUM(DMM45:DMM52),0) -> 0 | DMP71: =DME71 -> 15 | DMR71: =IF(DMP71*DMO71=0,"",DMP71*DMO71) ->  | DMS71: Pallet Charge | DMT71: 15 | DMW71: Pallet Charge | DND71: =ROUNDUP(SUM(DNB45:DNB52),0) -> 0 | DNE71: =DMT71 -> 15 | DNG71: =IF(DNE71*DND71=0,"",DNE71*DND71) ->  | DNH71: Pallet Charge | DNI71: 15 | DNL71: Pallet Charge | DNS71: =ROUNDUP(SUM(DNQ45:DNQ52),0) -> 0 | DNT71: =DNI71 -> 15 | DNV71: =IF(DNT71*DNS71=0,"",DNT71*DNS71) ->  | DNW71: Pallet Charge | DNX71: 15 | DOA71: Pallet Charge | DOH71: =ROUNDUP(SUM(DOF45:DOF52),0) -> 0 | DOI71: =DNX71 -> 15 | DOK71: =IF(DOI71*DOH71=0,"",DOI71*DOH71) ->  | DOL71: Pallet Charge | DOM71: 15 | DOP71: Pallet Charge | DOW71: =ROUNDUP(SUM(DOU45:DOU52),0) -> 0 | DOX71: =DOM71 -> 15 | DOZ71: =IF(DOX71*DOW71=0,"",DOX71*DOW71) ->  | DPA71: Pallet Charge | DPB71: 15 | DPE71: Pallet Charge | DPL71: =ROUNDUP(SUM(DPJ45:DPJ52),0) -> 0 | DPM71: =DPB71 -> 15 | DPO71: =IF(DPM71*DPL71=0,"",DPM71*DPL71) ->  | DPP71: Pallet Charge | DPQ71: 15 | DPT71: Pallet Charge | DQA71: =ROUNDUP(SUM(DPY45:DPY52),0) -> 0 | DQB71: =DPQ71 -> 15 | DQD71: =IF(DQB71*DQA71=0,"",DQB71*DQA71) ->  | DQE71: Pallet Charge | DQF71: 15 | DQI71: Pallet Charge | DQP71: =ROUNDUP(SUM(DQN45:DQN52),0) -> 0 | DQQ71: =DQF71 -> 15 | DQS71: =IF(DQQ71*DQP71=0,"",DQQ71*DQP71) ->  | DQT71: Pallet Charge | DQU71: 15 | DQX71: Pallet Charge | DRE71: =ROUNDUP(SUM(DRC45:DRC52),0) -> 0 | DRF71: =DQU71 -> 15 | DRH71: =IF(DRF71*DRE71=0,"",DRF71*DRE71) ->  | DRI71: Pallet Charge | DRJ71: 15 | DRM71: Pallet Charge | DRT71: =ROUNDUP(SUM(DRR45:DRR52),0) -> 0 | DRU71: =DRJ71 -> 15 | DRW71: =IF(DRU71*DRT71=0,"",DRU71*DRT71) ->  | DRX71: Pallet Charge | DRY71: 15 | DSB71: Pallet Charge | DSI71: =ROUNDUP(SUM(DSG45:DSG52),0) -> 0 | DSJ71: =DRY71 -> 15 | DSL71: =IF(DSJ71*DSI71=0,"",DSJ71*DSI71) ->  | DSM71: Pallet Charge | DSN71: 15 | DSQ71: Pallet Charge | DSX71: =ROUNDUP(SUM(DSV45:DSV52),0) -> 0 | DSY71: =DSN71 -> 15 | DTA71: =IF(DSY71*DSX71=0,"",DSY71*DSX71) ->  | DTB71: Pallet Charge | DTC71: 15 | DTF71: Pallet Charge | DTM71: =ROUNDUP(SUM(DTK45:DTK52),0) -> 0 | DTN71: =DTC71 -> 15 | DTP71: =IF(DTN71*DTM71=0,"",DTN71*DTM71) ->  | DTQ71: Pallet Charge | DTR71: 15 | DTU71: Pallet Charge | DUB71: =ROUNDUP(SUM(DTZ45:DTZ52),0) -> 0 | DUC71: =DTR71 -> 15 | DUE71: =IF(DUC71*DUB71=0,"",DUC71*DUB71) ->  | DUF71: Pallet Charge | DUG71: 15 | DUJ71: Pallet Charge | DUQ71: =ROUNDUP(SUM(DUO45:DUO52),0) -> 0 | DUR71: =DUG71 -> 15 | DUT71: =IF(DUR71*DUQ71=0,"",DUR71*DUQ71) ->  | DUU71: Pallet Charge | DUV71: 15 | DUY71: Pallet Charge | DVF71: =ROUNDUP(SUM(DVD45:DVD52),0) -> 0 | DVG71: =DUV71 -> 15 | DVI71: =IF(DVG71*DVF71=0,"",DVG71*DVF71) ->  | DVJ71: Pallet Charge | DVK71: 15 | DVN71: Pallet Charge | DVU71: =ROUNDUP(SUM(DVS45:DVS52),0) -> 0 | DVV71: =DVK71 -> 15 | DVX71: =IF(DVV71*DVU71=0,"",DVV71*DVU71) ->  | DVY71: Pallet Charge | DVZ71: 15 | DWC71: Pallet Charge | DWJ71: =ROUNDUP(SUM(DWH45:DWH52),0) -> 0 | DWK71: =DVZ71 -> 15 | DWM71: =IF(DWK71*DWJ71=0,"",DWK71*DWJ71) ->  | DWN71: Pallet Charge | DWO71: 15 | DWR71: Pallet Charge | DWY71: =ROUNDUP(SUM(DWW45:DWW52),0) -> 0 | DWZ71: =DWO71 -> 15 | DXB71: =IF(DWZ71*DWY71=0,"",DWZ71*DWY71) ->  | DXC71: Pallet Charge | DXD71: 15 | DXG71: Pallet Charge | DXN71: =ROUNDUP(SUM(DXL45:DXL52),0) -> 0 | DXO71: =DXD71 -> 15 | DXQ71: =IF(DXO71*DXN71=0,"",DXO71*DXN71) ->  | DXR71: Pallet Charge | DXS71: 15 | DXV71: Pallet Charge | DYC71: =ROUNDUP(SUM(DYA45:DYA52),0) -> 0 | DYD71: =DXS71 -> 15 | DYF71: =IF(DYD71*DYC71=0,"",DYD71*DYC71) ->  | DYG71: Pallet Charge | DYH71: 15 | DYK71: Pallet Charge | DYR71: =ROUNDUP(SUM(DYP45:DYP52),0) -> 0 | DYS71: =DYH71 -> 15 | DYU71: =IF(DYS71*DYR71=0,"",DYS71*DYR71) ->  | DYV71: Pallet Charge | DYW71: 15 | DYZ71: Pallet Charge | DZG71: =ROUNDUP(SUM(DZE45:DZE52),0) -> 0 | DZH71: =DYW71 -> 15 | DZJ71: =IF(DZH71*DZG71=0,"",DZH71*DZG71) ->  | DZK71: Pallet Charge | DZL71: 15 | DZO71: Pallet Charge | DZV71: =ROUNDUP(SUM(DZT45:DZT52),0) -> 0 | DZW71: =DZL71 -> 15 | DZY71: =IF(DZW71*DZV71=0,"",DZW71*DZV71) ->  | DZZ71: Pallet Charge | EAA71: 15 | EAD71: Pallet Charge | EAK71: =ROUNDUP(SUM(EAI45:EAI52),0) -> 0 | EAL71: =EAA71 -> 15 | EAN71: =IF(EAL71*EAK71=0,"",EAL71*EAK71) ->  | EAO71: Pallet Charge | EAP71: 15 | EAS71: Pallet Charge | EAZ71: =ROUNDUP(SUM(EAX45:EAX52),0) -> 0 | EBA71: =EAP71 -> 15 | EBC71: =IF(EBA71*EAZ71=0,"",EBA71*EAZ71) ->  | EBD71: Pallet Charge | EBE71: 15 | EBH71: Pallet Charge | EBO71: =ROUNDUP(SUM(EBM45:EBM52),0) -> 0 | EBP71: =EBE71 -> 15 | EBR71: =IF(EBP71*EBO71=0,"",EBP71*EBO71) ->  | EBS71: Pallet Charge | EBT71: 15 | EBW71: Pallet Charge | ECD71: =ROUNDUP(SUM(ECB45:ECB52),0) -> 0 | ECE71: =EBT71 -> 15 | ECG71: =IF(ECE71*ECD71=0,"",ECE71*ECD71) ->  | ECH71: Pallet Charge | ECI71: 15 | ECL71: Pallet Charge | ECS71: =ROUNDUP(SUM(ECQ45:ECQ52),0) -> 0 | ECT71: =ECI71 -> 15 | ECV71: =IF(ECT71*ECS71=0,"",ECT71*ECS71) ->  | ECW71: Pallet Charge | ECX71: 15 | EDA71: Pallet Charge | EDH71: =ROUNDUP(SUM(EDF45:EDF52),0) -> 0 | EDI71: =ECX71 -> 15 | EDK71: =IF(EDI71*EDH71=0,"",EDI71*EDH71) ->  | EDL71: Pallet Charge | EDM71: 15 | EDP71: Pallet Charge | EDW71: =ROUNDUP(SUM(EDU45:EDU52),0) -> 0 | EDX71: =EDM71 -> 15 | EDZ71: =IF(EDX71*EDW71=0,"",EDX71*EDW71) ->  | EEA71: Pallet Charge | EEB71: 15 | EEE71: Pallet Charge | EEL71: =ROUNDUP(SUM(EEJ45:EEJ52),0) -> 0 | EEM71: =EEB71 -> 15 | EEO71: =IF(EEM71*EEL71=0,"",EEM71*EEL71) ->  | EEP71: Pallet Charge | EEQ71: 15 | EET71: Pallet Charge | EFA71: =ROUNDUP(SUM(EEY45:EEY52),0) -> 0 | EFB71: =EEQ71 -> 15 | EFD71: =IF(EFB71*EFA71=0,"",EFB71*EFA71) ->  | EFE71: Pallet Charge | EFF71: 15 | EFI71: Pallet Charge | EFP71: =ROUNDUP(SUM(EFN45:EFN52),0) -> 0 | EFQ71: =EFF71 -> 15 | EFS71: =IF(EFQ71*EFP71=0,"",EFQ71*EFP71) ->  | EFT71: Pallet Charge | EFU71: 15 | EFX71: Pallet Charge | EGE71: =ROUNDUP(SUM(EGC45:EGC52),0) -> 0 | EGF71: =EFU71 -> 15 | EGH71: =IF(EGF71*EGE71=0,"",EGF71*EGE71) ->  | EGI71: Pallet Charge | EGJ71: 15 | EGM71: Pallet Charge | EGT71: =ROUNDUP(SUM(EGR45:EGR52),0) -> 0 | EGU71: =EGJ71 -> 15 | EGW71: =IF(EGU71*EGT71=0,"",EGU71*EGT71) ->  | EGX71: Pallet Charge | EGY71: 15 | EHB71: Pallet Charge | EHI71: =ROUNDUP(SUM(EHG45:EHG52),0) -> 0 | EHJ71: =EGY71 -> 15 | EHL71: =IF(EHJ71*EHI71=0,"",EHJ71*EHI71) ->  | EHM71: Pallet Charge | EHN71: 15 | EHQ71: Pallet Charge | EHX71: =ROUNDUP(SUM(EHV45:EHV52),0) -> 0 | EHY71: =EHN71 -> 15 | EIA71: =IF(EHY71*EHX71=0,"",EHY71*EHX71) ->  | EIB71: Pallet Charge | EIC71: 15 | EIF71: Pallet Charge | EIM71: =ROUNDUP(SUM(EIK45:EIK52),0) -> 0 | EIN71: =EIC71 -> 15 | EIP71: =IF(EIN71*EIM71=0,"",EIN71*EIM71) ->  | EIQ71: Pallet Charge | EIR71: 15 | EIU71: Pallet Charge | EJB71: =ROUNDUP(SUM(EIZ45:EIZ52),0) -> 0 | EJC71: =EIR71 -> 15 | EJE71: =IF(EJC71*EJB71=0,"",EJC71*EJB71) ->  | EJF71: Pallet Charge | EJG71: 15 | EJJ71: Pallet Charge | EJQ71: =ROUNDUP(SUM(EJO45:EJO52),0) -> 0 | EJR71: =EJG71 -> 15 | EJT71: =IF(EJR71*EJQ71=0,"",EJR71*EJQ71) ->  | EJU71: Pallet Charge | EJV71: 15 | EJY71: Pallet Charge | EKF71: =ROUNDUP(SUM(EKD45:EKD52),0) -> 0 | EKG71: =EJV71 -> 15 | EKI71: =IF(EKG71*EKF71=0,"",EKG71*EKF71) ->  | EKJ71: Pallet Charge | EKK71: 15 | EKN71: Pallet Charge | EKU71: =ROUNDUP(SUM(EKS45:EKS52),0) -> 0 | EKV71: =EKK71 -> 15 | EKX71: =IF(EKV71*EKU71=0,"",EKV71*EKU71) ->  | EKY71: Pallet Charge | EKZ71: 15 | ELC71: Pallet Charge | ELJ71: =ROUNDUP(SUM(ELH45:ELH52),0) -> 0 | ELK71: =EKZ71 -> 15 | ELM71: =IF(ELK71*ELJ71=0,"",ELK71*ELJ71) ->  | ELN71: Pallet Charge | ELO71: 15 | ELR71: Pallet Charge | ELY71: =ROUNDUP(SUM(ELW45:ELW52),0) -> 0 | ELZ71: =ELO71 -> 15 | EMB71: =IF(ELZ71*ELY71=0,"",ELZ71*ELY71) ->  | EMC71: Pallet Charge | EMD71: 15 | EMG71: Pallet Charge | EMN71: =ROUNDUP(SUM(EML45:EML52),0) -> 0 | EMO71: =EMD71 -> 15 | EMQ71: =IF(EMO71*EMN71=0,"",EMO71*EMN71) ->  | EMR71: Pallet Charge | EMS71: 15 | EMV71: Pallet Charge | ENC71: =ROUNDUP(SUM(ENA45:ENA52),0) -> 0 | END71: =EMS71 -> 15 | ENF71: =IF(END71*ENC71=0,"",END71*ENC71) ->  | ENG71: Pallet Charge | ENH71: 15 | ENK71: Pallet Charge | ENR71: =ROUNDUP(SUM(ENP45:ENP52),0) -> 0 | ENS71: =ENH71 -> 15 | ENU71: =IF(ENS71*ENR71=0,"",ENS71*ENR71) ->  | ENV71: Pallet Charge | ENW71: 15 | ENZ71: Pallet Charge | EOG71: =ROUNDUP(SUM(EOE45:EOE52),0) -> 0 | EOH71: =ENW71 -> 15 | EOJ71: =IF(EOH71*EOG71=0,"",EOH71*EOG71) ->  | EOK71: Pallet Charge | EOL71: 15 | EOO71: Pallet Charge | EOV71: =ROUNDUP(SUM(EOT45:EOT52),0) -> 0 | EOW71: =EOL71 -> 15 | EOY71: =IF(EOW71*EOV71=0,"",EOW71*EOV71) ->  | EOZ71: Pallet Charge | EPA71: 15 | EPD71: Pallet Charge | EPK71: =ROUNDUP(SUM(EPI45:EPI52),0) -> 0 | EPL71: =EPA71 -> 15 | EPN71: =IF(EPL71*EPK71=0,"",EPL71*EPK71) ->  | EPO71: Pallet Charge | EPP71: 15 | EPS71: Pallet Charge | EPZ71: =ROUNDUP(SUM(EPX45:EPX52),0) -> 0 | EQA71: =EPP71 -> 15 | EQC71: =IF(EQA71*EPZ71=0,"",EQA71*EPZ71) ->  | EQD71: Pallet Charge | EQE71: 15 | EQH71: Pallet Charge | EQO71: =ROUNDUP(SUM(EQM45:EQM52),0) -> 0 | EQP71: =EQE71 -> 15 | EQR71: =IF(EQP71*EQO71=0,"",EQP71*EQO71) ->  | EQS71: Pallet Charge | EQT71: 15 | EQW71: Pallet Charge | ERD71: =ROUNDUP(SUM(ERB45:ERB52),0) -> 0 | ERE71: =EQT71 -> 15 | ERG71: =IF(ERE71*ERD71=0,"",ERE71*ERD71) ->  | ERH71: Pallet Charge | ERI71: 15 | ERL71: Pallet Charge | ERS71: =ROUNDUP(SUM(ERQ45:ERQ52),0) -> 0 | ERT71: =ERI71 -> 15 | ERV71: =IF(ERT71*ERS71=0,"",ERT71*ERS71) ->  | ERW71: Pallet Charge | ERX71: 15 | ESA71: Pallet Charge | ESH71: =ROUNDUP(SUM(ESF45:ESF52),0) -> 0 | ESI71: =ERX71 -> 15 | ESK71: =IF(ESI71*ESH71=0,"",ESI71*ESH71) ->  | ESL71: Pallet Charge | ESM71: 15 | ESP71: Pallet Charge | ESW71: =ROUNDUP(SUM(ESU45:ESU52),0) -> 0 | ESX71: =ESM71 -> 15 | ESZ71: =IF(ESX71*ESW71=0,"",ESX71*ESW71) ->  | ETA71: Pallet Charge | ETB71: 15 | ETE71: Pallet Charge | ETL71: =ROUNDUP(SUM(ETJ45:ETJ52),0) -> 0 | ETM71: =ETB71 -> 15 | ETO71: =IF(ETM71*ETL71=0,"",ETM71*ETL71) ->  | ETP71: Pallet Charge | ETQ71: 15 | ETT71: Pallet Charge | EUA71: =ROUNDUP(SUM(ETY45:ETY52),0) -> 0 | EUB71: =ETQ71 -> 15 | EUD71: =IF(EUB71*EUA71=0,"",EUB71*EUA71) ->  | EUE71: Pallet Charge | EUF71: 15 | EUI71: Pallet Charge | EUP71: =ROUNDUP(SUM(EUN45:EUN52),0) -> 0 | EUQ71: =EUF71 -> 15 | EUS71: =IF(EUQ71*EUP71=0,"",EUQ71*EUP71) ->  | EUT71: Pallet Charge | EUU71: 15 | EUX71: Pallet Charge | EVE71: =ROUNDUP(SUM(EVC45:EVC52),0) -> 0 | EVF71: =EUU71 -> 15 | EVH71: =IF(EVF71*EVE71=0,"",EVF71*EVE71) ->  | EVI71: Pallet Charge | EVJ71: 15 | EVM71: Pallet Charge | EVT71: =ROUNDUP(SUM(EVR45:EVR52),0) -> 0 | EVU71: =EVJ71 -> 15 | EVW71: =IF(EVU71*EVT71=0,"",EVU71*EVT71) ->  | EVX71: Pallet Charge | EVY71: 15 | EWB71: Pallet Charge | EWI71: =ROUNDUP(SUM(EWG45:EWG52),0) -> 0 | EWJ71: =EVY71 -> 15 | EWL71: =IF(EWJ71*EWI71=0,"",EWJ71*EWI71) ->  | EWM71: Pallet Charge | EWN71: 15 | EWQ71: Pallet Charge | EWX71: =ROUNDUP(SUM(EWV45:EWV52),0) -> 0 | EWY71: =EWN71 -> 15 | EXA71: =IF(EWY71*EWX71=0,"",EWY71*EWX71) ->  | EXB71: Pallet Charge | EXC71: 15 | EXF71: Pallet Charge | EXM71: =ROUNDUP(SUM(EXK45:EXK52),0) -> 0 | EXN71: =EXC71 -> 15 | EXP71: =IF(EXN71*EXM71=0,"",EXN71*EXM71) ->  | EXQ71: Pallet Charge | EXR71: 15 | EXU71: Pallet Charge | EYB71: =ROUNDUP(SUM(EXZ45:EXZ52),0) -> 0 | EYC71: =EXR71 -> 15 | EYE71: =IF(EYC71*EYB71=0,"",EYC71*EYB71) ->  | EYF71: Pallet Charge | EYG71: 15 | EYJ71: Pallet Charge | EYQ71: =ROUNDUP(SUM(EYO45:EYO52),0) -> 0 | EYR71: =EYG71 -> 15 | EYT71: =IF(EYR71*EYQ71=0,"",EYR71*EYQ71) ->  | EYU71: Pallet Charge | EYV71: 15 | EYY71: Pallet Charge | EZF71: =ROUNDUP(SUM(EZD45:EZD52),0) -> 0 | EZG71: =EYV71 -> 15 | EZI71: =IF(EZG71*EZF71=0,"",EZG71*EZF71) ->  | EZJ71: Pallet Charge | EZK71: 15 | EZN71: Pallet Charge | EZU71: =ROUNDUP(SUM(EZS45:EZS52),0) -> 0 | EZV71: =EZK71 -> 15 | EZX71: =IF(EZV71*EZU71=0,"",EZV71*EZU71) ->  | EZY71: Pallet Charge | EZZ71: 15 | FAC71: Pallet Charge | FAJ71: =ROUNDUP(SUM(FAH45:FAH52),0) -> 0 | FAK71: =EZZ71 -> 15 | FAM71: =IF(FAK71*FAJ71=0,"",FAK71*FAJ71) ->  | FAN71: Pallet Charge | FAO71: 15 | FAR71: Pallet Charge | FAY71: =ROUNDUP(SUM(FAW45:FAW52),0) -> 0 | FAZ71: =FAO71 -> 15 | FBB71: =IF(FAZ71*FAY71=0,"",FAZ71*FAY71) ->  | FBC71: Pallet Charge | FBD71: 15 | FBG71: Pallet Charge | FBN71: =ROUNDUP(SUM(FBL45:FBL52),0) -> 0 | FBO71: =FBD71 -> 15 | FBQ71: =IF(FBO71*FBN71=0,"",FBO71*FBN71) ->  | FBR71: Pallet Charge | FBS71: 15 | FBV71: Pallet Charge | FCC71: =ROUNDUP(SUM(FCA45:FCA52),0) -> 0 | FCD71: =FBS71 -> 15 | FCF71: =IF(FCD71*FCC71=0,"",FCD71*FCC71) ->  | FCG71: Pallet Charge | FCH71: 15 | FCK71: Pallet Charge | FCR71: =ROUNDUP(SUM(FCP45:FCP52),0) -> 0 | FCS71: =FCH71 -> 15 | FCU71: =IF(FCS71*FCR71=0,"",FCS71*FCR71) ->  | FCV71: Pallet Charge | FCW71: 15 | FCZ71: Pallet Charge | FDG71: =ROUNDUP(SUM(FDE45:FDE52),0) -> 0 | FDH71: =FCW71 -> 15 | FDJ71: =IF(FDH71*FDG71=0,"",FDH71*FDG71) ->  | FDK71: Pallet Charge | FDL71: 15 | FDO71: Pallet Charge | FDV71: =ROUNDUP(SUM(FDT45:FDT52),0) -> 0 | FDW71: =FDL71 -> 15 | FDY71: =IF(FDW71*FDV71=0,"",FDW71*FDV71) ->  | FDZ71: Pallet Charge | FEA71: 15 | FED71: Pallet Charge | FEK71: =ROUNDUP(SUM(FEI45:FEI52),0) -> 0 | FEL71: =FEA71 -> 15 | FEN71: =IF(FEL71*FEK71=0,"",FEL71*FEK71) ->  | FEO71: Pallet Charge | FEP71: 15 | FES71: Pallet Charge | FEZ71: =ROUNDUP(SUM(FEX45:FEX52),0) -> 0 | FFA71: =FEP71 -> 15 | FFC71: =IF(FFA71*FEZ71=0,"",FFA71*FEZ71) ->  | FFD71: Pallet Charge | FFE71: 15 | FFH71: Pallet Charge | FFO71: =ROUNDUP(SUM(FFM45:FFM52),0) -> 0 | FFP71: =FFE71 -> 15 | FFR71: =IF(FFP71*FFO71=0,"",FFP71*FFO71) ->  | FFS71: Pallet Charge | FFT71: 15 | FFW71: Pallet Charge | FGD71: =ROUNDUP(SUM(FGB45:FGB52),0) -> 0 | FGE71: =FFT71 -> 15 | FGG71: =IF(FGE71*FGD71=0,"",FGE71*FGD71) ->  | FGH71: Pallet Charge | FGI71: 15 | FGL71: Pallet Charge | FGS71: =ROUNDUP(SUM(FGQ45:FGQ52),0) -> 0 | FGT71: =FGI71 -> 15 | FGV71: =IF(FGT71*FGS71=0,"",FGT71*FGS71) ->  | FGW71: Pallet Charge | FGX71: 15 | FHA71: Pallet Charge | FHH71: =ROUNDUP(SUM(FHF45:FHF52),0) -> 0 | FHI71: =FGX71 -> 15 | FHK71: =IF(FHI71*FHH71=0,"",FHI71*FHH71) ->  | FHL71: Pallet Charge | FHM71: 15 | FHP71: Pallet Charge | FHW71: =ROUNDUP(SUM(FHU45:FHU52),0) -> 0 | FHX71: =FHM71 -> 15 | FHZ71: =IF(FHX71*FHW71=0,"",FHX71*FHW71) ->  | FIA71: Pallet Charge | FIB71: 15 | FIE71: Pallet Charge | FIL71: =ROUNDUP(SUM(FIJ45:FIJ52),0) -> 0 | FIM71: =FIB71 -> 15 | FIO71: =IF(FIM71*FIL71=0,"",FIM71*FIL71) ->  | FIP71: Pallet Charge | FIQ71: 15 | FIT71: Pallet Charge | FJA71: =ROUNDUP(SUM(FIY45:FIY52),0) -> 0 | FJB71: =FIQ71 -> 15 | FJD71: =IF(FJB71*FJA71=0,"",FJB71*FJA71) ->  | FJE71: Pallet Charge | FJF71: 15 | FJI71: Pallet Charge | FJP71: =ROUNDUP(SUM(FJN45:FJN52),0) -> 0 | FJQ71: =FJF71 -> 15 | FJS71: =IF(FJQ71*FJP71=0,"",FJQ71*FJP71) ->  | FJT71: Pallet Charge | FJU71: 15 | FJX71: Pallet Charge | FKE71: =ROUNDUP(SUM(FKC45:FKC52),0) -> 0 | FKF71: =FJU71 -> 15 | FKH71: =IF(FKF71*FKE71=0,"",FKF71*FKE71) ->  | FKI71: Pallet Charge | FKJ71: 15 | FKM71: Pallet Charge | FKT71: =ROUNDUP(SUM(FKR45:FKR52),0) -> 0 | FKU71: =FKJ71 -> 15 | FKW71: =IF(FKU71*FKT71=0,"",FKU71*FKT71) ->  | FKX71: Pallet Charge | FKY71: 15 | FLB71: Pallet Charge | FLI71: =ROUNDUP(SUM(FLG45:FLG52),0) -> 0 | FLJ71: =FKY71 -> 15 | FLL71: =IF(FLJ71*FLI71=0,"",FLJ71*FLI71) ->  | FLM71: Pallet Charge | FLN71: 15 | FLQ71: Pallet Charge | FLX71: =ROUNDUP(SUM(FLV45:FLV52),0) -> 0 | FLY71: =FLN71 -> 15 | FMA71: =IF(FLY71*FLX71=0,"",FLY71*FLX71) ->  | FMB71: Pallet Charge | FMC71: 15 | FMF71: Pallet Charge | FMM71: =ROUNDUP(SUM(FMK45:FMK52),0) -> 0 | FMN71: =FMC71 -> 15 | FMP71: =IF(FMN71*FMM71=0,"",FMN71*FMM71) ->  | FMQ71: Pallet Charge | FMR71: 15 | FMU71: Pallet Charge | FNB71: =ROUNDUP(SUM(FMZ45:FMZ52),0) -> 0 | FNC71: =FMR71 -> 15 | FNE71: =IF(FNC71*FNB71=0,"",FNC71*FNB71) ->  | FNF71: Pallet Charge | FNG71: 15 | FNJ71: Pallet Charge | FNQ71: =ROUNDUP(SUM(FNO45:FNO52),0) -> 0 | FNR71: =FNG71 -> 15 | FNT71: =IF(FNR71*FNQ71=0,"",FNR71*FNQ71) ->  | FNU71: Pallet Charge | FNV71: 15 | FNY71: Pallet Charge | FOF71: =ROUNDUP(SUM(FOD45:FOD52),0) -> 0 | FOG71: =FNV71 -> 15 | FOI71: =IF(FOG71*FOF71=0,"",FOG71*FOF71) ->  | FOJ71: Pallet Charge | FOK71: 15 | FON71: Pallet Charge | FOU71: =ROUNDUP(SUM(FOS45:FOS52),0) -> 0 | FOV71: =FOK71 -> 15 | FOX71: =IF(FOV71*FOU71=0,"",FOV71*FOU71) ->  | FOY71: Pallet Charge | FOZ71: 15 | FPC71: Pallet Charge | FPJ71: =ROUNDUP(SUM(FPH45:FPH52),0) -> 0 | FPK71: =FOZ71 -> 15 | FPM71: =IF(FPK71*FPJ71=0,"",FPK71*FPJ71) ->  | FPN71: Pallet Charge | FPO71: 15 | FPR71: Pallet Charge | FPY71: =ROUNDUP(SUM(FPW45:FPW52),0) -> 0 | FPZ71: =FPO71 -> 15 | FQB71: =IF(FPZ71*FPY71=0,"",FPZ71*FPY71) ->  | FQC71: Pallet Charge | FQD71: 15 | FQG71: Pallet Charge | FQN71: =ROUNDUP(SUM(FQL45:FQL52),0) -> 0 | FQO71: =FQD71 -> 15 | FQQ71: =IF(FQO71*FQN71=0,"",FQO71*FQN71) ->  | FQR71: Pallet Charge | FQS71: 15 | FQV71: Pallet Charge | FRC71: =ROUNDUP(SUM(FRA45:FRA52),0) -> 0 | FRD71: =FQS71 -> 15 | FRF71: =IF(FRD71*FRC71=0,"",FRD71*FRC71) ->  | FRG71: Pallet Charge | FRH71: 15 | FRK71: Pallet Charge | FRR71: =ROUNDUP(SUM(FRP45:FRP52),0) -> 0 | FRS71: =FRH71 -> 15 | FRU71: =IF(FRS71*FRR71=0,"",FRS71*FRR71) ->  | FRV71: Pallet Charge | FRW71: 15 | FRZ71: Pallet Charge | FSG71: =ROUNDUP(SUM(FSE45:FSE52),0) -> 0 | FSH71: =FRW71 -> 15 | FSJ71: =IF(FSH71*FSG71=0,"",FSH71*FSG71) ->  | FSK71: Pallet Charge | FSL71: 15 | FSO71: Pallet Charge | FSV71: =ROUNDUP(SUM(FST45:FST52),0) -> 0 | FSW71: =FSL71 -> 15 | FSY71: =IF(FSW71*FSV71=0,"",FSW71*FSV71) ->  | FSZ71: Pallet Charge | FTA71: 15 | FTD71: Pallet Charge | FTK71: =ROUNDUP(SUM(FTI45:FTI52),0) -> 0 | FTL71: =FTA71 -> 15 | FTN71: =IF(FTL71*FTK71=0,"",FTL71*FTK71) ->  | FTO71: Pallet Charge | FTP71: 15 | FTS71: Pallet Charge | FTZ71: =ROUNDUP(SUM(FTX45:FTX52),0) -> 0 | FUA71: =FTP71 -> 15 | FUC71: =IF(FUA71*FTZ71=0,"",FUA71*FTZ71) ->  | FUD71: Pallet Charge | FUE71: 15 | FUH71: Pallet Charge | FUO71: =ROUNDUP(SUM(FUM45:FUM52),0) -> 0 | FUP71: =FUE71 -> 15 | FUR71: =IF(FUP71*FUO71=0,"",FUP71*FUO71) ->  | FUS71: Pallet Charge | FUT71: 15 | FUW71: Pallet Charge | FVD71: =ROUNDUP(SUM(FVB45:FVB52),0) -> 0 | FVE71: =FUT71 -> 15 | FVG71: =IF(FVE71*FVD71=0,"",FVE71*FVD71) ->  | FVH71: Pallet Charge | FVI71: 15 | FVL71: Pallet Charge | FVS71: =ROUNDUP(SUM(FVQ45:FVQ52),0) -> 0 | FVT71: =FVI71 -> 15 | FVV71: =IF(FVT71*FVS71=0,"",FVT71*FVS71) ->  | FVW71: Pallet Charge | FVX71: 15 | FWA71: Pallet Charge | FWH71: =ROUNDUP(SUM(FWF45:FWF52),0) -> 0 | FWI71: =FVX71 -> 15 | FWK71: =IF(FWI71*FWH71=0,"",FWI71*FWH71) ->  | FWL71: Pallet Charge | FWM71: 15 | FWP71: Pallet Charge | FWW71: =ROUNDUP(SUM(FWU45:FWU52),0) -> 0 | FWX71: =FWM71 -> 15 | FWZ71: =IF(FWX71*FWW71=0,"",FWX71*FWW71) ->  | FXA71: Pallet Charge | FXB71: 15 | FXE71: Pallet Charge | FXL71: =ROUNDUP(SUM(FXJ45:FXJ52),0) -> 0 | FXM71: =FXB71 -> 15 | FXO71: =IF(FXM71*FXL71=0,"",FXM71*FXL71) ->  | FXP71: Pallet Charge | FXQ71: 15 | FXT71: Pallet Charge | FYA71: =ROUNDUP(SUM(FXY45:FXY52),0) -> 0 | FYB71: =FXQ71 -> 15 | FYD71: =IF(FYB71*FYA71=0,"",FYB71*FYA71) ->  | FYE71: Pallet Charge | FYF71: 15 | FYI71: Pallet Charge | FYP71: =ROUNDUP(SUM(FYN45:FYN52),0) -> 0 | FYQ71: =FYF71 -> 15 | FYS71: =IF(FYQ71*FYP71=0,"",FYQ71*FYP71) ->  | FYT71: Pallet Charge | FYU71: 15 | FYX71: Pallet Charge | FZE71: =ROUNDUP(SUM(FZC45:FZC52),0) -> 0 | FZF71: =FYU71 -> 15 | FZH71: =IF(FZF71*FZE71=0,"",FZF71*FZE71) ->  | FZI71: Pallet Charge | FZJ71: 15 | FZM71: Pallet Charge | FZT71: =ROUNDUP(SUM(FZR45:FZR52),0) -> 0 | FZU71: =FZJ71 -> 15 | FZW71: =IF(FZU71*FZT71=0,"",FZU71*FZT71) ->  | FZX71: Pallet Charge | FZY71: 15 | GAB71: Pallet Charge | GAI71: =ROUNDUP(SUM(GAG45:GAG52),0) -> 0 | GAJ71: =FZY71 -> 15 | GAL71: =IF(GAJ71*GAI71=0,"",GAJ71*GAI71) ->  | GAM71: Pallet Charge | GAN71: 15 | GAQ71: Pallet Charge | GAX71: =ROUNDUP(SUM(GAV45:GAV52),0) -> 0 | GAY71: =GAN71 -> 15 | GBA71: =IF(GAY71*GAX71=0,"",GAY71*GAX71) ->  | GBB71: Pallet Charge | GBC71: 15 | GBF71: Pallet Charge | GBM71: =ROUNDUP(SUM(GBK45:GBK52),0) -> 0 | GBN71: =GBC71 -> 15 | GBP71: =IF(GBN71*GBM71=0,"",GBN71*GBM71) ->  | GBQ71: Pallet Charge | GBR71: 15 | GBU71: Pallet Charge | GCB71: =ROUNDUP(SUM(GBZ45:GBZ52),0) -> 0 | GCC71: =GBR71 -> 15 | GCE71: =IF(GCC71*GCB71=0,"",GCC71*GCB71) ->  | GCF71: Pallet Charge | GCG71: 15 | GCJ71: Pallet Charge | GCQ71: =ROUNDUP(SUM(GCO45:GCO52),0) -> 0 | GCR71: =GCG71 -> 15 | GCT71: =IF(GCR71*GCQ71=0,"",GCR71*GCQ71) ->  | GCU71: Pallet Charge | GCV71: 15 | GCY71: Pallet Charge | GDF71: =ROUNDUP(SUM(GDD45:GDD52),0) -> 0 | GDG71: =GCV71 -> 15 | GDI71: =IF(GDG71*GDF71=0,"",GDG71*GDF71) ->  | GDJ71: Pallet Charge | GDK71: 15 | GDN71: Pallet Charge | GDU71: =ROUNDUP(SUM(GDS45:GDS52),0) -> 0 | GDV71: =GDK71 -> 15 | GDX71: =IF(GDV71*GDU71=0,"",GDV71*GDU71) ->  | GDY71: Pallet Charge | GDZ71: 15 | GEC71: Pallet Charge | GEJ71: =ROUNDUP(SUM(GEH45:GEH52),0) -> 0 | GEK71: =GDZ71 -> 15 | GEM71: =IF(GEK71*GEJ71=0,"",GEK71*GEJ71) ->  | GEN71: Pallet Charge | GEO71: 15 | GER71: Pallet Charge | GEY71: =ROUNDUP(SUM(GEW45:GEW52),0) -> 0 | GEZ71: =GEO71 -> 15 | GFB71: =IF(GEZ71*GEY71=0,"",GEZ71*GEY71) ->  | GFC71: Pallet Charge | GFD71: 15 | GFG71: Pallet Charge | GFN71: =ROUNDUP(SUM(GFL45:GFL52),0) -> 0 | GFO71: =GFD71 -> 15 | GFQ71: =IF(GFO71*GFN71=0,"",GFO71*GFN71) ->  | GFR71: Pallet Charge | GFS71: 15 | GFV71: Pallet Charge | GGC71: =ROUNDUP(SUM(GGA45:GGA52),0) -> 0 | GGD71: =GFS71 -> 15 | GGF71: =IF(GGD71*GGC71=0,"",GGD71*GGC71) ->  | GGG71: Pallet Charge | GGH71: 15 | GGK71: Pallet Charge | GGR71: =ROUNDUP(SUM(GGP45:GGP52),0) -> 0 | GGS71: =GGH71 -> 15 | GGU71: =IF(GGS71*GGR71=0,"",GGS71*GGR71) ->  | GGV71: Pallet Charge | GGW71: 15 | GGZ71: Pallet Charge | GHG71: =ROUNDUP(SUM(GHE45:GHE52),0) -> 0 | GHH71: =GGW71 -> 15 | GHJ71: =IF(GHH71*GHG71=0,"",GHH71*GHG71) ->  | GHK71: Pallet Charge | GHL71: 15 | GHO71: Pallet Charge | GHV71: =ROUNDUP(SUM(GHT45:GHT52),0) -> 0 | GHW71: =GHL71 -> 15 | GHY71: =IF(GHW71*GHV71=0,"",GHW71*GHV71) ->  | GHZ71: Pallet Charge | GIA71: 15 | GID71: Pallet Charge | GIK71: =ROUNDUP(SUM(GII45:GII52),0) -> 0 | GIL71: =GIA71 -> 15 | GIN71: =IF(GIL71*GIK71=0,"",GIL71*GIK71) ->  | GIO71: Pallet Charge | GIP71: 15 | GIS71: Pallet Charge | GIZ71: =ROUNDUP(SUM(GIX45:GIX52),0) -> 0 | GJA71: =GIP71 -> 15 | GJC71: =IF(GJA71*GIZ71=0,"",GJA71*GIZ71) ->  | GJD71: Pallet Charge | GJE71: 15 | GJH71: Pallet Charge | GJO71: =ROUNDUP(SUM(GJM45:GJM52),0) -> 0 | GJP71: =GJE71 -> 15 | GJR71: =IF(GJP71*GJO71=0,"",GJP71*GJO71) ->  | GJS71: Pallet Charge | GJT71: 15 | GJW71: Pallet Charge | GKD71: =ROUNDUP(SUM(GKB45:GKB52),0) -> 0 | GKE71: =GJT71 -> 15 | GKG71: =IF(GKE71*GKD71=0,"",GKE71*GKD71) ->  | GKH71: Pallet Charge | GKI71: 15 | GKL71: Pallet Charge | GKS71: =ROUNDUP(SUM(GKQ45:GKQ52),0) -> 0 | GKT71: =GKI71 -> 15 | GKV71: =IF(GKT71*GKS71=0,"",GKT71*GKS71) ->  | GKW71: Pallet Charge | GKX71: 15 | GLA71: Pallet Charge | GLH71: =ROUNDUP(SUM(GLF45:GLF52),0) -> 0 | GLI71: =GKX71 -> 15 | GLK71: =IF(GLI71*GLH71=0,"",GLI71*GLH71) ->  | GLL71: Pallet Charge | GLM71: 15 | GLP71: Pallet Charge | GLW71: =ROUNDUP(SUM(GLU45:GLU52),0) -> 0 | GLX71: =GLM71 -> 15 | GLZ71: =IF(GLX71*GLW71=0,"",GLX71*GLW71) ->  | GMA71: Pallet Charge | GMB71: 15 | GME71: Pallet Charge | GML71: =ROUNDUP(SUM(GMJ45:GMJ52),0) -> 0 | GMM71: =GMB71 -> 15 | GMO71: =IF(GMM71*GML71=0,"",GMM71*GML71) ->  | GMP71: Pallet Charge | GMQ71: 15 | GMT71: Pallet Charge | GNA71: =ROUNDUP(SUM(GMY45:GMY52),0) -> 0 | GNB71: =GMQ71 -> 15 | GND71: =IF(GNB71*GNA71=0,"",GNB71*GNA71) ->  | GNE71: Pallet Charge | GNF71: 15 | GNI71: Pallet Charge | GNP71: =ROUNDUP(SUM(GNN45:GNN52),0) -> 0 | GNQ71: =GNF71 -> 15 | GNS71: =IF(GNQ71*GNP71=0,"",GNQ71*GNP71) ->  | GNT71: Pallet Charge | GNU71: 15 | GNX71: Pallet Charge | GOE71: =ROUNDUP(SUM(GOC45:GOC52),0) -> 0 | GOF71: =GNU71 -> 15 | GOH71: =IF(GOF71*GOE71=0,"",GOF71*GOE71) ->  | GOI71: Pallet Charge | GOJ71: 15 | GOM71: Pallet Charge | GOT71: =ROUNDUP(SUM(GOR45:GOR52),0) -> 0 | GOU71: =GOJ71 -> 15 | GOW71: =IF(GOU71*GOT71=0,"",GOU71*GOT71) ->  | GOX71: Pallet Charge | GOY71: 15 | GPB71: Pallet Charge | GPI71: =ROUNDUP(SUM(GPG45:GPG52),0) -> 0 | GPJ71: =GOY71 -> 15 | GPL71: =IF(GPJ71*GPI71=0,"",GPJ71*GPI71) ->  | GPM71: Pallet Charge | GPN71: 15 | GPQ71: Pallet Charge | GPX71: =ROUNDUP(SUM(GPV45:GPV52),0) -> 0 | GPY71: =GPN71 -> 15 | GQA71: =IF(GPY71*GPX71=0,"",GPY71*GPX71) ->  | GQB71: Pallet Charge | GQC71: 15 | GQF71: Pallet Charge | GQM71: =ROUNDUP(SUM(GQK45:GQK52),0) -> 0 | GQN71: =GQC71 -> 15 | GQP71: =IF(GQN71*GQM71=0,"",GQN71*GQM71) ->  | GQQ71: Pallet Charge | GQR71: 15 | GQU71: Pallet Charge | GRB71: =ROUNDUP(SUM(GQZ45:GQZ52),0) -> 0 | GRC71: =GQR71 -> 15 | GRE71: =IF(GRC71*GRB71=0,"",GRC71*GRB71) ->  | GRF71: Pallet Charge | GRG71: 15 | GRJ71: Pallet Charge | GRQ71: =ROUNDUP(SUM(GRO45:GRO52),0) -> 0 | GRR71: =GRG71 -> 15 | GRT71: =IF(GRR71*GRQ71=0,"",GRR71*GRQ71) ->  | GRU71: Pallet Charge | GRV71: 15 | GRY71: Pallet Charge | GSF71: =ROUNDUP(SUM(GSD45:GSD52),0) -> 0 | GSG71: =GRV71 -> 15 | GSI71: =IF(GSG71*GSF71=0,"",GSG71*GSF71) ->  | GSJ71: Pallet Charge | GSK71: 15 | GSN71: Pallet Charge | GSU71: =ROUNDUP(SUM(GSS45:GSS52),0) -> 0 | GSV71: =GSK71 -> 15 | GSX71: =IF(GSV71*GSU71=0,"",GSV71*GSU71) ->  | GSY71: Pallet Charge | GSZ71: 15 | GTC71: Pallet Charge | GTJ71: =ROUNDUP(SUM(GTH45:GTH52),0) -> 0 | GTK71: =GSZ71 -> 15 | GTM71: =IF(GTK71*GTJ71=0,"",GTK71*GTJ71) ->  | GTN71: Pallet Charge | GTO71: 15 | GTR71: Pallet Charge | GTY71: =ROUNDUP(SUM(GTW45:GTW52),0) -> 0 | GTZ71: =GTO71 -> 15 | GUB71: =IF(GTZ71*GTY71=0,"",GTZ71*GTY71) ->  | GUC71: Pallet Charge | GUD71: 15 | GUG71: Pallet Charge | GUN71: =ROUNDUP(SUM(GUL45:GUL52),0) -> 0 | GUO71: =GUD71 -> 15 | GUQ71: =IF(GUO71*GUN71=0,"",GUO71*GUN71) ->  | GUR71: Pallet Charge | GUS71: 15 | GUV71: Pallet Charge | GVC71: =ROUNDUP(SUM(GVA45:GVA52),0) -> 0 | GVD71: =GUS71 -> 15 | GVF71: =IF(GVD71*GVC71=0,"",GVD71*GVC71) ->  | GVG71: Pallet Charge | GVH71: 15 | GVK71: Pallet Charge | GVR71: =ROUNDUP(SUM(GVP45:GVP52),0) -> 0 | GVS71: =GVH71 -> 15 | GVU71: =IF(GVS71*GVR71=0,"",GVS71*GVR71) ->  | GVV71: Pallet Charge | GVW71: 15 | GVZ71: Pallet Charge | GWG71: =ROUNDUP(SUM(GWE45:GWE52),0) -> 0 | GWH71: =GVW71 -> 15 | GWJ71: =IF(GWH71*GWG71=0,"",GWH71*GWG71) ->  | GWK71: Pallet Charge | GWL71: 15 | GWO71: Pallet Charge | GWV71: =ROUNDUP(SUM(GWT45:GWT52),0) -> 0 | GWW71: =GWL71 -> 15 | GWY71: =IF(GWW71*GWV71=0,"",GWW71*GWV71) ->  | GWZ71: Pallet Charge | GXA71: 15 | GXD71: Pallet Charge | GXK71: =ROUNDUP(SUM(GXI45:GXI52),0) -> 0 | GXL71: =GXA71 -> 15 | GXN71: =IF(GXL71*GXK71=0,"",GXL71*GXK71) ->  | GXO71: Pallet Charge | GXP71: 15 | GXS71: Pallet Charge | GXZ71: =ROUNDUP(SUM(GXX45:GXX52),0) -> 0 | GYA71: =GXP71 -> 15 | GYC71: =IF(GYA71*GXZ71=0,"",GYA71*GXZ71) ->  | GYD71: Pallet Charge | GYE71: 15 | GYH71: Pallet Charge | GYO71: =ROUNDUP(SUM(GYM45:GYM52),0) -> 0 | GYP71: =GYE71 -> 15 | GYR71: =IF(GYP71*GYO71=0,"",GYP71*GYO71) ->  | GYS71: Pallet Charge | GYT71: 15 | GYW71: Pallet Charge | GZD71: =ROUNDUP(SUM(GZB45:GZB52),0) -> 0 | GZE71: =GYT71 -> 15 | GZG71: =IF(GZE71*GZD71=0,"",GZE71*GZD71) ->  | GZH71: Pallet Charge | GZI71: 15 | GZL71: Pallet Charge | GZS71: =ROUNDUP(SUM(GZQ45:GZQ52),0) -> 0 | GZT71: =GZI71 -> 15 | GZV71: =IF(GZT71*GZS71=0,"",GZT71*GZS71) ->  | GZW71: Pallet Charge | GZX71: 15 | HAA71: Pallet Charge | HAH71: =ROUNDUP(SUM(HAF45:HAF52),0) -> 0 | HAI71: =GZX71 -> 15 | HAK71: =IF(HAI71*HAH71=0,"",HAI71*HAH71) ->  | HAL71: Pallet Charge | HAM71: 15 | HAP71: Pallet Charge | HAW71: =ROUNDUP(SUM(HAU45:HAU52),0) -> 0 | HAX71: =HAM71 -> 15 | HAZ71: =IF(HAX71*HAW71=0,"",HAX71*HAW71) ->  | HBA71: Pallet Charge | HBB71: 15 | HBE71: Pallet Charge | HBL71: =ROUNDUP(SUM(HBJ45:HBJ52),0) -> 0 | HBM71: =HBB71 -> 15 | HBO71: =IF(HBM71*HBL71=0,"",HBM71*HBL71) ->  | HBP71: Pallet Charge | HBQ71: 15 | HBT71: Pallet Charge | HCA71: =ROUNDUP(SUM(HBY45:HBY52),0) -> 0 | HCB71: =HBQ71 -> 15 | HCD71: =IF(HCB71*HCA71=0,"",HCB71*HCA71) ->  | HCE71: Pallet Charge | HCF71: 15 | HCI71: Pallet Charge | HCP71: =ROUNDUP(SUM(HCN45:HCN52),0) -> 0 | HCQ71: =HCF71 -> 15 | HCS71: =IF(HCQ71*HCP71=0,"",HCQ71*HCP71) ->  | HCT71: Pallet Charge | HCU71: 15 | HCX71: Pallet Charge | HDE71: =ROUNDUP(SUM(HDC45:HDC52),0) -> 0 | HDF71: =HCU71 -> 15 | HDH71: =IF(HDF71*HDE71=0,"",HDF71*HDE71) ->  | HDI71: Pallet Charge | HDJ71: 15 | HDM71: Pallet Charge | HDT71: =ROUNDUP(SUM(HDR45:HDR52),0) -> 0 | HDU71: =HDJ71 -> 15 | HDW71: =IF(HDU71*HDT71=0,"",HDU71*HDT71) ->  | HDX71: Pallet Charge | HDY71: 15 | HEB71: Pallet Charge | HEI71: =ROUNDUP(SUM(HEG45:HEG52),0) -> 0 | HEJ71: =HDY71 -> 15 | HEL71: =IF(HEJ71*HEI71=0,"",HEJ71*HEI71) ->  | HEM71: Pallet Charge | HEN71: 15 | HEQ71: Pallet Charge | HEX71: =ROUNDUP(SUM(HEV45:HEV52),0) -> 0 | HEY71: =HEN71 -> 15 | HFA71: =IF(HEY71*HEX71=0,"",HEY71*HEX71) ->  | HFB71: Pallet Charge | HFC71: 15 | HFF71: Pallet Charge | HFM71: =ROUNDUP(SUM(HFK45:HFK52),0) -> 0 | HFN71: =HFC71 -> 15 | HFP71: =IF(HFN71*HFM71=0,"",HFN71*HFM71) ->  | HFQ71: Pallet Charge | HFR71: 15 | HFU71: Pallet Charge | HGB71: =ROUNDUP(SUM(HFZ45:HFZ52),0) -> 0 | HGC71: =HFR71 -> 15 | HGE71: =IF(HGC71*HGB71=0,"",HGC71*HGB71) ->  | HGF71: Pallet Charge | HGG71: 15 | HGJ71: Pallet Charge | HGQ71: =ROUNDUP(SUM(HGO45:HGO52),0) -> 0 | HGR71: =HGG71 -> 15 | HGT71: =IF(HGR71*HGQ71=0,"",HGR71*HGQ71) ->  | HGU71: Pallet Charge | HGV71: 15 | HGY71: Pallet Charge | HHF71: =ROUNDUP(SUM(HHD45:HHD52),0) -> 0 | HHG71: =HGV71 -> 15 | HHI71: =IF(HHG71*HHF71=0,"",HHG71*HHF71) ->  | HHJ71: Pallet Charge | HHK71: 15 | HHN71: Pallet Charge | HHU71: =ROUNDUP(SUM(HHS45:HHS52),0) -> 0 | HHV71: =HHK71 -> 15 | HHX71: =IF(HHV71*HHU71=0,"",HHV71*HHU71) ->  | HHY71: Pallet Charge | HHZ71: 15 | HIC71: Pallet Charge | HIJ71: =ROUNDUP(SUM(HIH45:HIH52),0) -> 0 | HIK71: =HHZ71 -> 15 | HIM71: =IF(HIK71*HIJ71=0,"",HIK71*HIJ71) ->  | HIN71: Pallet Charge | HIO71: 15 | HIR71: Pallet Charge | HIY71: =ROUNDUP(SUM(HIW45:HIW52),0) -> 0 | HIZ71: =HIO71 -> 15 | HJB71: =IF(HIZ71*HIY71=0,"",HIZ71*HIY71) ->  | HJC71: Pallet Charge | HJD71: 15 | HJG71: Pallet Charge | HJN71: =ROUNDUP(SUM(HJL45:HJL52),0) -> 0 | HJO71: =HJD71 -> 15 | HJQ71: =IF(HJO71*HJN71=0,"",HJO71*HJN71) ->  | HJR71: Pallet Charge | HJS71: 15 | HJV71: Pallet Charge | HKC71: =ROUNDUP(SUM(HKA45:HKA52),0) -> 0 | HKD71: =HJS71 -> 15 | HKF71: =IF(HKD71*HKC71=0,"",HKD71*HKC71) ->  | HKG71: Pallet Charge | HKH71: 15 | HKK71: Pallet Charge | HKR71: =ROUNDUP(SUM(HKP45:HKP52),0) -> 0 | HKS71: =HKH71 -> 15 | HKU71: =IF(HKS71*HKR71=0,"",HKS71*HKR71) ->  | HKV71: Pallet Charge | HKW71: 15 | HKZ71: Pallet Charge | HLG71: =ROUNDUP(SUM(HLE45:HLE52),0) -> 0 | HLH71: =HKW71 -> 15 | HLJ71: =IF(HLH71*HLG71=0,"",HLH71*HLG71) ->  | HLK71: Pallet Charge | HLL71: 15 | HLO71: Pallet Charge | HLV71: =ROUNDUP(SUM(HLT45:HLT52),0) -> 0 | HLW71: =HLL71 -> 15 | HLY71: =IF(HLW71*HLV71=0,"",HLW71*HLV71) ->  | HLZ71: Pallet Charge | HMA71: 15 | HMD71: Pallet Charge | HMK71: =ROUNDUP(SUM(HMI45:HMI52),0) -> 0 | HML71: =HMA71 -> 15 | HMN71: =IF(HML71*HMK71=0,"",HML71*HMK71) ->  | HMO71: Pallet Charge | HMP71: 15 | HMS71: Pallet Charge | HMZ71: =ROUNDUP(SUM(HMX45:HMX52),0) -> 0 | HNA71: =HMP71 -> 15 | HNC71: =IF(HNA71*HMZ71=0,"",HNA71*HMZ71) ->  | HND71: Pallet Charge | HNE71: 15 | HNH71: Pallet Charge | HNO71: =ROUNDUP(SUM(HNM45:HNM52),0) -> 0 | HNP71: =HNE71 -> 15 | HNR71: =IF(HNP71*HNO71=0,"",HNP71*HNO71) ->  | HNS71: Pallet Charge | HNT71: 15 | HNW71: Pallet Charge | HOD71: =ROUNDUP(SUM(HOB45:HOB52),0) -> 0 | HOE71: =HNT71 -> 15 | HOG71: =IF(HOE71*HOD71=0,"",HOE71*HOD71) ->  | HOH71: Pallet Charge | HOI71: 15 | HOL71: Pallet Charge | HOS71: =ROUNDUP(SUM(HOQ45:HOQ52),0) -> 0 | HOT71: =HOI71 -> 15 | HOV71: =IF(HOT71*HOS71=0,"",HOT71*HOS71) ->  | HOW71: Pallet Charge | HOX71: 15 | HPA71: Pallet Charge | HPH71: =ROUNDUP(SUM(HPF45:HPF52),0) -> 0 | HPI71: =HOX71 -> 15 | HPK71: =IF(HPI71*HPH71=0,"",HPI71*HPH71) ->  | HPL71: Pallet Charge | HPM71: 15 | HPP71: Pallet Charge | HPW71: =ROUNDUP(SUM(HPU45:HPU52),0) -> 0 | HPX71: =HPM71 -> 15 | HPZ71: =IF(HPX71*HPW71=0,"",HPX71*HPW71) ->  | HQA71: Pallet Charge | HQB71: 15 | HQE71: Pallet Charge | HQL71: =ROUNDUP(SUM(HQJ45:HQJ52),0) -> 0 | HQM71: =HQB71 -> 15 | HQO71: =IF(HQM71*HQL71=0,"",HQM71*HQL71) ->  | HQP71: Pallet Charge | HQQ71: 15 | HQT71: Pallet Charge | HRA71: =ROUNDUP(SUM(HQY45:HQY52),0) -> 0 | HRB71: =HQQ71 -> 15 | HRD71: =IF(HRB71*HRA71=0,"",HRB71*HRA71) ->  | HRE71: Pallet Charge | HRF71: 15 | HRI71: Pallet Charge | HRP71: =ROUNDUP(SUM(HRN45:HRN52),0) -> 0 | HRQ71: =HRF71 -> 15 | HRS71: =IF(HRQ71*HRP71=0,"",HRQ71*HRP71) ->  | HRT71: Pallet Charge | HRU71: 15 | HRX71: Pallet Charge | HSE71: =ROUNDUP(SUM(HSC45:HSC52),0) -> 0 | HSF71: =HRU71 -> 15 | HSH71: =IF(HSF71*HSE71=0,"",HSF71*HSE71) ->  | HSI71: Pallet Charge | HSJ71: 15 | HSM71: Pallet Charge | HST71: =ROUNDUP(SUM(HSR45:HSR52),0) -> 0 | HSU71: =HSJ71 -> 15 | HSW71: =IF(HSU71*HST71=0,"",HSU71*HST71) ->  | HSX71: Pallet Charge | HSY71: 15 | HTB71: Pallet Charge | HTI71: =ROUNDUP(SUM(HTG45:HTG52),0) -> 0 | HTJ71: =HSY71 -> 15 | HTL71: =IF(HTJ71*HTI71=0,"",HTJ71*HTI71) ->  | HTM71: Pallet Charge | HTN71: 15 | HTQ71: Pallet Charge | HTX71: =ROUNDUP(SUM(HTV45:HTV52),0) -> 0 | HTY71: =HTN71 -> 15 | HUA71: =IF(HTY71*HTX71=0,"",HTY71*HTX71) ->  | HUB71: Pallet Charge | HUC71: 15 | HUF71: Pallet Charge | HUM71: =ROUNDUP(SUM(HUK45:HUK52),0) -> 0 | HUN71: =HUC71 -> 15 | HUP71: =IF(HUN71*HUM71=0,"",HUN71*HUM71) ->  | HUQ71: Pallet Charge | HUR71: 15 | HUU71: Pallet Charge | HVB71: =ROUNDUP(SUM(HUZ45:HUZ52),0) -> 0 | HVC71: =HUR71 -> 15 | HVE71: =IF(HVC71*HVB71=0,"",HVC71*HVB71) ->  | HVF71: Pallet Charge | HVG71: 15 | HVJ71: Pallet Charge | HVQ71: =ROUNDUP(SUM(HVO45:HVO52),0) -> 0 | HVR71: =HVG71 -> 15 | HVT71: =IF(HVR71*HVQ71=0,"",HVR71*HVQ71) ->  | HVU71: Pallet Charge | HVV71: 15 | HVY71: Pallet Charge | HWF71: =ROUNDUP(SUM(HWD45:HWD52),0) -> 0 | HWG71: =HVV71 -> 15 | HWI71: =IF(HWG71*HWF71=0,"",HWG71*HWF71) ->  | HWJ71: Pallet Charge | HWK71: 15 | HWN71: Pallet Charge | HWU71: =ROUNDUP(SUM(HWS45:HWS52),0) -> 0 | HWV71: =HWK71 -> 15 | HWX71: =IF(HWV71*HWU71=0,"",HWV71*HWU71) ->  | HWY71: Pallet Charge | HWZ71: 15 | HXC71: Pallet Charge | HXJ71: =ROUNDUP(SUM(HXH45:HXH52),0) -> 0 | HXK71: =HWZ71 -> 15 | HXM71: =IF(HXK71*HXJ71=0,"",HXK71*HXJ71) ->  | HXN71: Pallet Charge | HXO71: 15 | HXR71: Pallet Charge | HXY71: =ROUNDUP(SUM(HXW45:HXW52),0) -> 0 | HXZ71: =HXO71 -> 15 | HYB71: =IF(HXZ71*HXY71=0,"",HXZ71*HXY71) ->  | HYC71: Pallet Charge | HYD71: 15 | HYG71: Pallet Charge | HYN71: =ROUNDUP(SUM(HYL45:HYL52),0) -> 0 | HYO71: =HYD71 -> 15 | HYQ71: =IF(HYO71*HYN71=0,"",HYO71*HYN71) ->  | HYR71: Pallet Charge | HYS71: 15 | HYV71: Pallet Charge | HZC71: =ROUNDUP(SUM(HZA45:HZA52),0) -> 0 | HZD71: =HYS71 -> 15 | HZF71: =IF(HZD71*HZC71=0,"",HZD71*HZC71) ->  | HZG71: Pallet Charge | HZH71: 15 | HZK71: Pallet Charge | HZR71: =ROUNDUP(SUM(HZP45:HZP52),0) -> 0 | HZS71: =HZH71 -> 15 | HZU71: =IF(HZS71*HZR71=0,"",HZS71*HZR71) ->  | HZV71: Pallet Charge | HZW71: 15 | HZZ71: Pallet Charge | IAG71: =ROUNDUP(SUM(IAE45:IAE52),0) -> 0 | IAH71: =HZW71 -> 15 | IAJ71: =IF(IAH71*IAG71=0,"",IAH71*IAG71) ->  | IAK71: Pallet Charge | IAL71: 15 | IAO71: Pallet Charge | IAV71: =ROUNDUP(SUM(IAT45:IAT52),0) -> 0 | IAW71: =IAL71 -> 15 | IAY71: =IF(IAW71*IAV71=0,"",IAW71*IAV71) ->  | IAZ71: Pallet Charge | IBA71: 15 | IBD71: Pallet Charge | IBK71: =ROUNDUP(SUM(IBI45:IBI52),0) -> 0 | IBL71: =IBA71 -> 15 | IBN71: =IF(IBL71*IBK71=0,"",IBL71*IBK71) ->  | IBO71: Pallet Charge | IBP71: 15 | IBS71: Pallet Charge | IBZ71: =ROUNDUP(SUM(IBX45:IBX52),0) -> 0 | ICA71: =IBP71 -> 15 | ICC71: =IF(ICA71*IBZ71=0,"",ICA71*IBZ71) ->  | ICD71: Pallet Charge | ICE71: 15 | ICH71: Pallet Charge | ICO71: =ROUNDUP(SUM(ICM45:ICM52),0) -> 0 | ICP71: =ICE71 -> 15 | ICR71: =IF(ICP71*ICO71=0,"",ICP71*ICO71) ->  | ICS71: Pallet Charge | ICT71: 15 | ICW71: Pallet Charge | IDD71: =ROUNDUP(SUM(IDB45:IDB52),0) -> 0 | IDE71: =ICT71 -> 15 | IDG71: =IF(IDE71*IDD71=0,"",IDE71*IDD71) ->  | IDH71: Pallet Charge | IDI71: 15 | IDL71: Pallet Charge | IDS71: =ROUNDUP(SUM(IDQ45:IDQ52),0) -> 0 | IDT71: =IDI71 -> 15 | IDV71: =IF(IDT71*IDS71=0,"",IDT71*IDS71) ->  | IDW71: Pallet Charge | IDX71: 15 | IEA71: Pallet Charge | IEH71: =ROUNDUP(SUM(IEF45:IEF52),0) -> 0 | IEI71: =IDX71 -> 15 | IEK71: =IF(IEI71*IEH71=0,"",IEI71*IEH71) ->  | IEL71: Pallet Charge | IEM71: 15 | IEP71: Pallet Charge | IEW71: =ROUNDUP(SUM(IEU45:IEU52),0) -> 0 | IEX71: =IEM71 -> 15 | IEZ71: =IF(IEX71*IEW71=0,"",IEX71*IEW71) ->  | IFA71: Pallet Charge | IFB71: 15 | IFE71: Pallet Charge | IFL71: =ROUNDUP(SUM(IFJ45:IFJ52),0) -> 0 | IFM71: =IFB71 -> 15 | IFO71: =IF(IFM71*IFL71=0,"",IFM71*IFL71) ->  | IFP71: Pallet Charge | IFQ71: 15 | IFT71: Pallet Charge | IGA71: =ROUNDUP(SUM(IFY45:IFY52),0) -> 0 | IGB71: =IFQ71 -> 15 | IGD71: =IF(IGB71*IGA71=0,"",IGB71*IGA71) ->  | IGE71: Pallet Charge | IGF71: 15 | IGI71: Pallet Charge | IGP71: =ROUNDUP(SUM(IGN45:IGN52),0) -> 0 | IGQ71: =IGF71 -> 15 | IGS71: =IF(IGQ71*IGP71=0,"",IGQ71*IGP71) ->  | IGT71: Pallet Charge | IGU71: 15 | IGX71: Pallet Charge | IHE71: =ROUNDUP(SUM(IHC45:IHC52),0) -> 0 | IHF71: =IGU71 -> 15 | IHH71: =IF(IHF71*IHE71=0,"",IHF71*IHE71) ->  | IHI71: Pallet Charge | IHJ71: 15 | IHM71: Pallet Charge | IHT71: =ROUNDUP(SUM(IHR45:IHR52),0) -> 0 | IHU71: =IHJ71 -> 15 | IHW71: =IF(IHU71*IHT71=0,"",IHU71*IHT71) ->  | IHX71: Pallet Charge | IHY71: 15 | IIB71: Pallet Charge | III71: =ROUNDUP(SUM(IIG45:IIG52),0) -> 0 | IIJ71: =IHY71 -> 15 | IIL71: =IF(IIJ71*III71=0,"",IIJ71*III71) ->  | IIM71: Pallet Charge | IIN71: 15 | IIQ71: Pallet Charge | IIX71: =ROUNDUP(SUM(IIV45:IIV52),0) -> 0 | IIY71: =IIN71 -> 15 | IJA71: =IF(IIY71*IIX71=0,"",IIY71*IIX71) ->  | IJB71: Pallet Charge | IJC71: 15 | IJF71: Pallet Charge | IJM71: =ROUNDUP(SUM(IJK45:IJK52),0) -> 0 | IJN71: =IJC71 -> 15 | IJP71: =IF(IJN71*IJM71=0,"",IJN71*IJM71) ->  | IJQ71: Pallet Charge | IJR71: 15 | IJU71: Pallet Charge | IKB71: =ROUNDUP(SUM(IJZ45:IJZ52),0) -> 0 | IKC71: =IJR71 -> 15 | IKE71: =IF(IKC71*IKB71=0,"",IKC71*IKB71) ->  | IKF71: Pallet Charge | IKG71: 15 | IKJ71: Pallet Charge | IKQ71: =ROUNDUP(SUM(IKO45:IKO52),0) -> 0 | IKR71: =IKG71 -> 15 | IKT71: =IF(IKR71*IKQ71=0,"",IKR71*IKQ71) ->  | IKU71: Pallet Charge | IKV71: 15 | IKY71: Pallet Charge | ILF71: =ROUNDUP(SUM(ILD45:ILD52),0) -> 0 | ILG71: =IKV71 -> 15 | ILI71: =IF(ILG71*ILF71=0,"",ILG71*ILF71) ->  | ILJ71: Pallet Charge | ILK71: 15 | ILN71: Pallet Charge | ILU71: =ROUNDUP(SUM(ILS45:ILS52),0) -> 0 | ILV71: =ILK71 -> 15 | ILX71: =IF(ILV71*ILU71=0,"",ILV71*ILU71) ->  | ILY71: Pallet Charge | ILZ71: 15 | IMC71: Pallet Charge | IMJ71: =ROUNDUP(SUM(IMH45:IMH52),0) -> 0 | IMK71: =ILZ71 -> 15 | IMM71: =IF(IMK71*IMJ71=0,"",IMK71*IMJ71) ->  | IMN71: Pallet Charge | IMO71: 15 | IMR71: Pallet Charge | IMY71: =ROUNDUP(SUM(IMW45:IMW52),0) -> 0 | IMZ71: =IMO71 -> 15 | INB71: =IF(IMZ71*IMY71=0,"",IMZ71*IMY71) ->  | INC71: Pallet Charge | IND71: 15 | ING71: Pallet Charge | INN71: =ROUNDUP(SUM(INL45:INL52),0) -> 0 | INO71: =IND71 -> 15 | INQ71: =IF(INO71*INN71=0,"",INO71*INN71) ->  | INR71: Pallet Charge | INS71: 15 | INV71: Pallet Charge | IOC71: =ROUNDUP(SUM(IOA45:IOA52),0) -> 0 | IOD71: =INS71 -> 15 | IOF71: =IF(IOD71*IOC71=0,"",IOD71*IOC71) ->  | IOG71: Pallet Charge | IOH71: 15 | IOK71: Pallet Charge | IOR71: =ROUNDUP(SUM(IOP45:IOP52),0) -> 0 | IOS71: =IOH71 -> 15 | IOU71: =IF(IOS71*IOR71=0,"",IOS71*IOR71) ->  | IOV71: Pallet Charge | IOW71: 15 | IOZ71: Pallet Charge | IPG71: =ROUNDUP(SUM(IPE45:IPE52),0) -> 0 | IPH71: =IOW71 -> 15 | IPJ71: =IF(IPH71*IPG71=0,"",IPH71*IPG71) ->  | IPK71: Pallet Charge | IPL71: 15 | IPO71: Pallet Charge | IPV71: =ROUNDUP(SUM(IPT45:IPT52),0) -> 0 | IPW71: =IPL71 -> 15 | IPY71: =IF(IPW71*IPV71=0,"",IPW71*IPV71) ->  | IPZ71: Pallet Charge | IQA71: 15 | IQD71: Pallet Charge | IQK71: =ROUNDUP(SUM(IQI45:IQI52),0) -> 0 | IQL71: =IQA71 -> 15 | IQN71: =IF(IQL71*IQK71=0,"",IQL71*IQK71) ->  | IQO71: Pallet Charge | IQP71: 15 | IQS71: Pallet Charge | IQZ71: =ROUNDUP(SUM(IQX45:IQX52),0) -> 0 | IRA71: =IQP71 -> 15 | IRC71: =IF(IRA71*IQZ71=0,"",IRA71*IQZ71) ->  | IRD71: Pallet Charge | IRE71: 15 | IRH71: Pallet Charge | IRO71: =ROUNDUP(SUM(IRM45:IRM52),0) -> 0 | IRP71: =IRE71 -> 15 | IRR71: =IF(IRP71*IRO71=0,"",IRP71*IRO71) ->  | IRS71: Pallet Charge | IRT71: 15 | IRW71: Pallet Charge | ISD71: =ROUNDUP(SUM(ISB45:ISB52),0) -> 0 | ISE71: =IRT71 -> 15 | ISG71: =IF(ISE71*ISD71=0,"",ISE71*ISD71) ->  | ISH71: Pallet Charge | ISI71: 15 | ISL71: Pallet Charge | ISS71: =ROUNDUP(SUM(ISQ45:ISQ52),0) -> 0 | IST71: =ISI71 -> 15 | ISV71: =IF(IST71*ISS71=0,"",IST71*ISS71) ->  | ISW71: Pallet Charge | ISX71: 15 | ITA71: Pallet Charge | ITH71: =ROUNDUP(SUM(ITF45:ITF52),0) -> 0 | ITI71: =ISX71 -> 15 | ITK71: =IF(ITI71*ITH71=0,"",ITI71*ITH71) ->  | ITL71: Pallet Charge | ITM71: 15 | ITP71: Pallet Charge | ITW71: =ROUNDUP(SUM(ITU45:ITU52),0) -> 0 | ITX71: =ITM71 -> 15 | ITZ71: =IF(ITX71*ITW71=0,"",ITX71*ITW71) ->  | IUA71: Pallet Charge | IUB71: 15 | IUE71: Pallet Charge | IUL71: =ROUNDUP(SUM(IUJ45:IUJ52),0) -> 0 | IUM71: =IUB71 -> 15 | IUO71: =IF(IUM71*IUL71=0,"",IUM71*IUL71) ->  | IUP71: Pallet Charge | IUQ71: 15 | IUT71: Pallet Charge | IVA71: =ROUNDUP(SUM(IUY45:IUY52),0) -> 0 | IVB71: =IUQ71 -> 15 | IVD71: =IF(IVB71*IVA71=0,"",IVB71*IVA71) ->  | IVE71: Pallet Charge | IVF71: 15 | IVI71: Pallet Charge | IVP71: =ROUNDUP(SUM(IVN45:IVN52),0) -> 0 | IVQ71: =IVF71 -> 15 | IVS71: =IF(IVQ71*IVP71=0,"",IVQ71*IVP71) ->  | IVT71: Pallet Charge | IVU71: 15 | IVX71: Pallet Charge | IWE71: =ROUNDUP(SUM(IWC45:IWC52),0) -> 0 | IWF71: =IVU71 -> 15 | IWH71: =IF(IWF71*IWE71=0,"",IWF71*IWE71) ->  | IWI71: Pallet Charge | IWJ71: 15 | IWM71: Pallet Charge | IWT71: =ROUNDUP(SUM(IWR45:IWR52),0) -> 0 | IWU71: =IWJ71 -> 15 | IWW71: =IF(IWU71*IWT71=0,"",IWU71*IWT71) ->  | IWX71: Pallet Charge | IWY71: 15 | IXB71: Pallet Charge | IXI71: =ROUNDUP(SUM(IXG45:IXG52),0) -> 0 | IXJ71: =IWY71 -> 15 | IXL71: =IF(IXJ71*IXI71=0,"",IXJ71*IXI71) ->  | IXM71: Pallet Charge | IXN71: 15 | IXQ71: Pallet Charge | IXX71: =ROUNDUP(SUM(IXV45:IXV52),0) -> 0 | IXY71: =IXN71 -> 15 | IYA71: =IF(IXY71*IXX71=0,"",IXY71*IXX71) ->  | IYB71: Pallet Charge | IYC71: 15 | IYF71: Pallet Charge | IYM71: =ROUNDUP(SUM(IYK45:IYK52),0) -> 0 | IYN71: =IYC71 -> 15 | IYP71: =IF(IYN71*IYM71=0,"",IYN71*IYM71) ->  | IYQ71: Pallet Charge | IYR71: 15 | IYU71: Pallet Charge | IZB71: =ROUNDUP(SUM(IYZ45:IYZ52),0) -> 0 | IZC71: =IYR71 -> 15 | IZE71: =IF(IZC71*IZB71=0,"",IZC71*IZB71) ->  | IZF71: Pallet Charge | IZG71: 15 | IZJ71: Pallet Charge | IZQ71: =ROUNDUP(SUM(IZO45:IZO52),0) -> 0 | IZR71: =IZG71 -> 15 | IZT71: =IF(IZR71*IZQ71=0,"",IZR71*IZQ71) ->  | IZU71: Pallet Charge | IZV71: 15 | IZY71: Pallet Charge | JAF71: =ROUNDUP(SUM(JAD45:JAD52),0) -> 0 | JAG71: =IZV71 -> 15 | JAI71: =IF(JAG71*JAF71=0,"",JAG71*JAF71) ->  | JAJ71: Pallet Charge | JAK71: 15 | JAN71: Pallet Charge | JAU71: =ROUNDUP(SUM(JAS45:JAS52),0) -> 0 | JAV71: =JAK71 -> 15 | JAX71: =IF(JAV71*JAU71=0,"",JAV71*JAU71) ->  | JAY71: Pallet Charge | JAZ71: 15 | JBC71: Pallet Charge | JBJ71: =ROUNDUP(SUM(JBH45:JBH52),0) -> 0 | JBK71: =JAZ71 -> 15 | JBM71: =IF(JBK71*JBJ71=0,"",JBK71*JBJ71) ->  | JBN71: Pallet Charge | JBO71: 15 | JBR71: Pallet Charge | JBY71: =ROUNDUP(SUM(JBW45:JBW52),0) -> 0 | JBZ71: =JBO71 -> 15 | JCB71: =IF(JBZ71*JBY71=0,"",JBZ71*JBY71) ->  | JCC71: Pallet Charge | JCD71: 15 | JCG71: Pallet Charge | JCN71: =ROUNDUP(SUM(JCL45:JCL52),0) -> 0 | JCO71: =JCD71 -> 15 | JCQ71: =IF(JCO71*JCN71=0,"",JCO71*JCN71) ->  | JCR71: Pallet Charge | JCS71: 15 | JCV71: Pallet Charge | JDC71: =ROUNDUP(SUM(JDA45:JDA52),0) -> 0 | JDD71: =JCS71 -> 15 | JDF71: =IF(JDD71*JDC71=0,"",JDD71*JDC71) ->  | JDG71: Pallet Charge | JDH71: 15 | JDK71: Pallet Charge | JDR71: =ROUNDUP(SUM(JDP45:JDP52),0) -> 0 | JDS71: =JDH71 -> 15 | JDU71: =IF(JDS71*JDR71=0,"",JDS71*JDR71) ->  | JDV71: Pallet Charge | JDW71: 15 | JDZ71: Pallet Charge | JEG71: =ROUNDUP(SUM(JEE45:JEE52),0) -> 0 | JEH71: =JDW71 -> 15 | JEJ71: =IF(JEH71*JEG71=0,"",JEH71*JEG71) ->  | JEK71: Pallet Charge | JEL71: 15 | JEO71: Pallet Charge | JEV71: =ROUNDUP(SUM(JET45:JET52),0) -> 0 | JEW71: =JEL71 -> 15 | JEY71: =IF(JEW71*JEV71=0,"",JEW71*JEV71) ->  | JEZ71: Pallet Charge | JFA71: 15 | JFD71: Pallet Charge | JFK71: =ROUNDUP(SUM(JFI45:JFI52),0) -> 0 | JFL71: =JFA71 -> 15 | JFN71: =IF(JFL71*JFK71=0,"",JFL71*JFK71) ->  | JFO71: Pallet Charge | JFP71: 15 | JFS71: Pallet Charge | JFZ71: =ROUNDUP(SUM(JFX45:JFX52),0) -> 0 | JGA71: =JFP71 -> 15 | JGC71: =IF(JGA71*JFZ71=0,"",JGA71*JFZ71) ->  | JGD71: Pallet Charge | JGE71: 15 | JGH71: Pallet Charge | JGO71: =ROUNDUP(SUM(JGM45:JGM52),0) -> 0 | JGP71: =JGE71 -> 15 | JGR71: =IF(JGP71*JGO71=0,"",JGP71*JGO71) ->  | JGS71: Pallet Charge | JGT71: 15 | JGW71: Pallet Charge | JHD71: =ROUNDUP(SUM(JHB45:JHB52),0) -> 0 | JHE71: =JGT71 -> 15 | JHG71: =IF(JHE71*JHD71=0,"",JHE71*JHD71) ->  | JHH71: Pallet Charge | JHI71: 15 | JHL71: Pallet Charge | JHS71: =ROUNDUP(SUM(JHQ45:JHQ52),0) -> 0 | JHT71: =JHI71 -> 15 | JHV71: =IF(JHT71*JHS71=0,"",JHT71*JHS71) ->  | JHW71: Pallet Charge | JHX71: 15 | JIA71: Pallet Charge | JIH71: =ROUNDUP(SUM(JIF45:JIF52),0) -> 0 | JII71: =JHX71 -> 15 | JIK71: =IF(JII71*JIH71=0,"",JII71*JIH71) ->  | JIL71: Pallet Charge | JIM71: 15 | JIP71: Pallet Charge | JIW71: =ROUNDUP(SUM(JIU45:JIU52),0) -> 0 | JIX71: =JIM71 -> 15 | JIZ71: =IF(JIX71*JIW71=0,"",JIX71*JIW71) ->  | JJA71: Pallet Charge | JJB71: 15 | JJE71: Pallet Charge | JJL71: =ROUNDUP(SUM(JJJ45:JJJ52),0) -> 0 | JJM71: =JJB71 -> 15 | JJO71: =IF(JJM71*JJL71=0,"",JJM71*JJL71) ->  | JJP71: Pallet Charge | JJQ71: 15 | JJT71: Pallet Charge | JKA71: =ROUNDUP(SUM(JJY45:JJY52),0) -> 0 | JKB71: =JJQ71 -> 15 | JKD71: =IF(JKB71*JKA71=0,"",JKB71*JKA71) ->  | JKE71: Pallet Charge | JKF71: 15 | JKI71: Pallet Charge | JKP71: =ROUNDUP(SUM(JKN45:JKN52),0) -> 0 | JKQ71: =JKF71 -> 15 | JKS71: =IF(JKQ71*JKP71=0,"",JKQ71*JKP71) ->  | JKT71: Pallet Charge | JKU71: 15 | JKX71: Pallet Charge | JLE71: =ROUNDUP(SUM(JLC45:JLC52),0) -> 0 | JLF71: =JKU71 -> 15 | JLH71: =IF(JLF71*JLE71=0,"",JLF71*JLE71) ->  | JLI71: Pallet Charge | JLJ71: 15 | JLM71: Pallet Charge | JLT71: =ROUNDUP(SUM(JLR45:JLR52),0) -> 0 | JLU71: =JLJ71 -> 15 | JLW71: =IF(JLU71*JLT71=0,"",JLU71*JLT71) ->  | JLX71: Pallet Charge | JLY71: 15 | JMB71: Pallet Charge | JMI71: =ROUNDUP(SUM(JMG45:JMG52),0) -> 0 | JMJ71: =JLY71 -> 15 | JML71: =IF(JMJ71*JMI71=0,"",JMJ71*JMI71) ->  | JMM71: Pallet Charge | JMN71: 15 | JMQ71: Pallet Charge | JMX71: =ROUNDUP(SUM(JMV45:JMV52),0) -> 0 | JMY71: =JMN71 -> 15 | JNA71: =IF(JMY71*JMX71=0,"",JMY71*JMX71) ->  | JNB71: Pallet Charge | JNC71: 15 | JNF71: Pallet Charge | JNM71: =ROUNDUP(SUM(JNK45:JNK52),0) -> 0 | JNN71: =JNC71 -> 15 | JNP71: =IF(JNN71*JNM71=0,"",JNN71*JNM71) ->  | JNQ71: Pallet Charge | JNR71: 15 | JNU71: Pallet Charge | JOB71: =ROUNDUP(SUM(JNZ45:JNZ52),0) -> 0 | JOC71: =JNR71 -> 15 | JOE71: =IF(JOC71*JOB71=0,"",JOC71*JOB71) ->  | JOF71: Pallet Charge | JOG71: 15 | JOJ71: Pallet Charge | JOQ71: =ROUNDUP(SUM(JOO45:JOO52),0) -> 0 | JOR71: =JOG71 -> 15 | JOT71: =IF(JOR71*JOQ71=0,"",JOR71*JOQ71) ->  | JOU71: Pallet Charge | JOV71: 15 | JOY71: Pallet Charge | JPF71: =ROUNDUP(SUM(JPD45:JPD52),0) -> 0 | JPG71: =JOV71 -> 15 | JPI71: =IF(JPG71*JPF71=0,"",JPG71*JPF71) ->  | JPJ71: Pallet Charge | JPK71: 15 | JPN71: Pallet Charge | JPU71: =ROUNDUP(SUM(JPS45:JPS52),0) -> 0 | JPV71: =JPK71 -> 15 | JPX71: =IF(JPV71*JPU71=0,"",JPV71*JPU71) ->  | JPY71: Pallet Charge | JPZ71: 15 | JQC71: Pallet Charge | JQJ71: =ROUNDUP(SUM(JQH45:JQH52),0) -> 0 | JQK71: =JPZ71 -> 15 | JQM71: =IF(JQK71*JQJ71=0,"",JQK71*JQJ71) ->  | JQN71: Pallet Charge | JQO71: 15 | JQR71: Pallet Charge | JQY71: =ROUNDUP(SUM(JQW45:JQW52),0) -> 0 | JQZ71: =JQO71 -> 15 | JRB71: =IF(JQZ71*JQY71=0,"",JQZ71*JQY71) ->  | JRC71: Pallet Charge | JRD71: 15 | JRG71: Pallet Charge | JRN71: =ROUNDUP(SUM(JRL45:JRL52),0) -> 0 | JRO71: =JRD71 -> 15 | JRQ71: =IF(JRO71*JRN71=0,"",JRO71*JRN71) ->  | JRR71: Pallet Charge | JRS71: 15 | JRV71: Pallet Charge | JSC71: =ROUNDUP(SUM(JSA45:JSA52),0) -> 0 | JSD71: =JRS71 -> 15 | JSF71: =IF(JSD71*JSC71=0,"",JSD71*JSC71) ->  | JSG71: Pallet Charge | JSH71: 15 | JSK71: Pallet Charge | JSR71: =ROUNDUP(SUM(JSP45:JSP52),0) -> 0 | JSS71: =JSH71 -> 15 | JSU71: =IF(JSS71*JSR71=0,"",JSS71*JSR71) ->  | JSV71: Pallet Charge | JSW71: 15 | JSZ71: Pallet Charge | JTG71: =ROUNDUP(SUM(JTE45:JTE52),0) -> 0 | JTH71: =JSW71 -> 15 | JTJ71: =IF(JTH71*JTG71=0,"",JTH71*JTG71) ->  | JTK71: Pallet Charge | JTL71: 15 | JTO71: Pallet Charge | JTV71: =ROUNDUP(SUM(JTT45:JTT52),0) -> 0 | JTW71: =JTL71 -> 15 | JTY71: =IF(JTW71*JTV71=0,"",JTW71*JTV71) ->  | JTZ71: Pallet Charge | JUA71: 15 | JUD71: Pallet Charge | JUK71: =ROUNDUP(SUM(JUI45:JUI52),0) -> 0 | JUL71: =JUA71 -> 15 | JUN71: =IF(JUL71*JUK71=0,"",JUL71*JUK71) ->  | JUO71: Pallet Charge | JUP71: 15 | JUS71: Pallet Charge | JUZ71: =ROUNDUP(SUM(JUX45:JUX52),0) -> 0 | JVA71: =JUP71 -> 15 | JVC71: =IF(JVA71*JUZ71=0,"",JVA71*JUZ71) ->  | JVD71: Pallet Charge | JVE71: 15 | JVH71: Pallet Charge | JVO71: =ROUNDUP(SUM(JVM45:JVM52),0) -> 0 | JVP71: =JVE71 -> 15 | JVR71: =IF(JVP71*JVO71=0,"",JVP71*JVO71) ->  | JVS71: Pallet Charge | JVT71: 15 | JVW71: Pallet Charge | JWD71: =ROUNDUP(SUM(JWB45:JWB52),0) -> 0 | JWE71: =JVT71 -> 15 | JWG71: =IF(JWE71*JWD71=0,"",JWE71*JWD71) ->  | JWH71: Pallet Charge | JWI71: 15 | JWL71: Pallet Charge | JWS71: =ROUNDUP(SUM(JWQ45:JWQ52),0) -> 0 | JWT71: =JWI71 -> 15 | JWV71: =IF(JWT71*JWS71=0,"",JWT71*JWS71) ->  | JWW71: Pallet Charge | JWX71: 15 | JXA71: Pallet Charge | JXH71: =ROUNDUP(SUM(JXF45:JXF52),0) -> 0 | JXI71: =JWX71 -> 15 | JXK71: =IF(JXI71*JXH71=0,"",JXI71*JXH71) ->  | JXL71: Pallet Charge | JXM71: 15 | JXP71: Pallet Charge | JXW71: =ROUNDUP(SUM(JXU45:JXU52),0) -> 0 | JXX71: =JXM71 -> 15 | JXZ71: =IF(JXX71*JXW71=0,"",JXX71*JXW71) ->  | JYA71: Pallet Charge | JYB71: 15 | JYE71: Pallet Charge | JYL71: =ROUNDUP(SUM(JYJ45:JYJ52),0) -> 0 | JYM71: =JYB71 -> 15 | JYO71: =IF(JYM71*JYL71=0,"",JYM71*JYL71) ->  | JYP71: Pallet Charge | JYQ71: 15 | JYT71: Pallet Charge | JZA71: =ROUNDUP(SUM(JYY45:JYY52),0) -> 0 | JZB71: =JYQ71 -> 15 | JZD71: =IF(JZB71*JZA71=0,"",JZB71*JZA71) ->  | JZE71: Pallet Charge | JZF71: 15 | JZI71: Pallet Charge | JZP71: =ROUNDUP(SUM(JZN45:JZN52),0) -> 0 | JZQ71: =JZF71 -> 15 | JZS71: =IF(JZQ71*JZP71=0,"",JZQ71*JZP71) ->  | JZT71: Pallet Charge | JZU71: 15 | JZX71: Pallet Charge | KAE71: =ROUNDUP(SUM(KAC45:KAC52),0) -> 0 | KAF71: =JZU71 -> 15 | KAH71: =IF(KAF71*KAE71=0,"",KAF71*KAE71) ->  | KAI71: Pallet Charge | KAJ71: 15 | KAM71: Pallet Charge | KAT71: =ROUNDUP(SUM(KAR45:KAR52),0) -> 0 | KAU71: =KAJ71 -> 15 | KAW71: =IF(KAU71*KAT71=0,"",KAU71*KAT71) ->  | KAX71: Pallet Charge | KAY71: 15 | KBB71: Pallet Charge | KBI71: =ROUNDUP(SUM(KBG45:KBG52),0) -> 0 | KBJ71: =KAY71 -> 15 | KBL71: =IF(KBJ71*KBI71=0,"",KBJ71*KBI71) ->  | KBM71: Pallet Charge | KBN71: 15 | KBQ71: Pallet Charge | KBX71: =ROUNDUP(SUM(KBV45:KBV52),0) -> 0 | KBY71: =KBN71 -> 15 | KCA71: =IF(KBY71*KBX71=0,"",KBY71*KBX71) ->  | KCB71: Pallet Charge | KCC71: 15 | KCF71: Pallet Charge | KCM71: =ROUNDUP(SUM(KCK45:KCK52),0) -> 0 | KCN71: =KCC71 -> 15 | KCP71: =IF(KCN71*KCM71=0,"",KCN71*KCM71) ->  | KCQ71: Pallet Charge | KCR71: 15 | KCU71: Pallet Charge | KDB71: =ROUNDUP(SUM(KCZ45:KCZ52),0) -> 0 | KDC71: =KCR71 -> 15 | KDE71: =IF(KDC71*KDB71=0,"",KDC71*KDB71) ->  | KDF71: Pallet Charge | KDG71: 15 | KDJ71: Pallet Charge | KDQ71: =ROUNDUP(SUM(KDO45:KDO52),0) -> 0 | KDR71: =KDG71 -> 15 | KDT71: =IF(KDR71*KDQ71=0,"",KDR71*KDQ71) ->  | KDU71: Pallet Charge | KDV71: 15 | KDY71: Pallet Charge | KEF71: =ROUNDUP(SUM(KED45:KED52),0) -> 0 | KEG71: =KDV71 -> 15 | KEI71: =IF(KEG71*KEF71=0,"",KEG71*KEF71) ->  | KEJ71: Pallet Charge | KEK71: 15 | KEN71: Pallet Charge | KEU71: =ROUNDUP(SUM(KES45:KES52),0) -> 0 | KEV71: =KEK71 -> 15 | KEX71: =IF(KEV71*KEU71=0,"",KEV71*KEU71) ->  | KEY71: Pallet Charge | KEZ71: 15 | KFC71: Pallet Charge | KFJ71: =ROUNDUP(SUM(KFH45:KFH52),0) -> 0 | KFK71: =KEZ71 -> 15 | KFM71: =IF(KFK71*KFJ71=0,"",KFK71*KFJ71) ->  | KFN71: Pallet Charge | KFO71: 15 | KFR71: Pallet Charge | KFY71: =ROUNDUP(SUM(KFW45:KFW52),0) -> 0 | KFZ71: =KFO71 -> 15 | KGB71: =IF(KFZ71*KFY71=0,"",KFZ71*KFY71) ->  | KGC71: Pallet Charge | KGD71: 15 | KGG71: Pallet Charge | KGN71: =ROUNDUP(SUM(KGL45:KGL52),0) -> 0 | KGO71: =KGD71 -> 15 | KGQ71: =IF(KGO71*KGN71=0,"",KGO71*KGN71) ->  | KGR71: Pallet Charge | KGS71: 15 | KGV71: Pallet Charge | KHC71: =ROUNDUP(SUM(KHA45:KHA52),0) -> 0 | KHD71: =KGS71 -> 15 | KHF71: =IF(KHD71*KHC71=0,"",KHD71*KHC71) ->  | KHG71: Pallet Charge | KHH71: 15 | KHK71: Pallet Charge | KHR71: =ROUNDUP(SUM(KHP45:KHP52),0) -> 0 | KHS71: =KHH71 -> 15 | KHU71: =IF(KHS71*KHR71=0,"",KHS71*KHR71) ->  | KHV71: Pallet Charge | KHW71: 15 | KHZ71: Pallet Charge | KIG71: =ROUNDUP(SUM(KIE45:KIE52),0) -> 0 | KIH71: =KHW71 -> 15 | KIJ71: =IF(KIH71*KIG71=0,"",KIH71*KIG71) ->  | KIK71: Pallet Charge | KIL71: 15 | KIO71: Pallet Charge | KIV71: =ROUNDUP(SUM(KIT45:KIT52),0) -> 0 | KIW71: =KIL71 -> 15 | KIY71: =IF(KIW71*KIV71=0,"",KIW71*KIV71) ->  | KIZ71: Pallet Charge | KJA71: 15 | KJD71: Pallet Charge | KJK71: =ROUNDUP(SUM(KJI45:KJI52),0) -> 0 | KJL71: =KJA71 -> 15 | KJN71: =IF(KJL71*KJK71=0,"",KJL71*KJK71) ->  | KJO71: Pallet Charge | KJP71: 15 | KJS71: Pallet Charge | KJZ71: =ROUNDUP(SUM(KJX45:KJX52),0) -> 0 | KKA71: =KJP71 -> 15 | KKC71: =IF(KKA71*KJZ71=0,"",KKA71*KJZ71) ->  | KKD71: Pallet Charge | KKE71: 15 | KKH71: Pallet Charge | KKO71: =ROUNDUP(SUM(KKM45:KKM52),0) -> 0 | KKP71: =KKE71 -> 15 | KKR71: =IF(KKP71*KKO71=0,"",KKP71*KKO71) ->  | KKS71: Pallet Charge | KKT71: 15 | KKW71: Pallet Charge | KLD71: =ROUNDUP(SUM(KLB45:KLB52),0) -> 0 | KLE71: =KKT71 -> 15 | KLG71: =IF(KLE71*KLD71=0,"",KLE71*KLD71) ->  | KLH71: Pallet Charge | KLI71: 15 | KLL71: Pallet Charge | KLS71: =ROUNDUP(SUM(KLQ45:KLQ52),0) -> 0 | KLT71: =KLI71 -> 15 | KLV71: =IF(KLT71*KLS71=0,"",KLT71*KLS71) ->  | KLW71: Pallet Charge | KLX71: 15 | KMA71: Pallet Charge | KMH71: =ROUNDUP(SUM(KMF45:KMF52),0) -> 0 | KMI71: =KLX71 -> 15 | KMK71: =IF(KMI71*KMH71=0,"",KMI71*KMH71) ->  | KML71: Pallet Charge | KMM71: 15 | KMP71: Pallet Charge | KMW71: =ROUNDUP(SUM(KMU45:KMU52),0) -> 0 | KMX71: =KMM71 -> 15 | KMZ71: =IF(KMX71*KMW71=0,"",KMX71*KMW71) ->  | KNA71: Pallet Charge | KNB71: 15 | KNE71: Pallet Charge | KNL71: =ROUNDUP(SUM(KNJ45:KNJ52),0) -> 0 | KNM71: =KNB71 -> 15 | KNO71: =IF(KNM71*KNL71=0,"",KNM71*KNL71) ->  | KNP71: Pallet Charge | KNQ71: 15 | KNT71: Pallet Charge | KOA71: =ROUNDUP(SUM(KNY45:KNY52),0) -> 0 | KOB71: =KNQ71 -> 15 | KOD71: =IF(KOB71*KOA71=0,"",KOB71*KOA71) ->  | KOE71: Pallet Charge | KOF71: 15 | KOI71: Pallet Charge | KOP71: =ROUNDUP(SUM(KON45:KON52),0) -> 0 | KOQ71: =KOF71 -> 15 | KOS71: =IF(KOQ71*KOP71=0,"",KOQ71*KOP71) ->  | KOT71: Pallet Charge | KOU71: 15 | KOX71: Pallet Charge | KPE71: =ROUNDUP(SUM(KPC45:KPC52),0) -> 0 | KPF71: =KOU71 -> 15 | KPH71: =IF(KPF71*KPE71=0,"",KPF71*KPE71) ->  | KPI71: Pallet Charge | KPJ71: 15 | KPM71: Pallet Charge | KPT71: =ROUNDUP(SUM(KPR45:KPR52),0) -> 0 | KPU71: =KPJ71 -> 15 | KPW71: =IF(KPU71*KPT71=0,"",KPU71*KPT71) ->  | KPX71: Pallet Charge | KPY71: 15 | KQB71: Pallet Charge | KQI71: =ROUNDUP(SUM(KQG45:KQG52),0) -> 0 | KQJ71: =KPY71 -> 15 | KQL71: =IF(KQJ71*KQI71=0,"",KQJ71*KQI71) ->  | KQM71: Pallet Charge | KQN71: 15 | KQQ71: Pallet Charge | KQX71: =ROUNDUP(SUM(KQV45:KQV52),0) -> 0 | KQY71: =KQN71 -> 15 | KRA71: =IF(KQY71*KQX71=0,"",KQY71*KQX71) ->  | KRB71: Pallet Charge | KRC71: 15 | KRF71: Pallet Charge | KRM71: =ROUNDUP(SUM(KRK45:KRK52),0) -> 0 | KRN71: =KRC71 -> 15 | KRP71: =IF(KRN71*KRM71=0,"",KRN71*KRM71) ->  | KRQ71: Pallet Charge | KRR71: 15 | KRU71: Pallet Charge | KSB71: =ROUNDUP(SUM(KRZ45:KRZ52),0) -> 0 | KSC71: =KRR71 -> 15 | KSE71: =IF(KSC71*KSB71=0,"",KSC71*KSB71) ->  | KSF71: Pallet Charge | KSG71: 15 | KSJ71: Pallet Charge | KSQ71: =ROUNDUP(SUM(KSO45:KSO52),0) -> 0 | KSR71: =KSG71 -> 15 | KST71: =IF(KSR71*KSQ71=0,"",KSR71*KSQ71) ->  | KSU71: Pallet Charge | KSV71: 15 | KSY71: Pallet Charge | KTF71: =ROUNDUP(SUM(KTD45:KTD52),0) -> 0 | KTG71: =KSV71 -> 15 | KTI71: =IF(KTG71*KTF71=0,"",KTG71*KTF71) ->  | KTJ71: Pallet Charge | KTK71: 15 | KTN71: Pallet Charge | KTU71: =ROUNDUP(SUM(KTS45:KTS52),0) -> 0 | KTV71: =KTK71 -> 15 | KTX71: =IF(KTV71*KTU71=0,"",KTV71*KTU71) ->  | KTY71: Pallet Charge | KTZ71: 15 | KUC71: Pallet Charge | KUJ71: =ROUNDUP(SUM(KUH45:KUH52),0) -> 0 | KUK71: =KTZ71 -> 15 | KUM71: =IF(KUK71*KUJ71=0,"",KUK71*KUJ71) ->  | KUN71: Pallet Charge | KUO71: 15 | KUR71: Pallet Charge | KUY71: =ROUNDUP(SUM(KUW45:KUW52),0) -> 0 | KUZ71: =KUO71 -> 15 | KVB71: =IF(KUZ71*KUY71=0,"",KUZ71*KUY71) ->  | KVC71: Pallet Charge | KVD71: 15 | KVG71: Pallet Charge | KVN71: =ROUNDUP(SUM(KVL45:KVL52),0) -> 0 | KVO71: =KVD71 -> 15 | KVQ71: =IF(KVO71*KVN71=0,"",KVO71*KVN71) ->  | KVR71: Pallet Charge | KVS71: 15 | KVV71: Pallet Charge | KWC71: =ROUNDUP(SUM(KWA45:KWA52),0) -> 0 | KWD71: =KVS71 -> 15 | KWF71: =IF(KWD71*KWC71=0,"",KWD71*KWC71) ->  | KWG71: Pallet Charge | KWH71: 15 | KWK71: Pallet Charge | KWR71: =ROUNDUP(SUM(KWP45:KWP52),0) -> 0 | KWS71: =KWH71 -> 15 | KWU71: =IF(KWS71*KWR71=0,"",KWS71*KWR71) ->  | KWV71: Pallet Charge | KWW71: 15 | KWZ71: Pallet Charge | KXG71: =ROUNDUP(SUM(KXE45:KXE52),0) -> 0 | KXH71: =KWW71 -> 15 | KXJ71: =IF(KXH71*KXG71=0,"",KXH71*KXG71) ->  | KXK71: Pallet Charge | KXL71: 15 | KXO71: Pallet Charge | KXV71: =ROUNDUP(SUM(KXT45:KXT52),0) -> 0 | KXW71: =KXL71 -> 15 | KXY71: =IF(KXW71*KXV71=0,"",KXW71*KXV71) ->  | KXZ71: Pallet Charge | KYA71: 15 | KYD71: Pallet Charge | KYK71: =ROUNDUP(SUM(KYI45:KYI52),0) -> 0 | KYL71: =KYA71 -> 15 | KYN71: =IF(KYL71*KYK71=0,"",KYL71*KYK71) ->  | KYO71: Pallet Charge | KYP71: 15 | KYS71: Pallet Charge | KYZ71: =ROUNDUP(SUM(KYX45:KYX52),0) -> 0 | KZA71: =KYP71 -> 15 | KZC71: =IF(KZA71*KYZ71=0,"",KZA71*KYZ71) ->  | KZD71: Pallet Charge | KZE71: 15 | KZH71: Pallet Charge | KZO71: =ROUNDUP(SUM(KZM45:KZM52),0) -> 0 | KZP71: =KZE71 -> 15 | KZR71: =IF(KZP71*KZO71=0,"",KZP71*KZO71) ->  | KZS71: Pallet Charge | KZT71: 15 | KZW71: Pallet Charge | LAD71: =ROUNDUP(SUM(LAB45:LAB52),0) -> 0 | LAE71: =KZT71 -> 15 | LAG71: =IF(LAE71*LAD71=0,"",LAE71*LAD71) ->  | LAH71: Pallet Charge | LAI71: 15 | LAL71: Pallet Charge | LAS71: =ROUNDUP(SUM(LAQ45:LAQ52),0) -> 0 | LAT71: =LAI71 -> 15 | LAV71: =IF(LAT71*LAS71=0,"",LAT71*LAS71) ->  | LAW71: Pallet Charge | LAX71: 15 | LBA71: Pallet Charge | LBH71: =ROUNDUP(SUM(LBF45:LBF52),0) -> 0 | LBI71: =LAX71 -> 15 | LBK71: =IF(LBI71*LBH71=0,"",LBI71*LBH71) ->  | LBL71: Pallet Charge | LBM71: 15 | LBP71: Pallet Charge | LBW71: =ROUNDUP(SUM(LBU45:LBU52),0) -> 0 | LBX71: =LBM71 -> 15 | LBZ71: =IF(LBX71*LBW71=0,"",LBX71*LBW71) ->  | LCA71: Pallet Charge | LCB71: 15 | LCE71: Pallet Charge | LCL71: =ROUNDUP(SUM(LCJ45:LCJ52),0) -> 0 | LCM71: =LCB71 -> 15 | LCO71: =IF(LCM71*LCL71=0,"",LCM71*LCL71) ->  | LCP71: Pallet Charge | LCQ71: 15 | LCT71: Pallet Charge | LDA71: =ROUNDUP(SUM(LCY45:LCY52),0) -> 0 | LDB71: =LCQ71 -> 15 | LDD71: =IF(LDB71*LDA71=0,"",LDB71*LDA71) ->  | LDE71: Pallet Charge | LDF71: 15 | LDI71: Pallet Charge | LDP71: =ROUNDUP(SUM(LDN45:LDN52),0) -> 0 | LDQ71: =LDF71 -> 15 | LDS71: =IF(LDQ71*LDP71=0,"",LDQ71*LDP71) ->  | LDT71: Pallet Charge | LDU71: 15 | LDX71: Pallet Charge | LEE71: =ROUNDUP(SUM(LEC45:LEC52),0) -> 0 | LEF71: =LDU71 -> 15 | LEH71: =IF(LEF71*LEE71=0,"",LEF71*LEE71) ->  | LEI71: Pallet Charge | LEJ71: 15 | LEM71: Pallet Charge | LET71: =ROUNDUP(SUM(LER45:LER52),0) -> 0 | LEU71: =LEJ71 -> 15 | LEW71: =IF(LEU71*LET71=0,"",LEU71*LET71) ->  | LEX71: Pallet Charge | LEY71: 15 | LFB71: Pallet Charge | LFI71: =ROUNDUP(SUM(LFG45:LFG52),0) -> 0 | LFJ71: =LEY71 -> 15 | LFL71: =IF(LFJ71*LFI71=0,"",LFJ71*LFI71) ->  | LFM71: Pallet Charge | LFN71: 15 | LFQ71: Pallet Charge | LFX71: =ROUNDUP(SUM(LFV45:LFV52),0) -> 0 | LFY71: =LFN71 -> 15 | LGA71: =IF(LFY71*LFX71=0,"",LFY71*LFX71) ->  | LGB71: Pallet Charge | LGC71: 15 | LGF71: Pallet Charge | LGM71: =ROUNDUP(SUM(LGK45:LGK52),0) -> 0 | LGN71: =LGC71 -> 15 | LGP71: =IF(LGN71*LGM71=0,"",LGN71*LGM71) ->  | LGQ71: Pallet Charge | LGR71: 15 | LGU71: Pallet Charge | LHB71: =ROUNDUP(SUM(LGZ45:LGZ52),0) -> 0 | LHC71: =LGR71 -> 15 | LHE71: =IF(LHC71*LHB71=0,"",LHC71*LHB71) ->  | LHF71: Pallet Charge | LHG71: 15 | LHJ71: Pallet Charge | LHQ71: =ROUNDUP(SUM(LHO45:LHO52),0) -> 0 | LHR71: =LHG71 -> 15 | LHT71: =IF(LHR71*LHQ71=0,"",LHR71*LHQ71) ->  | LHU71: Pallet Charge | LHV71: 15 | LHY71: Pallet Charge | LIF71: =ROUNDUP(SUM(LID45:LID52),0) -> 0 | LIG71: =LHV71 -> 15 | LII71: =IF(LIG71*LIF71=0,"",LIG71*LIF71) ->  | LIJ71: Pallet Charge | LIK71: 15 | LIN71: Pallet Charge | LIU71: =ROUNDUP(SUM(LIS45:LIS52),0) -> 0 | LIV71: =LIK71 -> 15 | LIX71: =IF(LIV71*LIU71=0,"",LIV71*LIU71) ->  | LIY71: Pallet Charge | LIZ71: 15 | LJC71: Pallet Charge | LJJ71: =ROUNDUP(SUM(LJH45:LJH52),0) -> 0 | LJK71: =LIZ71 -> 15 | LJM71: =IF(LJK71*LJJ71=0,"",LJK71*LJJ71) ->  | LJN71: Pallet Charge | LJO71: 15 | LJR71: Pallet Charge | LJY71: =ROUNDUP(SUM(LJW45:LJW52),0) -> 0 | LJZ71: =LJO71 -> 15 | LKB71: =IF(LJZ71*LJY71=0,"",LJZ71*LJY71) ->  | LKC71: Pallet Charge | LKD71: 15 | LKG71: Pallet Charge | LKN71: =ROUNDUP(SUM(LKL45:LKL52),0) -> 0 | LKO71: =LKD71 -> 15 | LKQ71: =IF(LKO71*LKN71=0,"",LKO71*LKN71) ->  | LKR71: Pallet Charge | LKS71: 15 | LKV71: Pallet Charge | LLC71: =ROUNDUP(SUM(LLA45:LLA52),0) -> 0 | LLD71: =LKS71 -> 15 | LLF71: =IF(LLD71*LLC71=0,"",LLD71*LLC71) ->  | LLG71: Pallet Charge | LLH71: 15 | LLK71: Pallet Charge | LLR71: =ROUNDUP(SUM(LLP45:LLP52),0) -> 0 | LLS71: =LLH71 -> 15 | LLU71: =IF(LLS71*LLR71=0,"",LLS71*LLR71) ->  | LLV71: Pallet Charge | LLW71: 15 | LLZ71: Pallet Charge | LMG71: =ROUNDUP(SUM(LME45:LME52),0) -> 0 | LMH71: =LLW71 -> 15 | LMJ71: =IF(LMH71*LMG71=0,"",LMH71*LMG71) ->  | LMK71: Pallet Charge | LML71: 15 | LMO71: Pallet Charge | LMV71: =ROUNDUP(SUM(LMT45:LMT52),0) -> 0 | LMW71: =LML71 -> 15 | LMY71: =IF(LMW71*LMV71=0,"",LMW71*LMV71) ->  | LMZ71: Pallet Charge | LNA71: 15 | LND71: Pallet Charge | LNK71: =ROUNDUP(SUM(LNI45:LNI52),0) -> 0 | LNL71: =LNA71 -> 15 | LNN71: =IF(LNL71*LNK71=0,"",LNL71*LNK71) ->  | LNO71: Pallet Charge | LNP71: 15 | LNS71: Pallet Charge | LNZ71: =ROUNDUP(SUM(LNX45:LNX52),0) -> 0 | LOA71: =LNP71 -> 15 | LOC71: =IF(LOA71*LNZ71=0,"",LOA71*LNZ71) ->  | LOD71: Pallet Charge | LOE71: 15 | LOH71: Pallet Charge | LOO71: =ROUNDUP(SUM(LOM45:LOM52),0) -> 0 | LOP71: =LOE71 -> 15 | LOR71: =IF(LOP71*LOO71=0,"",LOP71*LOO71) ->  | LOS71: Pallet Charge | LOT71: 15 | LOW71: Pallet Charge | LPD71: =ROUNDUP(SUM(LPB45:LPB52),0) -> 0 | LPE71: =LOT71 -> 15 | LPG71: =IF(LPE71*LPD71=0,"",LPE71*LPD71) ->  | LPH71: Pallet Charge | LPI71: 15 | LPL71: Pallet Charge | LPS71: =ROUNDUP(SUM(LPQ45:LPQ52),0) -> 0 | LPT71: =LPI71 -> 15 | LPV71: =IF(LPT71*LPS71=0,"",LPT71*LPS71) ->  | LPW71: Pallet Charge | LPX71: 15 | LQA71: Pallet Charge | LQH71: =ROUNDUP(SUM(LQF45:LQF52),0) -> 0 | LQI71: =LPX71 -> 15 | LQK71: =IF(LQI71*LQH71=0,"",LQI71*LQH71) ->  | LQL71: Pallet Charge | LQM71: 15 | LQP71: Pallet Charge | LQW71: =ROUNDUP(SUM(LQU45:LQU52),0) -> 0 | LQX71: =LQM71 -> 15 | LQZ71: =IF(LQX71*LQW71=0,"",LQX71*LQW71) ->  | LRA71: Pallet Charge | LRB71: 15 | LRE71: Pallet Charge | LRL71: =ROUNDUP(SUM(LRJ45:LRJ52),0) -> 0 | LRM71: =LRB71 -> 15 | LRO71: =IF(LRM71*LRL71=0,"",LRM71*LRL71) ->  | LRP71: Pallet Charge | LRQ71: 15 | LRT71: Pallet Charge | LSA71: =ROUNDUP(SUM(LRY45:LRY52),0) -> 0 | LSB71: =LRQ71 -> 15 | LSD71: =IF(LSB71*LSA71=0,"",LSB71*LSA71) ->  | LSE71: Pallet Charge | LSF71: 15 | LSI71: Pallet Charge | LSP71: =ROUNDUP(SUM(LSN45:LSN52),0) -> 0 | LSQ71: =LSF71 -> 15 | LSS71: =IF(LSQ71*LSP71=0,"",LSQ71*LSP71) ->  | LST71: Pallet Charge | LSU71: 15 | LSX71: Pallet Charge | LTE71: =ROUNDUP(SUM(LTC45:LTC52),0) -> 0 | LTF71: =LSU71 -> 15 | LTH71: =IF(LTF71*LTE71=0,"",LTF71*LTE71) ->  | LTI71: Pallet Charge | LTJ71: 15 | LTM71: Pallet Charge | LTT71: =ROUNDUP(SUM(LTR45:LTR52),0) -> 0 | LTU71: =LTJ71 -> 15 | LTW71: =IF(LTU71*LTT71=0,"",LTU71*LTT71) ->  | LTX71: Pallet Charge | LTY71: 15 | LUB71: Pallet Charge | LUI71: =ROUNDUP(SUM(LUG45:LUG52),0) -> 0 | LUJ71: =LTY71 -> 15 | LUL71: =IF(LUJ71*LUI71=0,"",LUJ71*LUI71) ->  | LUM71: Pallet Charge | LUN71: 15 | LUQ71: Pallet Charge | LUX71: =ROUNDUP(SUM(LUV45:LUV52),0) -> 0 | LUY71: =LUN71 -> 15 | LVA71: =IF(LUY71*LUX71=0,"",LUY71*LUX71) ->  | LVB71: Pallet Charge | LVC71: 15 | LVF71: Pallet Charge | LVM71: =ROUNDUP(SUM(LVK45:LVK52),0) -> 0 | LVN71: =LVC71 -> 15 | LVP71: =IF(LVN71*LVM71=0,"",LVN71*LVM71) ->  | LVQ71: Pallet Charge | LVR71: 15 | LVU71: Pallet Charge | LWB71: =ROUNDUP(SUM(LVZ45:LVZ52),0) -> 0 | LWC71: =LVR71 -> 15 | LWE71: =IF(LWC71*LWB71=0,"",LWC71*LWB71) ->  | LWF71: Pallet Charge | LWG71: 15 | LWJ71: Pallet Charge | LWQ71: =ROUNDUP(SUM(LWO45:LWO52),0) -> 0 | LWR71: =LWG71 -> 15 | LWT71: =IF(LWR71*LWQ71=0,"",LWR71*LWQ71) ->  | LWU71: Pallet Charge | LWV71: 15 | LWY71: Pallet Charge | LXF71: =ROUNDUP(SUM(LXD45:LXD52),0) -> 0 | LXG71: =LWV71 -> 15 | LXI71: =IF(LXG71*LXF71=0,"",LXG71*LXF71) ->  | LXJ71: Pallet Charge | LXK71: 15 | LXN71: Pallet Charge | LXU71: =ROUNDUP(SUM(LXS45:LXS52),0) -> 0 | LXV71: =LXK71 -> 15 | LXX71: =IF(LXV71*LXU71=0,"",LXV71*LXU71) ->  | LXY71: Pallet Charge | LXZ71: 15 | LYC71: Pallet Charge | LYJ71: =ROUNDUP(SUM(LYH45:LYH52),0) -> 0 | LYK71: =LXZ71 -> 15 | LYM71: =IF(LYK71*LYJ71=0,"",LYK71*LYJ71) ->  | LYN71: Pallet Charge | LYO71: 15 | LYR71: Pallet Charge | LYY71: =ROUNDUP(SUM(LYW45:LYW52),0) -> 0 | LYZ71: =LYO71 -> 15 | LZB71: =IF(LYZ71*LYY71=0,"",LYZ71*LYY71) ->  | LZC71: Pallet Charge | LZD71: 15 | LZG71: Pallet Charge | LZN71: =ROUNDUP(SUM(LZL45:LZL52),0) -> 0 | LZO71: =LZD71 -> 15 | LZQ71: =IF(LZO71*LZN71=0,"",LZO71*LZN71) ->  | LZR71: Pallet Charge | LZS71: 15 | LZV71: Pallet Charge | MAC71: =ROUNDUP(SUM(MAA45:MAA52),0) -> 0 | MAD71: =LZS71 -> 15 | MAF71: =IF(MAD71*MAC71=0,"",MAD71*MAC71) ->  | MAG71: Pallet Charge | MAH71: 15 | MAK71: Pallet Charge | MAR71: =ROUNDUP(SUM(MAP45:MAP52),0) -> 0 | MAS71: =MAH71 -> 15 | MAU71: =IF(MAS71*MAR71=0,"",MAS71*MAR71) ->  | MAV71: Pallet Charge | MAW71: 15 | MAZ71: Pallet Charge | MBG71: =ROUNDUP(SUM(MBE45:MBE52),0) -> 0 | MBH71: =MAW71 -> 15 | MBJ71: =IF(MBH71*MBG71=0,"",MBH71*MBG71) ->  | MBK71: Pallet Charge | MBL71: 15 | MBO71: Pallet Charge | MBV71: =ROUNDUP(SUM(MBT45:MBT52),0) -> 0 | MBW71: =MBL71 -> 15 | MBY71: =IF(MBW71*MBV71=0,"",MBW71*MBV71) ->  | MBZ71: Pallet Charge | MCA71: 15 | MCD71: Pallet Charge | MCK71: =ROUNDUP(SUM(MCI45:MCI52),0) -> 0 | MCL71: =MCA71 -> 15 | MCN71: =IF(MCL71*MCK71=0,"",MCL71*MCK71) ->  | MCO71: Pallet Charge | MCP71: 15 | MCS71: Pallet Charge | MCZ71: =ROUNDUP(SUM(MCX45:MCX52),0) -> 0 | MDA71: =MCP71 -> 15 | MDC71: =IF(MDA71*MCZ71=0,"",MDA71*MCZ71) ->  | MDD71: Pallet Charge | MDE71: 15 | MDH71: Pallet Charge | MDO71: =ROUNDUP(SUM(MDM45:MDM52),0) -> 0 | MDP71: =MDE71 -> 15 | MDR71: =IF(MDP71*MDO71=0,"",MDP71*MDO71) ->  | MDS71: Pallet Charge | MDT71: 15 | MDW71: Pallet Charge | MED71: =ROUNDUP(SUM(MEB45:MEB52),0) -> 0 | MEE71: =MDT71 -> 15 | MEG71: =IF(MEE71*MED71=0,"",MEE71*MED71) ->  | MEH71: Pallet Charge | MEI71: 15 | MEL71: Pallet Charge | MES71: =ROUNDUP(SUM(MEQ45:MEQ52),0) -> 0 | MET71: =MEI71 -> 15 | MEV71: =IF(MET71*MES71=0,"",MET71*MES71) ->  | MEW71: Pallet Charge | MEX71: 15 | MFA71: Pallet Charge | MFH71: =ROUNDUP(SUM(MFF45:MFF52),0) -> 0 | MFI71: =MEX71 -> 15 | MFK71: =IF(MFI71*MFH71=0,"",MFI71*MFH71) ->  | MFL71: Pallet Charge | MFM71: 15 | MFP71: Pallet Charge | MFW71: =ROUNDUP(SUM(MFU45:MFU52),0) -> 0 | MFX71: =MFM71 -> 15 | MFZ71: =IF(MFX71*MFW71=0,"",MFX71*MFW71) ->  | MGA71: Pallet Charge | MGB71: 15 | MGE71: Pallet Charge | MGL71: =ROUNDUP(SUM(MGJ45:MGJ52),0) -> 0 | MGM71: =MGB71 -> 15 | MGO71: =IF(MGM71*MGL71=0,"",MGM71*MGL71) ->  | MGP71: Pallet Charge | MGQ71: 15 | MGT71: Pallet Charge | MHA71: =ROUNDUP(SUM(MGY45:MGY52),0) -> 0 | MHB71: =MGQ71 -> 15 | MHD71: =IF(MHB71*MHA71=0,"",MHB71*MHA71) ->  | MHE71: Pallet Charge | MHF71: 15 | MHI71: Pallet Charge | MHP71: =ROUNDUP(SUM(MHN45:MHN52),0) -> 0 | MHQ71: =MHF71 -> 15 | MHS71: =IF(MHQ71*MHP71=0,"",MHQ71*MHP71) ->  | MHT71: Pallet Charge | MHU71: 15 | MHX71: Pallet Charge | MIE71: =ROUNDUP(SUM(MIC45:MIC52),0) -> 0 | MIF71: =MHU71 -> 15 | MIH71: =IF(MIF71*MIE71=0,"",MIF71*MIE71) ->  | MII71: Pallet Charge | MIJ71: 15 | MIM71: Pallet Charge | MIT71: =ROUNDUP(SUM(MIR45:MIR52),0) -> 0 | MIU71: =MIJ71 -> 15 | MIW71: =IF(MIU71*MIT71=0,"",MIU71*MIT71) ->  | MIX71: Pallet Charge | MIY71: 15 | MJB71: Pallet Charge | MJI71: =ROUNDUP(SUM(MJG45:MJG52),0) -> 0 | MJJ71: =MIY71 -> 15 | MJL71: =IF(MJJ71*MJI71=0,"",MJJ71*MJI71) ->  | MJM71: Pallet Charge | MJN71: 15 | MJQ71: Pallet Charge | MJX71: =ROUNDUP(SUM(MJV45:MJV52),0) -> 0 | MJY71: =MJN71 -> 15 | MKA71: =IF(MJY71*MJX71=0,"",MJY71*MJX71) ->  | MKB71: Pallet Charge | MKC71: 15 | MKF71: Pallet Charge | MKM71: =ROUNDUP(SUM(MKK45:MKK52),0) -> 0 | MKN71: =MKC71 -> 15 | MKP71: =IF(MKN71*MKM71=0,"",MKN71*MKM71) ->  | MKQ71: Pallet Charge | MKR71: 15 | MKU71: Pallet Charge | MLB71: =ROUNDUP(SUM(MKZ45:MKZ52),0) -> 0 | MLC71: =MKR71 -> 15 | MLE71: =IF(MLC71*MLB71=0,"",MLC71*MLB71) ->  | MLF71: Pallet Charge | MLG71: 15 | MLJ71: Pallet Charge | MLQ71: =ROUNDUP(SUM(MLO45:MLO52),0) -> 0 | MLR71: =MLG71 -> 15 | MLT71: =IF(MLR71*MLQ71=0,"",MLR71*MLQ71) ->  | MLU71: Pallet Charge | MLV71: 15 | MLY71: Pallet Charge | MMF71: =ROUNDUP(SUM(MMD45:MMD52),0) -> 0 | MMG71: =MLV71 -> 15 | MMI71: =IF(MMG71*MMF71=0,"",MMG71*MMF71) ->  | MMJ71: Pallet Charge | MMK71: 15 | MMN71: Pallet Charge | MMU71: =ROUNDUP(SUM(MMS45:MMS52),0) -> 0 | MMV71: =MMK71 -> 15 | MMX71: =IF(MMV71*MMU71=0,"",MMV71*MMU71) ->  | MMY71: Pallet Charge | MMZ71: 15 | MNC71: Pallet Charge | MNJ71: =ROUNDUP(SUM(MNH45:MNH52),0) -> 0 | MNK71: =MMZ71 -> 15 | MNM71: =IF(MNK71*MNJ71=0,"",MNK71*MNJ71) ->  | MNN71: Pallet Charge | MNO71: 15 | MNR71: Pallet Charge | MNY71: =ROUNDUP(SUM(MNW45:MNW52),0) -> 0 | MNZ71: =MNO71 -> 15 | MOB71: =IF(MNZ71*MNY71=0,"",MNZ71*MNY71) ->  | MOC71: Pallet Charge | MOD71: 15 | MOG71: Pallet Charge | MON71: =ROUNDUP(SUM(MOL45:MOL52),0) -> 0 | MOO71: =MOD71 -> 15 | MOQ71: =IF(MOO71*MON71=0,"",MOO71*MON71) ->  | MOR71: Pallet Charge | MOS71: 15 | MOV71: Pallet Charge | MPC71: =ROUNDUP(SUM(MPA45:MPA52),0) -> 0 | MPD71: =MOS71 -> 15 | MPF71: =IF(MPD71*MPC71=0,"",MPD71*MPC71) ->  | MPG71: Pallet Charge | MPH71: 15 | MPK71: Pallet Charge | MPR71: =ROUNDUP(SUM(MPP45:MPP52),0) -> 0 | MPS71: =MPH71 -> 15 | MPU71: =IF(MPS71*MPR71=0,"",MPS71*MPR71) ->  | MPV71: Pallet Charge | MPW71: 15 | MPZ71: Pallet Charge | MQG71: =ROUNDUP(SUM(MQE45:MQE52),0) -> 0 | MQH71: =MPW71 -> 15 | MQJ71: =IF(MQH71*MQG71=0,"",MQH71*MQG71) ->  | MQK71: Pallet Charge | MQL71: 15 | MQO71: Pallet Charge | MQV71: =ROUNDUP(SUM(MQT45:MQT52),0) -> 0 | MQW71: =MQL71 -> 15 | MQY71: =IF(MQW71*MQV71=0,"",MQW71*MQV71) ->  | MQZ71: Pallet Charge | MRA71: 15 | MRD71: Pallet Charge | MRK71: =ROUNDUP(SUM(MRI45:MRI52),0) -> 0 | MRL71: =MRA71 -> 15 | MRN71: =IF(MRL71*MRK71=0,"",MRL71*MRK71) ->  | MRO71: Pallet Charge | MRP71: 15 | MRS71: Pallet Charge | MRZ71: =ROUNDUP(SUM(MRX45:MRX52),0) -> 0 | MSA71: =MRP71 -> 15 | MSC71: =IF(MSA71*MRZ71=0,"",MSA71*MRZ71) ->  | MSD71: Pallet Charge | MSE71: 15 | MSH71: Pallet Charge | MSO71: =ROUNDUP(SUM(MSM45:MSM52),0) -> 0 | MSP71: =MSE71 -> 15 | MSR71: =IF(MSP71*MSO71=0,"",MSP71*MSO71) ->  | MSS71: Pallet Charge | MST71: 15 | MSW71: Pallet Charge | MTD71: =ROUNDUP(SUM(MTB45:MTB52),0) -> 0 | MTE71: =MST71 -> 15 | MTG71: =IF(MTE71*MTD71=0,"",MTE71*MTD71) ->  | MTH71: Pallet Charge | MTI71: 15 | MTL71: Pallet Charge | MTS71: =ROUNDUP(SUM(MTQ45:MTQ52),0) -> 0 | MTT71: =MTI71 -> 15 | MTV71: =IF(MTT71*MTS71=0,"",MTT71*MTS71) ->  | MTW71: Pallet Charge | MTX71: 15 | MUA71: Pallet Charge | MUH71: =ROUNDUP(SUM(MUF45:MUF52),0) -> 0 | MUI71: =MTX71 -> 15 | MUK71: =IF(MUI71*MUH71=0,"",MUI71*MUH71) ->  | MUL71: Pallet Charge | MUM71: 15 | MUP71: Pallet Charge | MUW71: =ROUNDUP(SUM(MUU45:MUU52),0) -> 0 | MUX71: =MUM71 -> 15 | MUZ71: =IF(MUX71*MUW71=0,"",MUX71*MUW71) ->  | MVA71: Pallet Charge | MVB71: 15 | MVE71: Pallet Charge | MVL71: =ROUNDUP(SUM(MVJ45:MVJ52),0) -> 0 | MVM71: =MVB71 -> 15 | MVO71: =IF(MVM71*MVL71=0,"",MVM71*MVL71) ->  | MVP71: Pallet Charge | MVQ71: 15 | MVT71: Pallet Charge | MWA71: =ROUNDUP(SUM(MVY45:MVY52),0) -> 0 | MWB71: =MVQ71 -> 15 | MWD71: =IF(MWB71*MWA71=0,"",MWB71*MWA71) ->  | MWE71: Pallet Charge | MWF71: 15 | MWI71: Pallet Charge | MWP71: =ROUNDUP(SUM(MWN45:MWN52),0) -> 0 | MWQ71: =MWF71 -> 15 | MWS71: =IF(MWQ71*MWP71=0,"",MWQ71*MWP71) ->  | MWT71: Pallet Charge | MWU71: 15 | MWX71: Pallet Charge | MXE71: =ROUNDUP(SUM(MXC45:MXC52),0) -> 0 | MXF71: =MWU71 -> 15 | MXH71: =IF(MXF71*MXE71=0,"",MXF71*MXE71) ->  | MXI71: Pallet Charge | MXJ71: 15 | MXM71: Pallet Charge | MXT71: =ROUNDUP(SUM(MXR45:MXR52),0) -> 0 | MXU71: =MXJ71 -> 15 | MXW71: =IF(MXU71*MXT71=0,"",MXU71*MXT71) ->  | MXX71: Pallet Charge | MXY71: 15 | MYB71: Pallet Charge | MYI71: =ROUNDUP(SUM(MYG45:MYG52),0) -> 0 | MYJ71: =MXY71 -> 15 | MYL71: =IF(MYJ71*MYI71=0,"",MYJ71*MYI71) ->  | MYM71: Pallet Charge | MYN71: 15 | MYQ71: Pallet Charge | MYX71: =ROUNDUP(SUM(MYV45:MYV52),0) -> 0 | MYY71: =MYN71 -> 15 | MZA71: =IF(MYY71*MYX71=0,"",MYY71*MYX71) ->  | MZB71: Pallet Charge | MZC71: 15 | MZF71: Pallet Charge | MZM71: =ROUNDUP(SUM(MZK45:MZK52),0) -> 0 | MZN71: =MZC71 -> 15 | MZP71: =IF(MZN71*MZM71=0,"",MZN71*MZM71) ->  | MZQ71: Pallet Charge | MZR71: 15 | MZU71: Pallet Charge | NAB71: =ROUNDUP(SUM(MZZ45:MZZ52),0) -> 0 | NAC71: =MZR71 -> 15 | NAE71: =IF(NAC71*NAB71=0,"",NAC71*NAB71) ->  | NAF71: Pallet Charge | NAG71: 15 | NAJ71: Pallet Charge | NAQ71: =ROUNDUP(SUM(NAO45:NAO52),0) -> 0 | NAR71: =NAG71 -> 15 | NAT71: =IF(NAR71*NAQ71=0,"",NAR71*NAQ71) ->  | NAU71: Pallet Charge | NAV71: 15 | NAY71: Pallet Charge | NBF71: =ROUNDUP(SUM(NBD45:NBD52),0) -> 0 | NBG71: =NAV71 -> 15 | NBI71: =IF(NBG71*NBF71=0,"",NBG71*NBF71) ->  | NBJ71: Pallet Charge | NBK71: 15 | NBN71: Pallet Charge | NBU71: =ROUNDUP(SUM(NBS45:NBS52),0) -> 0 | NBV71: =NBK71 -> 15 | NBX71: =IF(NBV71*NBU71=0,"",NBV71*NBU71) ->  | NBY71: Pallet Charge | NBZ71: 15 | NCC71: Pallet Charge | NCJ71: =ROUNDUP(SUM(NCH45:NCH52),0) -> 0 | NCK71: =NBZ71 -> 15 | NCM71: =IF(NCK71*NCJ71=0,"",NCK71*NCJ71) ->  | NCN71: Pallet Charge | NCO71: 15 | NCR71: Pallet Charge | NCY71: =ROUNDUP(SUM(NCW45:NCW52),0) -> 0 | NCZ71: =NCO71 -> 15 | NDB71: =IF(NCZ71*NCY71=0,"",NCZ71*NCY71) ->  | NDC71: Pallet Charge | NDD71: 15 | NDG71: Pallet Charge | NDN71: =ROUNDUP(SUM(NDL45:NDL52),0) -> 0 | NDO71: =NDD71 -> 15 | NDQ71: =IF(NDO71*NDN71=0,"",NDO71*NDN71) ->  | NDR71: Pallet Charge | NDS71: 15 | NDV71: Pallet Charge | NEC71: =ROUNDUP(SUM(NEA45:NEA52),0) -> 0 | NED71: =NDS71 -> 15 | NEF71: =IF(NED71*NEC71=0,"",NED71*NEC71) ->  | NEG71: Pallet Charge | NEH71: 15 | NEK71: Pallet Charge | NER71: =ROUNDUP(SUM(NEP45:NEP52),0) -> 0 | NES71: =NEH71 -> 15 | NEU71: =IF(NES71*NER71=0,"",NES71*NER71) ->  | NEV71: Pallet Charge | NEW71: 15 | NEZ71: Pallet Charge | NFG71: =ROUNDUP(SUM(NFE45:NFE52),0) -> 0 | NFH71: =NEW71 -> 15 | NFJ71: =IF(NFH71*NFG71=0,"",NFH71*NFG71) ->  | NFK71: Pallet Charge | NFL71: 15 | NFO71: Pallet Charge | NFV71: =ROUNDUP(SUM(NFT45:NFT52),0) -> 0 | NFW71: =NFL71 -> 15 | NFY71: =IF(NFW71*NFV71=0,"",NFW71*NFV71) ->  | NFZ71: Pallet Charge | NGA71: 15 | NGD71: Pallet Charge | NGK71: =ROUNDUP(SUM(NGI45:NGI52),0) -> 0 | NGL71: =NGA71 -> 15 | NGN71: =IF(NGL71*NGK71=0,"",NGL71*NGK71) ->  | NGO71: Pallet Charge | NGP71: 15 | NGS71: Pallet Charge | NGZ71: =ROUNDUP(SUM(NGX45:NGX52),0) -> 0 | NHA71: =NGP71 -> 15 | NHC71: =IF(NHA71*NGZ71=0,"",NHA71*NGZ71) ->  | NHD71: Pallet Charge | NHE71: 15 | NHH71: Pallet Charge | NHO71: =ROUNDUP(SUM(NHM45:NHM52),0) -> 0 | NHP71: =NHE71 -> 15 | NHR71: =IF(NHP71*NHO71=0,"",NHP71*NHO71) ->  | NHS71: Pallet Charge | NHT71: 15 | NHW71: Pallet Charge | NID71: =ROUNDUP(SUM(NIB45:NIB52),0) -> 0 | NIE71: =NHT71 -> 15 | NIG71: =IF(NIE71*NID71=0,"",NIE71*NID71) ->  | NIH71: Pallet Charge | NII71: 15 | NIL71: Pallet Charge | NIS71: =ROUNDUP(SUM(NIQ45:NIQ52),0) -> 0 | NIT71: =NII71 -> 15 | NIV71: =IF(NIT71*NIS71=0,"",NIT71*NIS71) ->  | NIW71: Pallet Charge | NIX71: 15 | NJA71: Pallet Charge | NJH71: =ROUNDUP(SUM(NJF45:NJF52),0) -> 0 | NJI71: =NIX71 -> 15 | NJK71: =IF(NJI71*NJH71=0,"",NJI71*NJH71) ->  | NJL71: Pallet Charge | NJM71: 15 | NJP71: Pallet Charge | NJW71: =ROUNDUP(SUM(NJU45:NJU52),0) -> 0 | NJX71: =NJM71 -> 15 | NJZ71: =IF(NJX71*NJW71=0,"",NJX71*NJW71) ->  | NKA71: Pallet Charge | NKB71: 15 | NKE71: Pallet Charge | NKL71: =ROUNDUP(SUM(NKJ45:NKJ52),0) -> 0 | NKM71: =NKB71 -> 15 | NKO71: =IF(NKM71*NKL71=0,"",NKM71*NKL71) ->  | NKP71: Pallet Charge | NKQ71: 15 | NKT71: Pallet Charge | NLA71: =ROUNDUP(SUM(NKY45:NKY52),0) -> 0 | NLB71: =NKQ71 -> 15 | NLD71: =IF(NLB71*NLA71=0,"",NLB71*NLA71) ->  | NLE71: Pallet Charge | NLF71: 15 | NLI71: Pallet Charge | NLP71: =ROUNDUP(SUM(NLN45:NLN52),0) -> 0 | NLQ71: =NLF71 -> 15 | NLS71: =IF(NLQ71*NLP71=0,"",NLQ71*NLP71) ->  | NLT71: Pallet Charge | NLU71: 15 | NLX71: Pallet Charge | NME71: =ROUNDUP(SUM(NMC45:NMC52),0) -> 0 | NMF71: =NLU71 -> 15 | NMH71: =IF(NMF71*NME71=0,"",NMF71*NME71) ->  | NMI71: Pallet Charge | NMJ71: 15 | NMM71: Pallet Charge | NMT71: =ROUNDUP(SUM(NMR45:NMR52),0) -> 0 | NMU71: =NMJ71 -> 15 | NMW71: =IF(NMU71*NMT71=0,"",NMU71*NMT71) ->  | NMX71: Pallet Charge | NMY71: 15 | NNB71: Pallet Charge | NNI71: =ROUNDUP(SUM(NNG45:NNG52),0) -> 0 | NNJ71: =NMY71 -> 15 | NNL71: =IF(NNJ71*NNI71=0,"",NNJ71*NNI71) ->  | NNM71: Pallet Charge | NNN71: 15 | NNQ71: Pallet Charge | NNX71: =ROUNDUP(SUM(NNV45:NNV52),0) -> 0 | NNY71: =NNN71 -> 15 | NOA71: =IF(NNY71*NNX71=0,"",NNY71*NNX71) ->  | NOB71: Pallet Charge | NOC71: 15 | NOF71: Pallet Charge | NOM71: =ROUNDUP(SUM(NOK45:NOK52),0) -> 0 | NON71: =NOC71 -> 15 | NOP71: =IF(NON71*NOM71=0,"",NON71*NOM71) ->  | NOQ71: Pallet Charge | NOR71: 15 | NOU71: Pallet Charge | NPB71: =ROUNDUP(SUM(NOZ45:NOZ52),0) -> 0 | NPC71: =NOR71 -> 15 | NPE71: =IF(NPC71*NPB71=0,"",NPC71*NPB71) ->  | NPF71: Pallet Charge | NPG71: 15 | NPJ71: Pallet Charge | NPQ71: =ROUNDUP(SUM(NPO45:NPO52),0) -> 0 | NPR71: =NPG71 -> 15 | NPT71: =IF(NPR71*NPQ71=0,"",NPR71*NPQ71) ->  | NPU71: Pallet Charge | NPV71: 15 | NPY71: Pallet Charge | NQF71: =ROUNDUP(SUM(NQD45:NQD52),0) -> 0 | NQG71: =NPV71 -> 15 | NQI71: =IF(NQG71*NQF71=0,"",NQG71*NQF71) ->  | NQJ71: Pallet Charge | NQK71: 15 | NQN71: Pallet Charge | NQU71: =ROUNDUP(SUM(NQS45:NQS52),0) -> 0 | NQV71: =NQK71 -> 15 | NQX71: =IF(NQV71*NQU71=0,"",NQV71*NQU71) ->  | NQY71: Pallet Charge | NQZ71: 15 | NRC71: Pallet Charge | NRJ71: =ROUNDUP(SUM(NRH45:NRH52),0) -> 0 | NRK71: =NQZ71 -> 15 | NRM71: =IF(NRK71*NRJ71=0,"",NRK71*NRJ71) ->  | NRN71: Pallet Charge | NRO71: 15 | NRR71: Pallet Charge | NRY71: =ROUNDUP(SUM(NRW45:NRW52),0) -> 0 | NRZ71: =NRO71 -> 15 | NSB71: =IF(NRZ71*NRY71=0,"",NRZ71*NRY71) ->  | NSC71: Pallet Charge | NSD71: 15 | NSG71: Pallet Charge | NSN71: =ROUNDUP(SUM(NSL45:NSL52),0) -> 0 | NSO71: =NSD71 -> 15 | NSQ71: =IF(NSO71*NSN71=0,"",NSO71*NSN71) ->  | NSR71: Pallet Charge | NSS71: 15 | NSV71: Pallet Charge | NTC71: =ROUNDUP(SUM(NTA45:NTA52),0) -> 0 | NTD71: =NSS71 -> 15 | NTF71: =IF(NTD71*NTC71=0,"",NTD71*NTC71) ->  | NTG71: Pallet Charge | NTH71: 15 | NTK71: Pallet Charge | NTR71: =ROUNDUP(SUM(NTP45:NTP52),0) -> 0 | NTS71: =NTH71 -> 15 | NTU71: =IF(NTS71*NTR71=0,"",NTS71*NTR71) ->  | NTV71: Pallet Charge | NTW71: 15 | NTZ71: Pallet Charge | NUG71: =ROUNDUP(SUM(NUE45:NUE52),0) -> 0 | NUH71: =NTW71 -> 15 | NUJ71: =IF(NUH71*NUG71=0,"",NUH71*NUG71) ->  | NUK71: Pallet Charge | NUL71: 15 | NUO71: Pallet Charge | NUV71: =ROUNDUP(SUM(NUT45:NUT52),0) -> 0 | NUW71: =NUL71 -> 15 | NUY71: =IF(NUW71*NUV71=0,"",NUW71*NUV71) ->  | NUZ71: Pallet Charge | NVA71: 15 | NVD71: Pallet Charge | NVK71: =ROUNDUP(SUM(NVI45:NVI52),0) -> 0 | NVL71: =NVA71 -> 15 | NVN71: =IF(NVL71*NVK71=0,"",NVL71*NVK71) ->  | NVO71: Pallet Charge | NVP71: 15 | NVS71: Pallet Charge | NVZ71: =ROUNDUP(SUM(NVX45:NVX52),0) -> 0 | NWA71: =NVP71 -> 15 | NWC71: =IF(NWA71*NVZ71=0,"",NWA71*NVZ71) ->  | NWD71: Pallet Charge | NWE71: 15 | NWH71: Pallet Charge | NWO71: =ROUNDUP(SUM(NWM45:NWM52),0) -> 0 | NWP71: =NWE71 -> 15 | NWR71: =IF(NWP71*NWO71=0,"",NWP71*NWO71) ->  | NWS71: Pallet Charge | NWT71: 15 | NWW71: Pallet Charge | NXD71: =ROUNDUP(SUM(NXB45:NXB52),0) -> 0 | NXE71: =NWT71 -> 15 | NXG71: =IF(NXE71*NXD71=0,"",NXE71*NXD71) ->  | NXH71: Pallet Charge | NXI71: 15 | NXL71: Pallet Charge | NXS71: =ROUNDUP(SUM(NXQ45:NXQ52),0) -> 0 | NXT71: =NXI71 -> 15 | NXV71: =IF(NXT71*NXS71=0,"",NXT71*NXS71) ->  | NXW71: Pallet Charge | NXX71: 15 | NYA71: Pallet Charge | NYH71: =ROUNDUP(SUM(NYF45:NYF52),0) -> 0 | NYI71: =NXX71 -> 15 | NYK71: =IF(NYI71*NYH71=0,"",NYI71*NYH71) ->  | NYL71: Pallet Charge | NYM71: 15 | NYP71: Pallet Charge | NYW71: =ROUNDUP(SUM(NYU45:NYU52),0) -> 0 | NYX71: =NYM71 -> 15 | NYZ71: =IF(NYX71*NYW71=0,"",NYX71*NYW71) ->  | NZA71: Pallet Charge | NZB71: 15 | NZE71: Pallet Charge | NZL71: =ROUNDUP(SUM(NZJ45:NZJ52),0) -> 0 | NZM71: =NZB71 -> 15 | NZO71: =IF(NZM71*NZL71=0,"",NZM71*NZL71) ->  | NZP71: Pallet Charge | NZQ71: 15 | NZT71: Pallet Charge | OAA71: =ROUNDUP(SUM(NZY45:NZY52),0) -> 0 | OAB71: =NZQ71 -> 15 | OAD71: =IF(OAB71*OAA71=0,"",OAB71*OAA71) ->  | OAE71: Pallet Charge | OAF71: 15 | OAI71: Pallet Charge | OAP71: =ROUNDUP(SUM(OAN45:OAN52),0) -> 0 | OAQ71: =OAF71 -> 15 | OAS71: =IF(OAQ71*OAP71=0,"",OAQ71*OAP71) ->  | OAT71: Pallet Charge | OAU71: 15 | OAX71: Pallet Charge | OBE71: =ROUNDUP(SUM(OBC45:OBC52),0) -> 0 | OBF71: =OAU71 -> 15 | OBH71: =IF(OBF71*OBE71=0,"",OBF71*OBE71) ->  | OBI71: Pallet Charge | OBJ71: 15 | OBM71: Pallet Charge | OBT71: =ROUNDUP(SUM(OBR45:OBR52),0) -> 0 | OBU71: =OBJ71 -> 15 | OBW71: =IF(OBU71*OBT71=0,"",OBU71*OBT71) ->  | OBX71: Pallet Charge | OBY71: 15 | OCB71: Pallet Charge | OCI71: =ROUNDUP(SUM(OCG45:OCG52),0) -> 0 | OCJ71: =OBY71 -> 15 | OCL71: =IF(OCJ71*OCI71=0,"",OCJ71*OCI71) ->  | OCM71: Pallet Charge | OCN71: 15 | OCQ71: Pallet Charge | OCX71: =ROUNDUP(SUM(OCV45:OCV52),0) -> 0 | OCY71: =OCN71 -> 15 | ODA71: =IF(OCY71*OCX71=0,"",OCY71*OCX71) ->  | ODB71: Pallet Charge | ODC71: 15 | ODF71: Pallet Charge | ODM71: =ROUNDUP(SUM(ODK45:ODK52),0) -> 0 | ODN71: =ODC71 -> 15 | ODP71: =IF(ODN71*ODM71=0,"",ODN71*ODM71) ->  | ODQ71: Pallet Charge | ODR71: 15 | ODU71: Pallet Charge | OEB71: =ROUNDUP(SUM(ODZ45:ODZ52),0) -> 0 | OEC71: =ODR71 -> 15 | OEE71: =IF(OEC71*OEB71=0,"",OEC71*OEB71) ->  | OEF71: Pallet Charge | OEG71: 15 | OEJ71: Pallet Charge | OEQ71: =ROUNDUP(SUM(OEO45:OEO52),0) -> 0 | OER71: =OEG71 -> 15 | OET71: =IF(OER71*OEQ71=0,"",OER71*OEQ71) ->  | OEU71: Pallet Charge | OEV71: 15 | OEY71: Pallet Charge | OFF71: =ROUNDUP(SUM(OFD45:OFD52),0) -> 0 | OFG71: =OEV71 -> 15 | OFI71: =IF(OFG71*OFF71=0,"",OFG71*OFF71) ->  | OFJ71: Pallet Charge | OFK71: 15 | OFN71: Pallet Charge | OFU71: =ROUNDUP(SUM(OFS45:OFS52),0) -> 0 | OFV71: =OFK71 -> 15 | OFX71: =IF(OFV71*OFU71=0,"",OFV71*OFU71) ->  | OFY71: Pallet Charge | OFZ71: 15 | OGC71: Pallet Charge | OGJ71: =ROUNDUP(SUM(OGH45:OGH52),0) -> 0 | OGK71: =OFZ71 -> 15 | OGM71: =IF(OGK71*OGJ71=0,"",OGK71*OGJ71) ->  | OGN71: Pallet Charge | OGO71: 15 | OGR71: Pallet Charge | OGY71: =ROUNDUP(SUM(OGW45:OGW52),0) -> 0 | OGZ71: =OGO71 -> 15 | OHB71: =IF(OGZ71*OGY71=0,"",OGZ71*OGY71) ->  | OHC71: Pallet Charge | OHD71: 15 | OHG71: Pallet Charge | OHN71: =ROUNDUP(SUM(OHL45:OHL52),0) -> 0 | OHO71: =OHD71 -> 15 | OHQ71: =IF(OHO71*OHN71=0,"",OHO71*OHN71) ->  | OHR71: Pallet Charge | OHS71: 15 | OHV71: Pallet Charge | OIC71: =ROUNDUP(SUM(OIA45:OIA52),0) -> 0 | OID71: =OHS71 -> 15 | OIF71: =IF(OID71*OIC71=0,"",OID71*OIC71) ->  | OIG71: Pallet Charge | OIH71: 15 | OIK71: Pallet Charge | OIR71: =ROUNDUP(SUM(OIP45:OIP52),0) -> 0 | OIS71: =OIH71 -> 15 | OIU71: =IF(OIS71*OIR71=0,"",OIS71*OIR71) ->  | OIV71: Pallet Charge | OIW71: 15 | OIZ71: Pallet Charge | OJG71: =ROUNDUP(SUM(OJE45:OJE52),0) -> 0 | OJH71: =OIW71 -> 15 | OJJ71: =IF(OJH71*OJG71=0,"",OJH71*OJG71) ->  | OJK71: Pallet Charge | OJL71: 15 | OJO71: Pallet Charge | OJV71: =ROUNDUP(SUM(OJT45:OJT52),0) -> 0 | OJW71: =OJL71 -> 15 | OJY71: =IF(OJW71*OJV71=0,"",OJW71*OJV71) ->  | OJZ71: Pallet Charge | OKA71: 15 | OKD71: Pallet Charge | OKK71: =ROUNDUP(SUM(OKI45:OKI52),0) -> 0 | OKL71: =OKA71 -> 15 | OKN71: =IF(OKL71*OKK71=0,"",OKL71*OKK71) ->  | OKO71: Pallet Charge | OKP71: 15 | OKS71: Pallet Charge | OKZ71: =ROUNDUP(SUM(OKX45:OKX52),0) -> 0 | OLA71: =OKP71 -> 15 | OLC71: =IF(OLA71*OKZ71=0,"",OLA71*OKZ71) ->  | OLD71: Pallet Charge | OLE71: 15 | OLH71: Pallet Charge | OLO71: =ROUNDUP(SUM(OLM45:OLM52),0) -> 0 | OLP71: =OLE71 -> 15 | OLR71: =IF(OLP71*OLO71=0,"",OLP71*OLO71) ->  | OLS71: Pallet Charge | OLT71: 15 | OLW71: Pallet Charge | OMD71: =ROUNDUP(SUM(OMB45:OMB52),0) -> 0 | OME71: =OLT71 -> 15 | OMG71: =IF(OME71*OMD71=0,"",OME71*OMD71) ->  | OMH71: Pallet Charge | OMI71: 15 | OML71: Pallet Charge | OMS71: =ROUNDUP(SUM(OMQ45:OMQ52),0) -> 0 | OMT71: =OMI71 -> 15 | OMV71: =IF(OMT71*OMS71=0,"",OMT71*OMS71) ->  | OMW71: Pallet Charge | OMX71: 15 | ONA71: Pallet Charge | ONH71: =ROUNDUP(SUM(ONF45:ONF52),0) -> 0 | ONI71: =OMX71 -> 15 | ONK71: =IF(ONI71*ONH71=0,"",ONI71*ONH71) ->  | ONL71: Pallet Charge | ONM71: 15 | ONP71: Pallet Charge | ONW71: =ROUNDUP(SUM(ONU45:ONU52),0) -> 0 | ONX71: =ONM71 -> 15 | ONZ71: =IF(ONX71*ONW71=0,"",ONX71*ONW71) ->  | OOA71: Pallet Charge | OOB71: 15 | OOE71: Pallet Charge | OOL71: =ROUNDUP(SUM(OOJ45:OOJ52),0) -> 0 | OOM71: =OOB71 -> 15 | OOO71: =IF(OOM71*OOL71=0,"",OOM71*OOL71) ->  | OOP71: Pallet Charge | OOQ71: 15 | OOT71: Pallet Charge | OPA71: =ROUNDUP(SUM(OOY45:OOY52),0) -> 0 | OPB71: =OOQ71 -> 15 | OPD71: =IF(OPB71*OPA71=0,"",OPB71*OPA71) ->  | OPE71: Pallet Charge | OPF71: 15 | OPI71: Pallet Charge | OPP71: =ROUNDUP(SUM(OPN45:OPN52),0) -> 0 | OPQ71: =OPF71 -> 15 | OPS71: =IF(OPQ71*OPP71=0,"",OPQ71*OPP71) ->  | OPT71: Pallet Charge | OPU71: 15 | OPX71: Pallet Charge | OQE71: =ROUNDUP(SUM(OQC45:OQC52),0) -> 0 | OQF71: =OPU71 -> 15 | OQH71: =IF(OQF71*OQE71=0,"",OQF71*OQE71) ->  | OQI71: Pallet Charge | OQJ71: 15 | OQM71: Pallet Charge | OQT71: =ROUNDUP(SUM(OQR45:OQR52),0) -> 0 | OQU71: =OQJ71 -> 15 | OQW71: =IF(OQU71*OQT71=0,"",OQU71*OQT71) ->  | OQX71: Pallet Charge | OQY71: 15 | ORB71: Pallet Charge | ORI71: =ROUNDUP(SUM(ORG45:ORG52),0) -> 0 | ORJ71: =OQY71 -> 15 | ORL71: =IF(ORJ71*ORI71=0,"",ORJ71*ORI71) ->  | ORM71: Pallet Charge | ORN71: 15 | ORQ71: Pallet Charge | ORX71: =ROUNDUP(SUM(ORV45:ORV52),0) -> 0 | ORY71: =ORN71 -> 15 | OSA71: =IF(ORY71*ORX71=0,"",ORY71*ORX71) ->  | OSB71: Pallet Charge | OSC71: 15 | OSF71: Pallet Charge | OSM71: =ROUNDUP(SUM(OSK45:OSK52),0) -> 0 | OSN71: =OSC71 -> 15 | OSP71: =IF(OSN71*OSM71=0,"",OSN71*OSM71) ->  | OSQ71: Pallet Charge | OSR71: 15 | OSU71: Pallet Charge | OTB71: =ROUNDUP(SUM(OSZ45:OSZ52),0) -> 0 | OTC71: =OSR71 -> 15 | OTE71: =IF(OTC71*OTB71=0,"",OTC71*OTB71) ->  | OTF71: Pallet Charge | OTG71: 15 | OTJ71: Pallet Charge | OTQ71: =ROUNDUP(SUM(OTO45:OTO52),0) -> 0 | OTR71: =OTG71 -> 15 | OTT71: =IF(OTR71*OTQ71=0,"",OTR71*OTQ71) ->  | OTU71: Pallet Charge | OTV71: 15 | OTY71: Pallet Charge | OUF71: =ROUNDUP(SUM(OUD45:OUD52),0) -> 0 | OUG71: =OTV71 -> 15 | OUI71: =IF(OUG71*OUF71=0,"",OUG71*OUF71) ->  | OUJ71: Pallet Charge | OUK71: 15 | OUN71: Pallet Charge | OUU71: =ROUNDUP(SUM(OUS45:OUS52),0) -> 0 | OUV71: =OUK71 -> 15 | OUX71: =IF(OUV71*OUU71=0,"",OUV71*OUU71) ->  | OUY71: Pallet Charge | OUZ71: 15 | OVC71: Pallet Charge | OVJ71: =ROUNDUP(SUM(OVH45:OVH52),0) -> 0 | OVK71: =OUZ71 -> 15 | OVM71: =IF(OVK71*OVJ71=0,"",OVK71*OVJ71) ->  | OVN71: Pallet Charge | OVO71: 15 | OVR71: Pallet Charge | OVY71: =ROUNDUP(SUM(OVW45:OVW52),0) -> 0 | OVZ71: =OVO71 -> 15 | OWB71: =IF(OVZ71*OVY71=0,"",OVZ71*OVY71) ->  | OWC71: Pallet Charge | OWD71: 15 | OWG71: Pallet Charge | OWN71: =ROUNDUP(SUM(OWL45:OWL52),0) -> 0 | OWO71: =OWD71 -> 15 | OWQ71: =IF(OWO71*OWN71=0,"",OWO71*OWN71) ->  | OWR71: Pallet Charge | OWS71: 15 | OWV71: Pallet Charge | OXC71: =ROUNDUP(SUM(OXA45:OXA52),0) -> 0 | OXD71: =OWS71 -> 15 | OXF71: =IF(OXD71*OXC71=0,"",OXD71*OXC71) ->  | OXG71: Pallet Charge | OXH71: 15 | OXK71: Pallet Charge | OXR71: =ROUNDUP(SUM(OXP45:OXP52),0) -> 0 | OXS71: =OXH71 -> 15 | OXU71: =IF(OXS71*OXR71=0,"",OXS71*OXR71) ->  | OXV71: Pallet Charge | OXW71: 15 | OXZ71: Pallet Charge | OYG71: =ROUNDUP(SUM(OYE45:OYE52),0) -> 0 | OYH71: =OXW71 -> 15 | OYJ71: =IF(OYH71*OYG71=0,"",OYH71*OYG71) ->  | OYK71: Pallet Charge | OYL71: 15 | OYO71: Pallet Charge | OYV71: =ROUNDUP(SUM(OYT45:OYT52),0) -> 0 | OYW71: =OYL71 -> 15 | OYY71: =IF(OYW71*OYV71=0,"",OYW71*OYV71) ->  | OYZ71: Pallet Charge | OZA71: 15 | OZD71: Pallet Charge | OZK71: =ROUNDUP(SUM(OZI45:OZI52),0) -> 0 | OZL71: =OZA71 -> 15 | OZN71: =IF(OZL71*OZK71=0,"",OZL71*OZK71) ->  | OZO71: Pallet Charge | OZP71: 15 | OZS71: Pallet Charge | OZZ71: =ROUNDUP(SUM(OZX45:OZX52),0) -> 0 | PAA71: =OZP71 -> 15 | PAC71: =IF(PAA71*OZZ71=0,"",PAA71*OZZ71) ->  | PAD71: Pallet Charge | PAE71: 15 | PAH71: Pallet Charge | PAO71: =ROUNDUP(SUM(PAM45:PAM52),0) -> 0 | PAP71: =PAE71 -> 15 | PAR71: =IF(PAP71*PAO71=0,"",PAP71*PAO71) ->  | PAS71: Pallet Charge | PAT71: 15 | PAW71: Pallet Charge | PBD71: =ROUNDUP(SUM(PBB45:PBB52),0) -> 0 | PBE71: =PAT71 -> 15 | PBG71: =IF(PBE71*PBD71=0,"",PBE71*PBD71) ->  | PBH71: Pallet Charge | PBI71: 15 | PBL71: Pallet Charge | PBS71: =ROUNDUP(SUM(PBQ45:PBQ52),0) -> 0 | PBT71: =PBI71 -> 15 | PBV71: =IF(PBT71*PBS71=0,"",PBT71*PBS71) ->  | PBW71: Pallet Charge | PBX71: 15 | PCA71: Pallet Charge | PCH71: =ROUNDUP(SUM(PCF45:PCF52),0) -> 0 | PCI71: =PBX71 -> 15 | PCK71: =IF(PCI71*PCH71=0,"",PCI71*PCH71) ->  | PCL71: Pallet Charge | PCM71: 15 | PCP71: Pallet Charge | PCW71: =ROUNDUP(SUM(PCU45:PCU52),0) -> 0 | PCX71: =PCM71 -> 15 | PCZ71: =IF(PCX71*PCW71=0,"",PCX71*PCW71) ->  | PDA71: Pallet Charge | PDB71: 15 | PDE71: Pallet Charge | PDL71: =ROUNDUP(SUM(PDJ45:PDJ52),0) -> 0 | PDM71: =PDB71 -> 15 | PDO71: =IF(PDM71*PDL71=0,"",PDM71*PDL71) ->  | PDP71: Pallet Charge | PDQ71: 15 | PDT71: Pallet Charge | PEA71: =ROUNDUP(SUM(PDY45:PDY52),0) -> 0 | PEB71: =PDQ71 -> 15 | PED71: =IF(PEB71*PEA71=0,"",PEB71*PEA71) ->  | PEE71: Pallet Charge | PEF71: 15 | PEI71: Pallet Charge | PEP71: =ROUNDUP(SUM(PEN45:PEN52),0) -> 0 | PEQ71: =PEF71 -> 15 | PES71: =IF(PEQ71*PEP71=0,"",PEQ71*PEP71) ->  | PET71: Pallet Charge | PEU71: 15 | PEX71: Pallet Charge | PFE71: =ROUNDUP(SUM(PFC45:PFC52),0) -> 0 | PFF71: =PEU71 -> 15 | PFH71: =IF(PFF71*PFE71=0,"",PFF71*PFE71) ->  | PFI71: Pallet Charge | PFJ71: 15 | PFM71: Pallet Charge | PFT71: =ROUNDUP(SUM(PFR45:PFR52),0) -> 0 | PFU71: =PFJ71 -> 15 | PFW71: =IF(PFU71*PFT71=0,"",PFU71*PFT71) ->  | PFX71: Pallet Charge | PFY71: 15 | PGB71: Pallet Charge | PGI71: =ROUNDUP(SUM(PGG45:PGG52),0) -> 0 | PGJ71: =PFY71 -> 15 | PGL71: =IF(PGJ71*PGI71=0,"",PGJ71*PGI71) ->  | PGM71: Pallet Charge | PGN71: 15 | PGQ71: Pallet Charge | PGX71: =ROUNDUP(SUM(PGV45:PGV52),0) -> 0 | PGY71: =PGN71 -> 15 | PHA71: =IF(PGY71*PGX71=0,"",PGY71*PGX71) ->  | PHB71: Pallet Charge | PHC71: 15 | PHF71: Pallet Charge | PHM71: =ROUNDUP(SUM(PHK45:PHK52),0) -> 0 | PHN71: =PHC71 -> 15 | PHP71: =IF(PHN71*PHM71=0,"",PHN71*PHM71) ->  | PHQ71: Pallet Charge | PHR71: 15 | PHU71: Pallet Charge | PIB71: =ROUNDUP(SUM(PHZ45:PHZ52),0) -> 0 | PIC71: =PHR71 -> 15 | PIE71: =IF(PIC71*PIB71=0,"",PIC71*PIB71) ->  | PIF71: Pallet Charge | PIG71: 15 | PIJ71: Pallet Charge | PIQ71: =ROUNDUP(SUM(PIO45:PIO52),0) -> 0 | PIR71: =PIG71 -> 15 | PIT71: =IF(PIR71*PIQ71=0,"",PIR71*PIQ71) ->  | PIU71: Pallet Charge | PIV71: 15 | PIY71: Pallet Charge | PJF71: =ROUNDUP(SUM(PJD45:PJD52),0) -> 0 | PJG71: =PIV71 -> 15 | PJI71: =IF(PJG71*PJF71=0,"",PJG71*PJF71) ->  | PJJ71: Pallet Charge | PJK71: 15 | PJN71: Pallet Charge | PJU71: =ROUNDUP(SUM(PJS45:PJS52),0) -> 0 | PJV71: =PJK71 -> 15 | PJX71: =IF(PJV71*PJU71=0,"",PJV71*PJU71) ->  | PJY71: Pallet Charge | PJZ71: 15 | PKC71: Pallet Charge | PKJ71: =ROUNDUP(SUM(PKH45:PKH52),0) -> 0 | PKK71: =PJZ71 -> 15 | PKM71: =IF(PKK71*PKJ71=0,"",PKK71*PKJ71) ->  | PKN71: Pallet Charge | PKO71: 15 | PKR71: Pallet Charge | PKY71: =ROUNDUP(SUM(PKW45:PKW52),0) -> 0 | PKZ71: =PKO71 -> 15 | PLB71: =IF(PKZ71*PKY71=0,"",PKZ71*PKY71) ->  | PLC71: Pallet Charge | PLD71: 15 | PLG71: Pallet Charge | PLN71: =ROUNDUP(SUM(PLL45:PLL52),0) -> 0 | PLO71: =PLD71 -> 15 | PLQ71: =IF(PLO71*PLN71=0,"",PLO71*PLN71) ->  | PLR71: Pallet Charge | PLS71: 15 | PLV71: Pallet Charge | PMC71: =ROUNDUP(SUM(PMA45:PMA52),0) -> 0 | PMD71: =PLS71 -> 15 | PMF71: =IF(PMD71*PMC71=0,"",PMD71*PMC71) ->  | PMG71: Pallet Charge | PMH71: 15 | PMK71: Pallet Charge | PMR71: =ROUNDUP(SUM(PMP45:PMP52),0) -> 0 | PMS71: =PMH71 -> 15 | PMU71: =IF(PMS71*PMR71=0,"",PMS71*PMR71) ->  | PMV71: Pallet Charge | PMW71: 15 | PMZ71: Pallet Charge | PNG71: =ROUNDUP(SUM(PNE45:PNE52),0) -> 0 | PNH71: =PMW71 -> 15 | PNJ71: =IF(PNH71*PNG71=0,"",PNH71*PNG71) ->  | PNK71: Pallet Charge | PNL71: 15 | PNO71: Pallet Charge | PNV71: =ROUNDUP(SUM(PNT45:PNT52),0) -> 0 | PNW71: =PNL71 -> 15 | PNY71: =IF(PNW71*PNV71=0,"",PNW71*PNV71) ->  | PNZ71: Pallet Charge | POA71: 15 | POD71: Pallet Charge | POK71: =ROUNDUP(SUM(POI45:POI52),0) -> 0 | POL71: =POA71 -> 15 | PON71: =IF(POL71*POK71=0,"",POL71*POK71) ->  | POO71: Pallet Charge | POP71: 15 | POS71: Pallet Charge | POZ71: =ROUNDUP(SUM(POX45:POX52),0) -> 0 | PPA71: =POP71 -> 15 | PPC71: =IF(PPA71*POZ71=0,"",PPA71*POZ71) ->  | PPD71: Pallet Charge | PPE71: 15 | PPH71: Pallet Charge | PPO71: =ROUNDUP(SUM(PPM45:PPM52),0) -> 0 | PPP71: =PPE71 -> 15 | PPR71: =IF(PPP71*PPO71=0,"",PPP71*PPO71) ->  | PPS71: Pallet Charge | PPT71: 15 | PPW71: Pallet Charge | PQD71: =ROUNDUP(SUM(PQB45:PQB52),0) -> 0 | PQE71: =PPT71 -> 15 | PQG71: =IF(PQE71*PQD71=0,"",PQE71*PQD71) ->  | PQH71: Pallet Charge | PQI71: 15 | PQL71: Pallet Charge | PQS71: =ROUNDUP(SUM(PQQ45:PQQ52),0) -> 0 | PQT71: =PQI71 -> 15 | PQV71: =IF(PQT71*PQS71=0,"",PQT71*PQS71) ->  | PQW71: Pallet Charge | PQX71: 15 | PRA71: Pallet Charge | PRH71: =ROUNDUP(SUM(PRF45:PRF52),0) -> 0 | PRI71: =PQX71 -> 15 | PRK71: =IF(PRI71*PRH71=0,"",PRI71*PRH71) ->  | PRL71: Pallet Charge | PRM71: 15 | PRP71: Pallet Charge | PRW71: =ROUNDUP(SUM(PRU45:PRU52),0) -> 0 | PRX71: =PRM71 -> 15 | PRZ71: =IF(PRX71*PRW71=0,"",PRX71*PRW71) ->  | PSA71: Pallet Charge | PSB71: 15 | PSE71: Pallet Charge | PSL71: =ROUNDUP(SUM(PSJ45:PSJ52),0) -> 0 | PSM71: =PSB71 -> 15 | PSO71: =IF(PSM71*PSL71=0,"",PSM71*PSL71) ->  | PSP71: Pallet Charge | PSQ71: 15 | PST71: Pallet Charge | PTA71: =ROUNDUP(SUM(PSY45:PSY52),0) -> 0 | PTB71: =PSQ71 -> 15 | PTD71: =IF(PTB71*PTA71=0,"",PTB71*PTA71) ->  | PTE71: Pallet Charge | PTF71: 15 | PTI71: Pallet Charge | PTP71: =ROUNDUP(SUM(PTN45:PTN52),0) -> 0 | PTQ71: =PTF71 -> 15 | PTS71: =IF(PTQ71*PTP71=0,"",PTQ71*PTP71) ->  | PTT71: Pallet Charge | PTU71: 15 | PTX71: Pallet Charge | PUE71: =ROUNDUP(SUM(PUC45:PUC52),0) -> 0 | PUF71: =PTU71 -> 15 | PUH71: =IF(PUF71*PUE71=0,"",PUF71*PUE71) ->  | PUI71: Pallet Charge | PUJ71: 15 | PUM71: Pallet Charge | PUT71: =ROUNDUP(SUM(PUR45:PUR52),0) -> 0 | PUU71: =PUJ71 -> 15 | PUW71: =IF(PUU71*PUT71=0,"",PUU71*PUT71) ->  | PUX71: Pallet Charge | PUY71: 15 | PVB71: Pallet Charge | PVI71: =ROUNDUP(SUM(PVG45:PVG52),0) -> 0 | PVJ71: =PUY71 -> 15 | PVL71: =IF(PVJ71*PVI71=0,"",PVJ71*PVI71) ->  | PVM71: Pallet Charge | PVN71: 15 | PVQ71: Pallet Charge | PVX71: =ROUNDUP(SUM(PVV45:PVV52),0) -> 0 | PVY71: =PVN71 -> 15 | PWA71: =IF(PVY71*PVX71=0,"",PVY71*PVX71) ->  | PWB71: Pallet Charge | PWC71: 15 | PWF71: Pallet Charge | PWM71: =ROUNDUP(SUM(PWK45:PWK52),0) -> 0 | PWN71: =PWC71 -> 15 | PWP71: =IF(PWN71*PWM71=0,"",PWN71*PWM71) ->  | PWQ71: Pallet Charge | PWR71: 15 | PWU71: Pallet Charge | PXB71: =ROUNDUP(SUM(PWZ45:PWZ52),0) -> 0 | PXC71: =PWR71 -> 15 | PXE71: =IF(PXC71*PXB71=0,"",PXC71*PXB71) ->  | PXF71: Pallet Charge | PXG71: 15 | PXJ71: Pallet Charge | PXQ71: =ROUNDUP(SUM(PXO45:PXO52),0) -> 0 | PXR71: =PXG71 -> 15 | PXT71: =IF(PXR71*PXQ71=0,"",PXR71*PXQ71) ->  | PXU71: Pallet Charge | PXV71: 15 | PXY71: Pallet Charge | PYF71: =ROUNDUP(SUM(PYD45:PYD52),0) -> 0 | PYG71: =PXV71 -> 15 | PYI71: =IF(PYG71*PYF71=0,"",PYG71*PYF71) ->  | PYJ71: Pallet Charge | PYK71: 15 | PYN71: Pallet Charge | PYU71: =ROUNDUP(SUM(PYS45:PYS52),0) -> 0 | PYV71: =PYK71 -> 15 | PYX71: =IF(PYV71*PYU71=0,"",PYV71*PYU71) ->  | PYY71: Pallet Charge | PYZ71: 15 | PZC71: Pallet Charge | PZJ71: =ROUNDUP(SUM(PZH45:PZH52),0) -> 0 | PZK71: =PYZ71 -> 15 | PZM71: =IF(PZK71*PZJ71=0,"",PZK71*PZJ71) ->  | PZN71: Pallet Charge | PZO71: 15 | PZR71: Pallet Charge | PZY71: =ROUNDUP(SUM(PZW45:PZW52),0) -> 0 | PZZ71: =PZO71 -> 15 | QAB71: =IF(PZZ71*PZY71=0,"",PZZ71*PZY71) ->  | QAC71: Pallet Charge | QAD71: 15 | QAG71: Pallet Charge | QAN71: =ROUNDUP(SUM(QAL45:QAL52),0) -> 0 | QAO71: =QAD71 -> 15 | QAQ71: =IF(QAO71*QAN71=0,"",QAO71*QAN71) ->  | QAR71: Pallet Charge | QAS71: 15 | QAV71: Pallet Charge | QBC71: =ROUNDUP(SUM(QBA45:QBA52),0) -> 0 | QBD71: =QAS71 -> 15 | QBF71: =IF(QBD71*QBC71=0,"",QBD71*QBC71) ->  | QBG71: Pallet Charge | QBH71: 15 | QBK71: Pallet Charge | QBR71: =ROUNDUP(SUM(QBP45:QBP52),0) -> 0 | QBS71: =QBH71 -> 15 | QBU71: =IF(QBS71*QBR71=0,"",QBS71*QBR71) ->  | QBV71: Pallet Charge | QBW71: 15 | QBZ71: Pallet Charge | QCG71: =ROUNDUP(SUM(QCE45:QCE52),0) -> 0 | QCH71: =QBW71 -> 15 | QCJ71: =IF(QCH71*QCG71=0,"",QCH71*QCG71) ->  | QCK71: Pallet Charge | QCL71: 15 | QCO71: Pallet Charge | QCV71: =ROUNDUP(SUM(QCT45:QCT52),0) -> 0 | QCW71: =QCL71 -> 15 | QCY71: =IF(QCW71*QCV71=0,"",QCW71*QCV71) ->  | QCZ71: Pallet Charge | QDA71: 15 | QDD71: Pallet Charge | QDK71: =ROUNDUP(SUM(QDI45:QDI52),0) -> 0 | QDL71: =QDA71 -> 15 | QDN71: =IF(QDL71*QDK71=0,"",QDL71*QDK71) ->  | QDO71: Pallet Charge | QDP71: 15 | QDS71: Pallet Charge | QDZ71: =ROUNDUP(SUM(QDX45:QDX52),0) -> 0 | QEA71: =QDP71 -> 15 | QEC71: =IF(QEA71*QDZ71=0,"",QEA71*QDZ71) ->  | QED71: Pallet Charge | QEE71: 15 | QEH71: Pallet Charge | QEO71: =ROUNDUP(SUM(QEM45:QEM52),0) -> 0 | QEP71: =QEE71 -> 15 | QER71: =IF(QEP71*QEO71=0,"",QEP71*QEO71) ->  | QES71: Pallet Charge | QET71: 15 | QEW71: Pallet Charge | QFD71: =ROUNDUP(SUM(QFB45:QFB52),0) -> 0 | QFE71: =QET71 -> 15 | QFG71: =IF(QFE71*QFD71=0,"",QFE71*QFD71) ->  | QFH71: Pallet Charge | QFI71: 15 | QFL71: Pallet Charge | QFS71: =ROUNDUP(SUM(QFQ45:QFQ52),0) -> 0 | QFT71: =QFI71 -> 15 | QFV71: =IF(QFT71*QFS71=0,"",QFT71*QFS71) ->  | QFW71: Pallet Charge | QFX71: 15 | QGA71: Pallet Charge | QGH71: =ROUNDUP(SUM(QGF45:QGF52),0) -> 0 | QGI71: =QFX71 -> 15 | QGK71: =IF(QGI71*QGH71=0,"",QGI71*QGH71) ->  | QGL71: Pallet Charge | QGM71: 15 | QGP71: Pallet Charge | QGW71: =ROUNDUP(SUM(QGU45:QGU52),0) -> 0 | QGX71: =QGM71 -> 15 | QGZ71: =IF(QGX71*QGW71=0,"",QGX71*QGW71) ->  | QHA71: Pallet Charge | QHB71: 15 | QHE71: Pallet Charge | QHL71: =ROUNDUP(SUM(QHJ45:QHJ52),0) -> 0 | QHM71: =QHB71 -> 15 | QHO71: =IF(QHM71*QHL71=0,"",QHM71*QHL71) ->  | QHP71: Pallet Charge | QHQ71: 15 | QHT71: Pallet Charge | QIA71: =ROUNDUP(SUM(QHY45:QHY52),0) -> 0 | QIB71: =QHQ71 -> 15 | QID71: =IF(QIB71*QIA71=0,"",QIB71*QIA71) ->  | QIE71: Pallet Charge | QIF71: 15 | QII71: Pallet Charge | QIP71: =ROUNDUP(SUM(QIN45:QIN52),0) -> 0 | QIQ71: =QIF71 -> 15 | QIS71: =IF(QIQ71*QIP71=0,"",QIQ71*QIP71) ->  | QIT71: Pallet Charge | QIU71: 15 | QIX71: Pallet Charge | QJE71: =ROUNDUP(SUM(QJC45:QJC52),0) -> 0 | QJF71: =QIU71 -> 15 | QJH71: =IF(QJF71*QJE71=0,"",QJF71*QJE71) ->  | QJI71: Pallet Charge | QJJ71: 15 | QJM71: Pallet Charge | QJT71: =ROUNDUP(SUM(QJR45:QJR52),0) -> 0 | QJU71: =QJJ71 -> 15 | QJW71: =IF(QJU71*QJT71=0,"",QJU71*QJT71) ->  | QJX71: Pallet Charge | QJY71: 15 | QKB71: Pallet Charge | QKI71: =ROUNDUP(SUM(QKG45:QKG52),0) -> 0 | QKJ71: =QJY71 -> 15 | QKL71: =IF(QKJ71*QKI71=0,"",QKJ71*QKI71) ->  | QKM71: Pallet Charge | QKN71: 15 | QKQ71: Pallet Charge | QKX71: =ROUNDUP(SUM(QKV45:QKV52),0) -> 0 | QKY71: =QKN71 -> 15 | QLA71: =IF(QKY71*QKX71=0,"",QKY71*QKX71) ->  | QLB71: Pallet Charge | QLC71: 15 | QLF71: Pallet Charge | QLM71: =ROUNDUP(SUM(QLK45:QLK52),0) -> 0 | QLN71: =QLC71 -> 15 | QLP71: =IF(QLN71*QLM71=0,"",QLN71*QLM71) ->  | QLQ71: Pallet Charge | QLR71: 15 | QLU71: Pallet Charge | QMB71: =ROUNDUP(SUM(QLZ45:QLZ52),0) -> 0 | QMC71: =QLR71 -> 15 | QME71: =IF(QMC71*QMB71=0,"",QMC71*QMB71) ->  | QMF71: Pallet Charge | QMG71: 15 | QMJ71: Pallet Charge | QMQ71: =ROUNDUP(SUM(QMO45:QMO52),0) -> 0 | QMR71: =QMG71 -> 15 | QMT71: =IF(QMR71*QMQ71=0,"",QMR71*QMQ71) ->  | QMU71: Pallet Charge | QMV71: 15 | QMY71: Pallet Charge | QNF71: =ROUNDUP(SUM(QND45:QND52),0) -> 0 | QNG71: =QMV71 -> 15 | QNI71: =IF(QNG71*QNF71=0,"",QNG71*QNF71) ->  | QNJ71: Pallet Charge | QNK71: 15 | QNN71: Pallet Charge | QNU71: =ROUNDUP(SUM(QNS45:QNS52),0) -> 0 | QNV71: =QNK71 -> 15 | QNX71: =IF(QNV71*QNU71=0,"",QNV71*QNU71) ->  | QNY71: Pallet Charge | QNZ71: 15 | QOC71: Pallet Charge | QOJ71: =ROUNDUP(SUM(QOH45:QOH52),0) -> 0 | QOK71: =QNZ71 -> 15 | QOM71: =IF(QOK71*QOJ71=0,"",QOK71*QOJ71) ->  | QON71: Pallet Charge | QOO71: 15 | QOR71: Pallet Charge | QOY71: =ROUNDUP(SUM(QOW45:QOW52),0) -> 0 | QOZ71: =QOO71 -> 15 | QPB71: =IF(QOZ71*QOY71=0,"",QOZ71*QOY71) ->  | QPC71: Pallet Charge | QPD71: 15 | QPG71: Pallet Charge | QPN71: =ROUNDUP(SUM(QPL45:QPL52),0) -> 0 | QPO71: =QPD71 -> 15 | QPQ71: =IF(QPO71*QPN71=0,"",QPO71*QPN71) ->  | QPR71: Pallet Charge | QPS71: 15 | QPV71: Pallet Charge | QQC71: =ROUNDUP(SUM(QQA45:QQA52),0) -> 0 | QQD71: =QPS71 -> 15 | QQF71: =IF(QQD71*QQC71=0,"",QQD71*QQC71) ->  | QQG71: Pallet Charge | QQH71: 15 | QQK71: Pallet Charge | QQR71: =ROUNDUP(SUM(QQP45:QQP52),0) -> 0 | QQS71: =QQH71 -> 15 | QQU71: =IF(QQS71*QQR71=0,"",QQS71*QQR71) ->  | QQV71: Pallet Charge | QQW71: 15 | QQZ71: Pallet Charge | QRG71: =ROUNDUP(SUM(QRE45:QRE52),0) -> 0 | QRH71: =QQW71 -> 15 | QRJ71: =IF(QRH71*QRG71=0,"",QRH71*QRG71) ->  | QRK71: Pallet Charge | QRL71: 15 | QRO71: Pallet Charge | QRV71: =ROUNDUP(SUM(QRT45:QRT52),0) -> 0 | QRW71: =QRL71 -> 15 | QRY71: =IF(QRW71*QRV71=0,"",QRW71*QRV71) ->  | QRZ71: Pallet Charge | QSA71: 15 | QSD71: Pallet Charge | QSK71: =ROUNDUP(SUM(QSI45:QSI52),0) -> 0 | QSL71: =QSA71 -> 15 | QSN71: =IF(QSL71*QSK71=0,"",QSL71*QSK71) ->  | QSO71: Pallet Charge | QSP71: 15 | QSS71: Pallet Charge | QSZ71: =ROUNDUP(SUM(QSX45:QSX52),0) -> 0 | QTA71: =QSP71 -> 15 | QTC71: =IF(QTA71*QSZ71=0,"",QTA71*QSZ71) ->  | QTD71: Pallet Charge | QTE71: 15 | QTH71: Pallet Charge | QTO71: =ROUNDUP(SUM(QTM45:QTM52),0) -> 0 | QTP71: =QTE71 -> 15 | QTR71: =IF(QTP71*QTO71=0,"",QTP71*QTO71) ->  | QTS71: Pallet Charge | QTT71: 15 | QTW71: Pallet Charge | QUD71: =ROUNDUP(SUM(QUB45:QUB52),0) -> 0 | QUE71: =QTT71 -> 15 | QUG71: =IF(QUE71*QUD71=0,"",QUE71*QUD71) ->  | QUH71: Pallet Charge | QUI71: 15 | QUL71: Pallet Charge | QUS71: =ROUNDUP(SUM(QUQ45:QUQ52),0) -> 0 | QUT71: =QUI71 -> 15 | QUV71: =IF(QUT71*QUS71=0,"",QUT71*QUS71) ->  | QUW71: Pallet Charge | QUX71: 15 | QVA71: Pallet Charge | QVH71: =ROUNDUP(SUM(QVF45:QVF52),0) -> 0 | QVI71: =QUX71 -> 15 | QVK71: =IF(QVI71*QVH71=0,"",QVI71*QVH71) ->  | QVL71: Pallet Charge | QVM71: 15 | QVP71: Pallet Charge | QVW71: =ROUNDUP(SUM(QVU45:QVU52),0) -> 0 | QVX71: =QVM71 -> 15 | QVZ71: =IF(QVX71*QVW71=0,"",QVX71*QVW71) ->  | QWA71: Pallet Charge | QWB71: 15 | QWE71: Pallet Charge | QWL71: =ROUNDUP(SUM(QWJ45:QWJ52),0) -> 0 | QWM71: =QWB71 -> 15 | QWO71: =IF(QWM71*QWL71=0,"",QWM71*QWL71) ->  | QWP71: Pallet Charge | QWQ71: 15 | QWT71: Pallet Charge | QXA71: =ROUNDUP(SUM(QWY45:QWY52),0) -> 0 | QXB71: =QWQ71 -> 15 | QXD71: =IF(QXB71*QXA71=0,"",QXB71*QXA71) ->  | QXE71: Pallet Charge | QXF71: 15 | QXI71: Pallet Charge | QXP71: =ROUNDUP(SUM(QXN45:QXN52),0) -> 0 | QXQ71: =QXF71 -> 15 | QXS71: =IF(QXQ71*QXP71=0,"",QXQ71*QXP71) ->  | QXT71: Pallet Charge | QXU71: 15 | QXX71: Pallet Charge | QYE71: =ROUNDUP(SUM(QYC45:QYC52),0) -> 0 | QYF71: =QXU71 -> 15 | QYH71: =IF(QYF71*QYE71=0,"",QYF71*QYE71) ->  | QYI71: Pallet Charge | QYJ71: 15 | QYM71: Pallet Charge | QYT71: =ROUNDUP(SUM(QYR45:QYR52),0) -> 0 | QYU71: =QYJ71 -> 15 | QYW71: =IF(QYU71*QYT71=0,"",QYU71*QYT71) ->  | QYX71: Pallet Charge | QYY71: 15 | QZB71: Pallet Charge | QZI71: =ROUNDUP(SUM(QZG45:QZG52),0) -> 0 | QZJ71: =QYY71 -> 15 | QZL71: =IF(QZJ71*QZI71=0,"",QZJ71*QZI71) ->  | QZM71: Pallet Charge | QZN71: 15 | QZQ71: Pallet Charge | QZX71: =ROUNDUP(SUM(QZV45:QZV52),0) -> 0 | QZY71: =QZN71 -> 15 | RAA71: =IF(QZY71*QZX71=0,"",QZY71*QZX71) ->  | RAB71: Pallet Charge | RAC71: 15 | RAF71: Pallet Charge | RAM71: =ROUNDUP(SUM(RAK45:RAK52),0) -> 0 | RAN71: =RAC71 -> 15 | RAP71: =IF(RAN71*RAM71=0,"",RAN71*RAM71) ->  | RAQ71: Pallet Charge | RAR71: 15 | RAU71: Pallet Charge | RBB71: =ROUNDUP(SUM(RAZ45:RAZ52),0) -> 0 | RBC71: =RAR71 -> 15 | RBE71: =IF(RBC71*RBB71=0,"",RBC71*RBB71) ->  | RBF71: Pallet Charge | RBG71: 15 | RBJ71: Pallet Charge | RBQ71: =ROUNDUP(SUM(RBO45:RBO52),0) -> 0 | RBR71: =RBG71 -> 15 | RBT71: =IF(RBR71*RBQ71=0,"",RBR71*RBQ71) ->  | RBU71: Pallet Charge | RBV71: 15 | RBY71: Pallet Charge | RCF71: =ROUNDUP(SUM(RCD45:RCD52),0) -> 0 | RCG71: =RBV71 -> 15 | RCI71: =IF(RCG71*RCF71=0,"",RCG71*RCF71) ->  | RCJ71: Pallet Charge | RCK71: 15 | RCN71: Pallet Charge | RCU71: =ROUNDUP(SUM(RCS45:RCS52),0) -> 0 | RCV71: =RCK71 -> 15 | RCX71: =IF(RCV71*RCU71=0,"",RCV71*RCU71) ->  | RCY71: Pallet Charge | RCZ71: 15 | RDC71: Pallet Charge | RDJ71: =ROUNDUP(SUM(RDH45:RDH52),0) -> 0 | RDK71: =RCZ71 -> 15 | RDM71: =IF(RDK71*RDJ71=0,"",RDK71*RDJ71) ->  | RDN71: Pallet Charge | RDO71: 15 | RDR71: Pallet Charge | RDY71: =ROUNDUP(SUM(RDW45:RDW52),0) -> 0 | RDZ71: =RDO71 -> 15 | REB71: =IF(RDZ71*RDY71=0,"",RDZ71*RDY71) ->  | REC71: Pallet Charge | RED71: 15 | REG71: Pallet Charge | REN71: =ROUNDUP(SUM(REL45:REL52),0) -> 0 | REO71: =RED71 -> 15 | REQ71: =IF(REO71*REN71=0,"",REO71*REN71) ->  | RER71: Pallet Charge | RES71: 15 | REV71: Pallet Charge | RFC71: =ROUNDUP(SUM(RFA45:RFA52),0) -> 0 | RFD71: =RES71 -> 15 | RFF71: =IF(RFD71*RFC71=0,"",RFD71*RFC71) ->  | RFG71: Pallet Charge | RFH71: 15 | RFK71: Pallet Charge | RFR71: =ROUNDUP(SUM(RFP45:RFP52),0) -> 0 | RFS71: =RFH71 -> 15 | RFU71: =IF(RFS71*RFR71=0,"",RFS71*RFR71) ->  | RFV71: Pallet Charge | RFW71: 15 | RFZ71: Pallet Charge | RGG71: =ROUNDUP(SUM(RGE45:RGE52),0) -> 0 | RGH71: =RFW71 -> 15 | RGJ71: =IF(RGH71*RGG71=0,"",RGH71*RGG71) ->  | RGK71: Pallet Charge | RGL71: 15 | RGO71: Pallet Charge | RGV71: =ROUNDUP(SUM(RGT45:RGT52),0) -> 0 | RGW71: =RGL71 -> 15 | RGY71: =IF(RGW71*RGV71=0,"",RGW71*RGV71) ->  | RGZ71: Pallet Charge | RHA71: 15 | RHD71: Pallet Charge | RHK71: =ROUNDUP(SUM(RHI45:RHI52),0) -> 0 | RHL71: =RHA71 -> 15 | RHN71: =IF(RHL71*RHK71=0,"",RHL71*RHK71) ->  | RHO71: Pallet Charge | RHP71: 15 | RHS71: Pallet Charge | RHZ71: =ROUNDUP(SUM(RHX45:RHX52),0) -> 0 | RIA71: =RHP71 -> 15 | RIC71: =IF(RIA71*RHZ71=0,"",RIA71*RHZ71) ->  | RID71: Pallet Charge | RIE71: 15 | RIH71: Pallet Charge | RIO71: =ROUNDUP(SUM(RIM45:RIM52),0) -> 0 | RIP71: =RIE71 -> 15 | RIR71: =IF(RIP71*RIO71=0,"",RIP71*RIO71) ->  | RIS71: Pallet Charge | RIT71: 15 | RIW71: Pallet Charge | RJD71: =ROUNDUP(SUM(RJB45:RJB52),0) -> 0 | RJE71: =RIT71 -> 15 | RJG71: =IF(RJE71*RJD71=0,"",RJE71*RJD71) ->  | RJH71: Pallet Charge | RJI71: 15 | RJL71: Pallet Charge | RJS71: =ROUNDUP(SUM(RJQ45:RJQ52),0) -> 0 | RJT71: =RJI71 -> 15 | RJV71: =IF(RJT71*RJS71=0,"",RJT71*RJS71) ->  | RJW71: Pallet Charge | RJX71: 15 | RKA71: Pallet Charge | RKH71: =ROUNDUP(SUM(RKF45:RKF52),0) -> 0 | RKI71: =RJX71 -> 15 | RKK71: =IF(RKI71*RKH71=0,"",RKI71*RKH71) ->  | RKL71: Pallet Charge | RKM71: 15 | RKP71: Pallet Charge | RKW71: =ROUNDUP(SUM(RKU45:RKU52),0) -> 0 | RKX71: =RKM71 -> 15 | RKZ71: =IF(RKX71*RKW71=0,"",RKX71*RKW71) ->  | RLA71: Pallet Charge | RLB71: 15 | RLE71: Pallet Charge | RLL71: =ROUNDUP(SUM(RLJ45:RLJ52),0) -> 0 | RLM71: =RLB71 -> 15 | RLO71: =IF(RLM71*RLL71=0,"",RLM71*RLL71) ->  | RLP71: Pallet Charge | RLQ71: 15 | RLT71: Pallet Charge | RMA71: =ROUNDUP(SUM(RLY45:RLY52),0) -> 0 | RMB71: =RLQ71 -> 15 | RMD71: =IF(RMB71*RMA71=0,"",RMB71*RMA71) ->  | RME71: Pallet Charge | RMF71: 15 | RMI71: Pallet Charge | RMP71: =ROUNDUP(SUM(RMN45:RMN52),0) -> 0 | RMQ71: =RMF71 -> 15 | RMS71: =IF(RMQ71*RMP71=0,"",RMQ71*RMP71) ->  | RMT71: Pallet Charge | RMU71: 15 | RMX71: Pallet Charge | RNE71: =ROUNDUP(SUM(RNC45:RNC52),0) -> 0 | RNF71: =RMU71 -> 15 | RNH71: =IF(RNF71*RNE71=0,"",RNF71*RNE71) ->  | RNI71: Pallet Charge | RNJ71: 15 | RNM71: Pallet Charge | RNT71: =ROUNDUP(SUM(RNR45:RNR52),0) -> 0 | RNU71: =RNJ71 -> 15 | RNW71: =IF(RNU71*RNT71=0,"",RNU71*RNT71) ->  | RNX71: Pallet Charge | RNY71: 15 | ROB71: Pallet Charge | ROI71: =ROUNDUP(SUM(ROG45:ROG52),0) -> 0 | ROJ71: =RNY71 -> 15 | ROL71: =IF(ROJ71*ROI71=0,"",ROJ71*ROI71) ->  | ROM71: Pallet Charge | RON71: 15 | ROQ71: Pallet Charge | ROX71: =ROUNDUP(SUM(ROV45:ROV52),0) -> 0 | ROY71: =RON71 -> 15 | RPA71: =IF(ROY71*ROX71=0,"",ROY71*ROX71) ->  | RPB71: Pallet Charge | RPC71: 15 | RPF71: Pallet Charge | RPM71: =ROUNDUP(SUM(RPK45:RPK52),0) -> 0 | RPN71: =RPC71 -> 15 | RPP71: =IF(RPN71*RPM71=0,"",RPN71*RPM71) ->  | RPQ71: Pallet Charge | RPR71: 15 | RPU71: Pallet Charge | RQB71: =ROUNDUP(SUM(RPZ45:RPZ52),0) -> 0 | RQC71: =RPR71 -> 15 | RQE71: =IF(RQC71*RQB71=0,"",RQC71*RQB71) ->  | RQF71: Pallet Charge | RQG71: 15 | RQJ71: Pallet Charge | RQQ71: =ROUNDUP(SUM(RQO45:RQO52),0) -> 0 | RQR71: =RQG71 -> 15 | RQT71: =IF(RQR71*RQQ71=0,"",RQR71*RQQ71) ->  | RQU71: Pallet Charge | RQV71: 15 | RQY71: Pallet Charge | RRF71: =ROUNDUP(SUM(RRD45:RRD52),0) -> 0 | RRG71: =RQV71 -> 15 | RRI71: =IF(RRG71*RRF71=0,"",RRG71*RRF71) ->  | RRJ71: Pallet Charge | RRK71: 15 | RRN71: Pallet Charge | RRU71: =ROUNDUP(SUM(RRS45:RRS52),0) -> 0 | RRV71: =RRK71 -> 15 | RRX71: =IF(RRV71*RRU71=0,"",RRV71*RRU71) ->  | RRY71: Pallet Charge | RRZ71: 15 | RSC71: Pallet Charge | RSJ71: =ROUNDUP(SUM(RSH45:RSH52),0) -> 0 | RSK71: =RRZ71 -> 15 | RSM71: =IF(RSK71*RSJ71=0,"",RSK71*RSJ71) ->  | RSN71: Pallet Charge | RSO71: 15 | RSR71: Pallet Charge | RSY71: =ROUNDUP(SUM(RSW45:RSW52),0) -> 0 | RSZ71: =RSO71 -> 15 | RTB71: =IF(RSZ71*RSY71=0,"",RSZ71*RSY71) ->  | RTC71: Pallet Charge | RTD71: 15 | RTG71: Pallet Charge | RTN71: =ROUNDUP(SUM(RTL45:RTL52),0) -> 0 | RTO71: =RTD71 -> 15 | RTQ71: =IF(RTO71*RTN71=0,"",RTO71*RTN71) ->  | RTR71: Pallet Charge | RTS71: 15 | RTV71: Pallet Charge | RUC71: =ROUNDUP(SUM(RUA45:RUA52),0) -> 0 | RUD71: =RTS71 -> 15 | RUF71: =IF(RUD71*RUC71=0,"",RUD71*RUC71) ->  | RUG71: Pallet Charge | RUH71: 15 | RUK71: Pallet Charge | RUR71: =ROUNDUP(SUM(RUP45:RUP52),0) -> 0 | RUS71: =RUH71 -> 15 | RUU71: =IF(RUS71*RUR71=0,"",RUS71*RUR71) ->  | RUV71: Pallet Charge | RUW71: 15 | RUZ71: Pallet Charge | RVG71: =ROUNDUP(SUM(RVE45:RVE52),0) -> 0 | RVH71: =RUW71 -> 15 | RVJ71: =IF(RVH71*RVG71=0,"",RVH71*RVG71) ->  | RVK71: Pallet Charge | RVL71: 15 | RVO71: Pallet Charge | RVV71: =ROUNDUP(SUM(RVT45:RVT52),0) -> 0 | RVW71: =RVL71 -> 15 | RVY71: =IF(RVW71*RVV71=0,"",RVW71*RVV71) ->  | RVZ71: Pallet Charge | RWA71: 15 | RWD71: Pallet Charge | RWK71: =ROUNDUP(SUM(RWI45:RWI52),0) -> 0 | RWL71: =RWA71 -> 15 | RWN71: =IF(RWL71*RWK71=0,"",RWL71*RWK71) ->  | RWO71: Pallet Charge | RWP71: 15 | RWS71: Pallet Charge | RWZ71: =ROUNDUP(SUM(RWX45:RWX52),0) -> 0 | RXA71: =RWP71 -> 15 | RXC71: =IF(RXA71*RWZ71=0,"",RXA71*RWZ71) ->  | RXD71: Pallet Charge | RXE71: 15 | RXH71: Pallet Charge | RXO71: =ROUNDUP(SUM(RXM45:RXM52),0) -> 0 | RXP71: =RXE71 -> 15 | RXR71: =IF(RXP71*RXO71=0,"",RXP71*RXO71) ->  | RXS71: Pallet Charge | RXT71: 15 | RXW71: Pallet Charge | RYD71: =ROUNDUP(SUM(RYB45:RYB52),0) -> 0 | RYE71: =RXT71 -> 15 | RYG71: =IF(RYE71*RYD71=0,"",RYE71*RYD71) ->  | RYH71: Pallet Charge | RYI71: 15 | RYL71: Pallet Charge | RYS71: =ROUNDUP(SUM(RYQ45:RYQ52),0) -> 0 | RYT71: =RYI71 -> 15 | RYV71: =IF(RYT71*RYS71=0,"",RYT71*RYS71) ->  | RYW71: Pallet Charge | RYX71: 15 | RZA71: Pallet Charge | RZH71: =ROUNDUP(SUM(RZF45:RZF52),0) -> 0 | RZI71: =RYX71 -> 15 | RZK71: =IF(RZI71*RZH71=0,"",RZI71*RZH71) ->  | RZL71: Pallet Charge | RZM71: 15 | RZP71: Pallet Charge | RZW71: =ROUNDUP(SUM(RZU45:RZU52),0) -> 0 | RZX71: =RZM71 -> 15 | RZZ71: =IF(RZX71*RZW71=0,"",RZX71*RZW71) ->  | SAA71: Pallet Charge | SAB71: 15 | SAE71: Pallet Charge | SAL71: =ROUNDUP(SUM(SAJ45:SAJ52),0) -> 0 | SAM71: =SAB71 -> 15 | SAO71: =IF(SAM71*SAL71=0,"",SAM71*SAL71) ->  | SAP71: Pallet Charge | SAQ71: 15 | SAT71: Pallet Charge | SBA71: =ROUNDUP(SUM(SAY45:SAY52),0) -> 0 | SBB71: =SAQ71 -> 15 | SBD71: =IF(SBB71*SBA71=0,"",SBB71*SBA71) ->  | SBE71: Pallet Charge | SBF71: 15 | SBI71: Pallet Charge | SBP71: =ROUNDUP(SUM(SBN45:SBN52),0) -> 0 | SBQ71: =SBF71 -> 15 | SBS71: =IF(SBQ71*SBP71=0,"",SBQ71*SBP71) ->  | SBT71: Pallet Charge | SBU71: 15 | SBX71: Pallet Charge | SCE71: =ROUNDUP(SUM(SCC45:SCC52),0) -> 0 | SCF71: =SBU71 -> 15 | SCH71: =IF(SCF71*SCE71=0,"",SCF71*SCE71) ->  | SCI71: Pallet Charge | SCJ71: 15 | SCM71: Pallet Charge | SCT71: =ROUNDUP(SUM(SCR45:SCR52),0) -> 0 | SCU71: =SCJ71 -> 15 | SCW71: =IF(SCU71*SCT71=0,"",SCU71*SCT71) ->  | SCX71: Pallet Charge | SCY71: 15 | SDB71: Pallet Charge | SDI71: =ROUNDUP(SUM(SDG45:SDG52),0) -> 0 | SDJ71: =SCY71 -> 15 | SDL71: =IF(SDJ71*SDI71=0,"",SDJ71*SDI71) ->  | SDM71: Pallet Charge | SDN71: 15 | SDQ71: Pallet Charge | SDX71: =ROUNDUP(SUM(SDV45:SDV52),0) -> 0 | SDY71: =SDN71 -> 15 | SEA71: =IF(SDY71*SDX71=0,"",SDY71*SDX71) ->  | SEB71: Pallet Charge | SEC71: 15 | SEF71: Pallet Charge | SEM71: =ROUNDUP(SUM(SEK45:SEK52),0) -> 0 | SEN71: =SEC71 -> 15 | SEP71: =IF(SEN71*SEM71=0,"",SEN71*SEM71) ->  | SEQ71: Pallet Charge | SER71: 15 | SEU71: Pallet Charge | SFB71: =ROUNDUP(SUM(SEZ45:SEZ52),0) -> 0 | SFC71: =SER71 -> 15 | SFE71: =IF(SFC71*SFB71=0,"",SFC71*SFB71) ->  | SFF71: Pallet Charge | SFG71: 15 | SFJ71: Pallet Charge | SFQ71: =ROUNDUP(SUM(SFO45:SFO52),0) -> 0 | SFR71: =SFG71 -> 15 | SFT71: =IF(SFR71*SFQ71=0,"",SFR71*SFQ71) ->  | SFU71: Pallet Charge | SFV71: 15 | SFY71: Pallet Charge | SGF71: =ROUNDUP(SUM(SGD45:SGD52),0) -> 0 | SGG71: =SFV71 -> 15 | SGI71: =IF(SGG71*SGF71=0,"",SGG71*SGF71) ->  | SGJ71: Pallet Charge | SGK71: 15 | SGN71: Pallet Charge | SGU71: =ROUNDUP(SUM(SGS45:SGS52),0) -> 0 | SGV71: =SGK71 -> 15 | SGX71: =IF(SGV71*SGU71=0,"",SGV71*SGU71) ->  | SGY71: Pallet Charge | SGZ71: 15 | SHC71: Pallet Charge | SHJ71: =ROUNDUP(SUM(SHH45:SHH52),0) -> 0 | SHK71: =SGZ71 -> 15 | SHM71: =IF(SHK71*SHJ71=0,"",SHK71*SHJ71) ->  | SHN71: Pallet Charge | SHO71: 15 | SHR71: Pallet Charge | SHY71: =ROUNDUP(SUM(SHW45:SHW52),0) -> 0 | SHZ71: =SHO71 -> 15 | SIB71: =IF(SHZ71*SHY71=0,"",SHZ71*SHY71) ->  | SIC71: Pallet Charge | SID71: 15 | SIG71: Pallet Charge | SIN71: =ROUNDUP(SUM(SIL45:SIL52),0) -> 0 | SIO71: =SID71 -> 15 | SIQ71: =IF(SIO71*SIN71=0,"",SIO71*SIN71) ->  | SIR71: Pallet Charge | SIS71: 15 | SIV71: Pallet Charge | SJC71: =ROUNDUP(SUM(SJA45:SJA52),0) -> 0 | SJD71: =SIS71 -> 15 | SJF71: =IF(SJD71*SJC71=0,"",SJD71*SJC71) ->  | SJG71: Pallet Charge | SJH71: 15 | SJK71: Pallet Charge | SJR71: =ROUNDUP(SUM(SJP45:SJP52),0) -> 0 | SJS71: =SJH71 -> 15 | SJU71: =IF(SJS71*SJR71=0,"",SJS71*SJR71) ->  | SJV71: Pallet Charge | SJW71: 15 | SJZ71: Pallet Charge | SKG71: =ROUNDUP(SUM(SKE45:SKE52),0) -> 0 | SKH71: =SJW71 -> 15 | SKJ71: =IF(SKH71*SKG71=0,"",SKH71*SKG71) ->  | SKK71: Pallet Charge | SKL71: 15 | SKO71: Pallet Charge | SKV71: =ROUNDUP(SUM(SKT45:SKT52),0) -> 0 | SKW71: =SKL71 -> 15 | SKY71: =IF(SKW71*SKV71=0,"",SKW71*SKV71) ->  | SKZ71: Pallet Charge | SLA71: 15 | SLD71: Pallet Charge | SLK71: =ROUNDUP(SUM(SLI45:SLI52),0) -> 0 | SLL71: =SLA71 -> 15 | SLN71: =IF(SLL71*SLK71=0,"",SLL71*SLK71) ->  | SLO71: Pallet Charge | SLP71: 15 | SLS71: Pallet Charge | SLZ71: =ROUNDUP(SUM(SLX45:SLX52),0) -> 0 | SMA71: =SLP71 -> 15 | SMC71: =IF(SMA71*SLZ71=0,"",SMA71*SLZ71) ->  | SMD71: Pallet Charge | SME71: 15 | SMH71: Pallet Charge | SMO71: =ROUNDUP(SUM(SMM45:SMM52),0) -> 0 | SMP71: =SME71 -> 15 | SMR71: =IF(SMP71*SMO71=0,"",SMP71*SMO71) ->  | SMS71: Pallet Charge | SMT71: 15 | SMW71: Pallet Charge | SND71: =ROUNDUP(SUM(SNB45:SNB52),0) -> 0 | SNE71: =SMT71 -> 15 | SNG71: =IF(SNE71*SND71=0,"",SNE71*SND71) ->  | SNH71: Pallet Charge | SNI71: 15 | SNL71: Pallet Charge | SNS71: =ROUNDUP(SUM(SNQ45:SNQ52),0) -> 0 | SNT71: =SNI71 -> 15 | SNV71: =IF(SNT71*SNS71=0,"",SNT71*SNS71) ->  | SNW71: Pallet Charge | SNX71: 15 | SOA71: Pallet Charge | SOH71: =ROUNDUP(SUM(SOF45:SOF52),0) -> 0 | SOI71: =SNX71 -> 15 | SOK71: =IF(SOI71*SOH71=0,"",SOI71*SOH71) ->  | SOL71: Pallet Charge | SOM71: 15 | SOP71: Pallet Charge | SOW71: =ROUNDUP(SUM(SOU45:SOU52),0) -> 0 | SOX71: =SOM71 -> 15 | SOZ71: =IF(SOX71*SOW71=0,"",SOX71*SOW71) ->  | SPA71: Pallet Charge | SPB71: 15 | SPE71: Pallet Charge | SPL71: =ROUNDUP(SUM(SPJ45:SPJ52),0) -> 0 | SPM71: =SPB71 -> 15 | SPO71: =IF(SPM71*SPL71=0,"",SPM71*SPL71) ->  | SPP71: Pallet Charge | SPQ71: 15 | SPT71: Pallet Charge | SQA71: =ROUNDUP(SUM(SPY45:SPY52),0) -> 0 | SQB71: =SPQ71 -> 15 | SQD71: =IF(SQB71*SQA71=0,"",SQB71*SQA71) ->  | SQE71: Pallet Charge | SQF71: 15 | SQI71: Pallet Charge | SQP71: =ROUNDUP(SUM(SQN45:SQN52),0) -> 0 | SQQ71: =SQF71 -> 15 | SQS71: =IF(SQQ71*SQP71=0,"",SQQ71*SQP71) ->  | SQT71: Pallet Charge | SQU71: 15 | SQX71: Pallet Charge | SRE71: =ROUNDUP(SUM(SRC45:SRC52),0) -> 0 | SRF71: =SQU71 -> 15 | SRH71: =IF(SRF71*SRE71=0,"",SRF71*SRE71) ->  | SRI71: Pallet Charge | SRJ71: 15 | SRM71: Pallet Charge | SRT71: =ROUNDUP(SUM(SRR45:SRR52),0) -> 0 | SRU71: =SRJ71 -> 15 | SRW71: =IF(SRU71*SRT71=0,"",SRU71*SRT71) ->  | SRX71: Pallet Charge | SRY71: 15 | SSB71: Pallet Charge | SSI71: =ROUNDUP(SUM(SSG45:SSG52),0) -> 0 | SSJ71: =SRY71 -> 15 | SSL71: =IF(SSJ71*SSI71=0,"",SSJ71*SSI71) ->  | SSM71: Pallet Charge | SSN71: 15 | SSQ71: Pallet Charge | SSX71: =ROUNDUP(SUM(SSV45:SSV52),0) -> 0 | SSY71: =SSN71 -> 15 | STA71: =IF(SSY71*SSX71=0,"",SSY71*SSX71) ->  | STB71: Pallet Charge | STC71: 15 | STF71: Pallet Charge | STM71: =ROUNDUP(SUM(STK45:STK52),0) -> 0 | STN71: =STC71 -> 15 | STP71: =IF(STN71*STM71=0,"",STN71*STM71) ->  | STQ71: Pallet Charge | STR71: 15 | STU71: Pallet Charge | SUB71: =ROUNDUP(SUM(STZ45:STZ52),0) -> 0 | SUC71: =STR71 -> 15 | SUE71: =IF(SUC71*SUB71=0,"",SUC71*SUB71) ->  | SUF71: Pallet Charge | SUG71: 15 | SUJ71: Pallet Charge | SUQ71: =ROUNDUP(SUM(SUO45:SUO52),0) -> 0 | SUR71: =SUG71 -> 15 | SUT71: =IF(SUR71*SUQ71=0,"",SUR71*SUQ71) ->  | SUU71: Pallet Charge | SUV71: 15 | SUY71: Pallet Charge | SVF71: =ROUNDUP(SUM(SVD45:SVD52),0) -> 0 | SVG71: =SUV71 -> 15 | SVI71: =IF(SVG71*SVF71=0,"",SVG71*SVF71) ->  | SVJ71: Pallet Charge | SVK71: 15 | SVN71: Pallet Charge | SVU71: =ROUNDUP(SUM(SVS45:SVS52),0) -> 0 | SVV71: =SVK71 -> 15 | SVX71: =IF(SVV71*SVU71=0,"",SVV71*SVU71) ->  | SVY71: Pallet Charge | SVZ71: 15 | SWC71: Pallet Charge | SWJ71: =ROUNDUP(SUM(SWH45:SWH52),0) -> 0 | SWK71: =SVZ71 -> 15 | SWM71: =IF(SWK71*SWJ71=0,"",SWK71*SWJ71) ->  | SWN71: Pallet Charge | SWO71: 15 | SWR71: Pallet Charge | SWY71: =ROUNDUP(SUM(SWW45:SWW52),0) -> 0 | SWZ71: =SWO71 -> 15 | SXB71: =IF(SWZ71*SWY71=0,"",SWZ71*SWY71) ->  | SXC71: Pallet Charge | SXD71: 15 | SXG71: Pallet Charge | SXN71: =ROUNDUP(SUM(SXL45:SXL52),0) -> 0 | SXO71: =SXD71 -> 15 | SXQ71: =IF(SXO71*SXN71=0,"",SXO71*SXN71) ->  | SXR71: Pallet Charge | SXS71: 15 | SXV71: Pallet Charge | SYC71: =ROUNDUP(SUM(SYA45:SYA52),0) -> 0 | SYD71: =SXS71 -> 15 | SYF71: =IF(SYD71*SYC71=0,"",SYD71*SYC71) ->  | SYG71: Pallet Charge | SYH71: 15 | SYK71: Pallet Charge | SYR71: =ROUNDUP(SUM(SYP45:SYP52),0) -> 0 | SYS71: =SYH71 -> 15 | SYU71: =IF(SYS71*SYR71=0,"",SYS71*SYR71) ->  | SYV71: Pallet Charge | SYW71: 15 | SYZ71: Pallet Charge | SZG71: =ROUNDUP(SUM(SZE45:SZE52),0) -> 0 | SZH71: =SYW71 -> 15 | SZJ71: =IF(SZH71*SZG71=0,"",SZH71*SZG71) ->  | SZK71: Pallet Charge | SZL71: 15 | SZO71: Pallet Charge | SZV71: =ROUNDUP(SUM(SZT45:SZT52),0) -> 0 | SZW71: =SZL71 -> 15 | SZY71: =IF(SZW71*SZV71=0,"",SZW71*SZV71) ->  | SZZ71: Pallet Charge | TAA71: 15 | TAD71: Pallet Charge | TAK71: =ROUNDUP(SUM(TAI45:TAI52),0) -> 0 | TAL71: =TAA71 -> 15 | TAN71: =IF(TAL71*TAK71=0,"",TAL71*TAK71) ->  | TAO71: Pallet Charge | TAP71: 15 | TAS71: Pallet Charge | TAZ71: =ROUNDUP(SUM(TAX45:TAX52),0) -> 0 | TBA71: =TAP71 -> 15 | TBC71: =IF(TBA71*TAZ71=0,"",TBA71*TAZ71) ->  | TBD71: Pallet Charge | TBE71: 15 | TBH71: Pallet Charge | TBO71: =ROUNDUP(SUM(TBM45:TBM52),0) -> 0 | TBP71: =TBE71 -> 15 | TBR71: =IF(TBP71*TBO71=0,"",TBP71*TBO71) ->  | TBS71: Pallet Charge | TBT71: 15 | TBW71: Pallet Charge | TCD71: =ROUNDUP(SUM(TCB45:TCB52),0) -> 0 | TCE71: =TBT71 -> 15 | TCG71: =IF(TCE71*TCD71=0,"",TCE71*TCD71) ->  | TCH71: Pallet Charge | TCI71: 15 | TCL71: Pallet Charge | TCS71: =ROUNDUP(SUM(TCQ45:TCQ52),0) -> 0 | TCT71: =TCI71 -> 15 | TCV71: =IF(TCT71*TCS71=0,"",TCT71*TCS71) ->  | TCW71: Pallet Charge | TCX71: 15 | TDA71: Pallet Charge | TDH71: =ROUNDUP(SUM(TDF45:TDF52),0) -> 0 | TDI71: =TCX71 -> 15 | TDK71: =IF(TDI71*TDH71=0,"",TDI71*TDH71) ->  | TDL71: Pallet Charge | TDM71: 15 | TDP71: Pallet Charge | TDW71: =ROUNDUP(SUM(TDU45:TDU52),0) -> 0 | TDX71: =TDM71 -> 15 | TDZ71: =IF(TDX71*TDW71=0,"",TDX71*TDW71) ->  | TEA71: Pallet Charge | TEB71: 15 | TEE71: Pallet Charge | TEL71: =ROUNDUP(SUM(TEJ45:TEJ52),0) -> 0 | TEM71: =TEB71 -> 15 | TEO71: =IF(TEM71*TEL71=0,"",TEM71*TEL71) ->  | TEP71: Pallet Charge | TEQ71: 15 | TET71: Pallet Charge | TFA71: =ROUNDUP(SUM(TEY45:TEY52),0) -> 0 | TFB71: =TEQ71 -> 15 | TFD71: =IF(TFB71*TFA71=0,"",TFB71*TFA71) ->  | TFE71: Pallet Charge | TFF71: 15 | TFI71: Pallet Charge | TFP71: =ROUNDUP(SUM(TFN45:TFN52),0) -> 0 | TFQ71: =TFF71 -> 15 | TFS71: =IF(TFQ71*TFP71=0,"",TFQ71*TFP71) ->  | TFT71: Pallet Charge | TFU71: 15 | TFX71: Pallet Charge | TGE71: =ROUNDUP(SUM(TGC45:TGC52),0) -> 0 | TGF71: =TFU71 -> 15 | TGH71: =IF(TGF71*TGE71=0,"",TGF71*TGE71) ->  | TGI71: Pallet Charge | TGJ71: 15 | TGM71: Pallet Charge | TGT71: =ROUNDUP(SUM(TGR45:TGR52),0) -> 0 | TGU71: =TGJ71 -> 15 | TGW71: =IF(TGU71*TGT71=0,"",TGU71*TGT71) ->  | TGX71: Pallet Charge | TGY71: 15 | THB71: Pallet Charge | THI71: =ROUNDUP(SUM(THG45:THG52),0) -> 0 | THJ71: =TGY71 -> 15 | THL71: =IF(THJ71*THI71=0,"",THJ71*THI71) ->  | THM71: Pallet Charge | THN71: 15 | THQ71: Pallet Charge | THX71: =ROUNDUP(SUM(THV45:THV52),0) -> 0 | THY71: =THN71 -> 15 | TIA71: =IF(THY71*THX71=0,"",THY71*THX71) ->  | TIB71: Pallet Charge | TIC71: 15 | TIF71: Pallet Charge | TIM71: =ROUNDUP(SUM(TIK45:TIK52),0) -> 0 | TIN71: =TIC71 -> 15 | TIP71: =IF(TIN71*TIM71=0,"",TIN71*TIM71) ->  | TIQ71: Pallet Charge | TIR71: 15 | TIU71: Pallet Charge | TJB71: =ROUNDUP(SUM(TIZ45:TIZ52),0) -> 0 | TJC71: =TIR71 -> 15 | TJE71: =IF(TJC71*TJB71=0,"",TJC71*TJB71) ->  | TJF71: Pallet Charge | TJG71: 15 | TJJ71: Pallet Charge | TJQ71: =ROUNDUP(SUM(TJO45:TJO52),0) -> 0 | TJR71: =TJG71 -> 15 | TJT71: =IF(TJR71*TJQ71=0,"",TJR71*TJQ71) ->  | TJU71: Pallet Charge | TJV71: 15 | TJY71: Pallet Charge | TKF71: =ROUNDUP(SUM(TKD45:TKD52),0) -> 0 | TKG71: =TJV71 -> 15 | TKI71: =IF(TKG71*TKF71=0,"",TKG71*TKF71) ->  | TKJ71: Pallet Charge | TKK71: 15 | TKN71: Pallet Charge | TKU71: =ROUNDUP(SUM(TKS45:TKS52),0) -> 0 | TKV71: =TKK71 -> 15 | TKX71: =IF(TKV71*TKU71=0,"",TKV71*TKU71) ->  | TKY71: Pallet Charge | TKZ71: 15 | TLC71: Pallet Charge | TLJ71: =ROUNDUP(SUM(TLH45:TLH52),0) -> 0 | TLK71: =TKZ71 -> 15 | TLM71: =IF(TLK71*TLJ71=0,"",TLK71*TLJ71) ->  | TLN71: Pallet Charge | TLO71: 15 | TLR71: Pallet Charge | TLY71: =ROUNDUP(SUM(TLW45:TLW52),0) -> 0 | TLZ71: =TLO71 -> 15 | TMB71: =IF(TLZ71*TLY71=0,"",TLZ71*TLY71) ->  | TMC71: Pallet Charge | TMD71: 15 | TMG71: Pallet Charge | TMN71: =ROUNDUP(SUM(TML45:TML52),0) -> 0 | TMO71: =TMD71 -> 15 | TMQ71: =IF(TMO71*TMN71=0,"",TMO71*TMN71) ->  | TMR71: Pallet Charge | TMS71: 15 | TMV71: Pallet Charge | TNC71: =ROUNDUP(SUM(TNA45:TNA52),0) -> 0 | TND71: =TMS71 -> 15 | TNF71: =IF(TND71*TNC71=0,"",TND71*TNC71) ->  | TNG71: Pallet Charge | TNH71: 15 | TNK71: Pallet Charge | TNR71: =ROUNDUP(SUM(TNP45:TNP52),0) -> 0 | TNS71: =TNH71 -> 15 | TNU71: =IF(TNS71*TNR71=0,"",TNS71*TNR71) ->  | TNV71: Pallet Charge | TNW71: 15 | TNZ71: Pallet Charge | TOG71: =ROUNDUP(SUM(TOE45:TOE52),0) -> 0 | TOH71: =TNW71 -> 15 | TOJ71: =IF(TOH71*TOG71=0,"",TOH71*TOG71) ->  | TOK71: Pallet Charge | TOL71: 15 | TOO71: Pallet Charge | TOV71: =ROUNDUP(SUM(TOT45:TOT52),0) -> 0 | TOW71: =TOL71 -> 15 | TOY71: =IF(TOW71*TOV71=0,"",TOW71*TOV71) ->  | TOZ71: Pallet Charge | TPA71: 15 | TPD71: Pallet Charge | TPK71: =ROUNDUP(SUM(TPI45:TPI52),0) -> 0 | TPL71: =TPA71 -> 15 | TPN71: =IF(TPL71*TPK71=0,"",TPL71*TPK71) ->  | TPO71: Pallet Charge | TPP71: 15 | TPS71: Pallet Charge | TPZ71: =ROUNDUP(SUM(TPX45:TPX52),0) -> 0 | TQA71: =TPP71 -> 15 | TQC71: =IF(TQA71*TPZ71=0,"",TQA71*TPZ71) ->  | TQD71: Pallet Charge | TQE71: 15 | TQH71: Pallet Charge | TQO71: =ROUNDUP(SUM(TQM45:TQM52),0) -> 0 | TQP71: =TQE71 -> 15 | TQR71: =IF(TQP71*TQO71=0,"",TQP71*TQO71) ->  | TQS71: Pallet Charge | TQT71: 15 | TQW71: Pallet Charge | TRD71: =ROUNDUP(SUM(TRB45:TRB52),0) -> 0 | TRE71: =TQT71 -> 15 | TRG71: =IF(TRE71*TRD71=0,"",TRE71*TRD71) ->  | TRH71: Pallet Charge | TRI71: 15 | TRL71: Pallet Charge | TRS71: =ROUNDUP(SUM(TRQ45:TRQ52),0) -> 0 | TRT71: =TRI71 -> 15 | TRV71: =IF(TRT71*TRS71=0,"",TRT71*TRS71) ->  | TRW71: Pallet Charge | TRX71: 15 | TSA71: Pallet Charge | TSH71: =ROUNDUP(SUM(TSF45:TSF52),0) -> 0 | TSI71: =TRX71 -> 15 | TSK71: =IF(TSI71*TSH71=0,"",TSI71*TSH71) ->  | TSL71: Pallet Charge | TSM71: 15 | TSP71: Pallet Charge | TSW71: =ROUNDUP(SUM(TSU45:TSU52),0) -> 0 | TSX71: =TSM71 -> 15 | TSZ71: =IF(TSX71*TSW71=0,"",TSX71*TSW71) ->  | TTA71: Pallet Charge | TTB71: 15 | TTE71: Pallet Charge | TTL71: =ROUNDUP(SUM(TTJ45:TTJ52),0) -> 0 | TTM71: =TTB71 -> 15 | TTO71: =IF(TTM71*TTL71=0,"",TTM71*TTL71) ->  | TTP71: Pallet Charge | TTQ71: 15 | TTT71: Pallet Charge | TUA71: =ROUNDUP(SUM(TTY45:TTY52),0) -> 0 | TUB71: =TTQ71 -> 15 | TUD71: =IF(TUB71*TUA71=0,"",TUB71*TUA71) ->  | TUE71: Pallet Charge | TUF71: 15 | TUI71: Pallet Charge | TUP71: =ROUNDUP(SUM(TUN45:TUN52),0) -> 0 | TUQ71: =TUF71 -> 15 | TUS71: =IF(TUQ71*TUP71=0,"",TUQ71*TUP71) ->  | TUT71: Pallet Charge | TUU71: 15 | TUX71: Pallet Charge | TVE71: =ROUNDUP(SUM(TVC45:TVC52),0) -> 0 | TVF71: =TUU71 -> 15 | TVH71: =IF(TVF71*TVE71=0,"",TVF71*TVE71) ->  | TVI71: Pallet Charge | TVJ71: 15 | TVM71: Pallet Charge | TVT71: =ROUNDUP(SUM(TVR45:TVR52),0) -> 0 | TVU71: =TVJ71 -> 15 | TVW71: =IF(TVU71*TVT71=0,"",TVU71*TVT71) ->  | TVX71: Pallet Charge | TVY71: 15 | TWB71: Pallet Charge | TWI71: =ROUNDUP(SUM(TWG45:TWG52),0) -> 0 | TWJ71: =TVY71 -> 15 | TWL71: =IF(TWJ71*TWI71=0,"",TWJ71*TWI71) ->  | TWM71: Pallet Charge | TWN71: 15 | TWQ71: Pallet Charge | TWX71: =ROUNDUP(SUM(TWV45:TWV52),0) -> 0 | TWY71: =TWN71 -> 15 | TXA71: =IF(TWY71*TWX71=0,"",TWY71*TWX71) ->  | TXB71: Pallet Charge | TXC71: 15 | TXF71: Pallet Charge | TXM71: =ROUNDUP(SUM(TXK45:TXK52),0) -> 0 | TXN71: =TXC71 -> 15 | TXP71: =IF(TXN71*TXM71=0,"",TXN71*TXM71) ->  | TXQ71: Pallet Charge | TXR71: 15 | TXU71: Pallet Charge | TYB71: =ROUNDUP(SUM(TXZ45:TXZ52),0) -> 0 | TYC71: =TXR71 -> 15 | TYE71: =IF(TYC71*TYB71=0,"",TYC71*TYB71) ->  | TYF71: Pallet Charge | TYG71: 15 | TYJ71: Pallet Charge | TYQ71: =ROUNDUP(SUM(TYO45:TYO52),0) -> 0 | TYR71: =TYG71 -> 15 | TYT71: =IF(TYR71*TYQ71=0,"",TYR71*TYQ71) ->  | TYU71: Pallet Charge | TYV71: 15 | TYY71: Pallet Charge | TZF71: =ROUNDUP(SUM(TZD45:TZD52),0) -> 0 | TZG71: =TYV71 -> 15 | TZI71: =IF(TZG71*TZF71=0,"",TZG71*TZF71) ->  | TZJ71: Pallet Charge | TZK71: 15 | TZN71: Pallet Charge | TZU71: =ROUNDUP(SUM(TZS45:TZS52),0) -> 0 | TZV71: =TZK71 -> 15 | TZX71: =IF(TZV71*TZU71=0,"",TZV71*TZU71) ->  | TZY71: Pallet Charge | TZZ71: 15 | UAC71: Pallet Charge | UAJ71: =ROUNDUP(SUM(UAH45:UAH52),0) -> 0 | UAK71: =TZZ71 -> 15 | UAM71: =IF(UAK71*UAJ71=0,"",UAK71*UAJ71) ->  | UAN71: Pallet Charge | UAO71: 15 | UAR71: Pallet Charge | UAY71: =ROUNDUP(SUM(UAW45:UAW52),0) -> 0 | UAZ71: =UAO71 -> 15 | UBB71: =IF(UAZ71*UAY71=0,"",UAZ71*UAY71) ->  | UBC71: Pallet Charge | UBD71: 15 | UBG71: Pallet Charge | UBN71: =ROUNDUP(SUM(UBL45:UBL52),0) -> 0 | UBO71: =UBD71 -> 15 | UBQ71: =IF(UBO71*UBN71=0,"",UBO71*UBN71) ->  | UBR71: Pallet Charge | UBS71: 15 | UBV71: Pallet Charge | UCC71: =ROUNDUP(SUM(UCA45:UCA52),0) -> 0 | UCD71: =UBS71 -> 15 | UCF71: =IF(UCD71*UCC71=0,"",UCD71*UCC71) ->  | UCG71: Pallet Charge | UCH71: 15 | UCK71: Pallet Charge | UCR71: =ROUNDUP(SUM(UCP45:UCP52),0) -> 0 | UCS71: =UCH71 -> 15 | UCU71: =IF(UCS71*UCR71=0,"",UCS71*UCR71) ->  | UCV71: Pallet Charge | UCW71: 15 | UCZ71: Pallet Charge | UDG71: =ROUNDUP(SUM(UDE45:UDE52),0) -> 0 | UDH71: =UCW71 -> 15 | UDJ71: =IF(UDH71*UDG71=0,"",UDH71*UDG71) ->  | UDK71: Pallet Charge | UDL71: 15 | UDO71: Pallet Charge | UDV71: =ROUNDUP(SUM(UDT45:UDT52),0) -> 0 | UDW71: =UDL71 -> 15 | UDY71: =IF(UDW71*UDV71=0,"",UDW71*UDV71) ->  | UDZ71: Pallet Charge | UEA71: 15 | UED71: Pallet Charge | UEK71: =ROUNDUP(SUM(UEI45:UEI52),0) -> 0 | UEL71: =UEA71 -> 15 | UEN71: =IF(UEL71*UEK71=0,"",UEL71*UEK71) ->  | UEO71: Pallet Charge | UEP71: 15 | UES71: Pallet Charge | UEZ71: =ROUNDUP(SUM(UEX45:UEX52),0) -> 0 | UFA71: =UEP71 -> 15 | UFC71: =IF(UFA71*UEZ71=0,"",UFA71*UEZ71) ->  | UFD71: Pallet Charge | UFE71: 15 | UFH71: Pallet Charge | UFO71: =ROUNDUP(SUM(UFM45:UFM52),0) -> 0 | UFP71: =UFE71 -> 15 | UFR71: =IF(UFP71*UFO71=0,"",UFP71*UFO71) ->  | UFS71: Pallet Charge | UFT71: 15 | UFW71: Pallet Charge | UGD71: =ROUNDUP(SUM(UGB45:UGB52),0) -> 0 | UGE71: =UFT71 -> 15 | UGG71: =IF(UGE71*UGD71=0,"",UGE71*UGD71) ->  | UGH71: Pallet Charge | UGI71: 15 | UGL71: Pallet Charge | UGS71: =ROUNDUP(SUM(UGQ45:UGQ52),0) -> 0 | UGT71: =UGI71 -> 15 | UGV71: =IF(UGT71*UGS71=0,"",UGT71*UGS71) ->  | UGW71: Pallet Charge | UGX71: 15 | UHA71: Pallet Charge | UHH71: =ROUNDUP(SUM(UHF45:UHF52),0) -> 0 | UHI71: =UGX71 -> 15 | UHK71: =IF(UHI71*UHH71=0,"",UHI71*UHH71) ->  | UHL71: Pallet Charge | UHM71: 15 | UHP71: Pallet Charge | UHW71: =ROUNDUP(SUM(UHU45:UHU52),0) -> 0 | UHX71: =UHM71 -> 15 | UHZ71: =IF(UHX71*UHW71=0,"",UHX71*UHW71) ->  | UIA71: Pallet Charge | UIB71: 15 | UIE71: Pallet Charge | UIL71: =ROUNDUP(SUM(UIJ45:UIJ52),0) -> 0 | UIM71: =UIB71 -> 15 | UIO71: =IF(UIM71*UIL71=0,"",UIM71*UIL71) ->  | UIP71: Pallet Charge | UIQ71: 15 | UIT71: Pallet Charge | UJA71: =ROUNDUP(SUM(UIY45:UIY52),0) -> 0 | UJB71: =UIQ71 -> 15 | UJD71: =IF(UJB71*UJA71=0,"",UJB71*UJA71) ->  | UJE71: Pallet Charge | UJF71: 15 | UJI71: Pallet Charge | UJP71: =ROUNDUP(SUM(UJN45:UJN52),0) -> 0 | UJQ71: =UJF71 -> 15 | UJS71: =IF(UJQ71*UJP71=0,"",UJQ71*UJP71) ->  | UJT71: Pallet Charge | UJU71: 15 | UJX71: Pallet Charge | UKE71: =ROUNDUP(SUM(UKC45:UKC52),0) -> 0 | UKF71: =UJU71 -> 15 | UKH71: =IF(UKF71*UKE71=0,"",UKF71*UKE71) ->  | UKI71: Pallet Charge | UKJ71: 15 | UKM71: Pallet Charge | UKT71: =ROUNDUP(SUM(UKR45:UKR52),0) -> 0 | UKU71: =UKJ71 -> 15 | UKW71: =IF(UKU71*UKT71=0,"",UKU71*UKT71) ->  | UKX71: Pallet Charge | UKY71: 15 | ULB71: Pallet Charge | ULI71: =ROUNDUP(SUM(ULG45:ULG52),0) -> 0 | ULJ71: =UKY71 -> 15 | ULL71: =IF(ULJ71*ULI71=0,"",ULJ71*ULI71) ->  | ULM71: Pallet Charge | ULN71: 15 | ULQ71: Pallet Charge | ULX71: =ROUNDUP(SUM(ULV45:ULV52),0) -> 0 | ULY71: =ULN71 -> 15 | UMA71: =IF(ULY71*ULX71=0,"",ULY71*ULX71) ->  | UMB71: Pallet Charge | UMC71: 15 | UMF71: Pallet Charge | UMM71: =ROUNDUP(SUM(UMK45:UMK52),0) -> 0 | UMN71: =UMC71 -> 15 | UMP71: =IF(UMN71*UMM71=0,"",UMN71*UMM71) ->  | UMQ71: Pallet Charge | UMR71: 15 | UMU71: Pallet Charge | UNB71: =ROUNDUP(SUM(UMZ45:UMZ52),0) -> 0 | UNC71: =UMR71 -> 15 | UNE71: =IF(UNC71*UNB71=0,"",UNC71*UNB71) ->  | UNF71: Pallet Charge | UNG71: 15 | UNJ71: Pallet Charge | UNQ71: =ROUNDUP(SUM(UNO45:UNO52),0) -> 0 | UNR71: =UNG71 -> 15 | UNT71: =IF(UNR71*UNQ71=0,"",UNR71*UNQ71) ->  | UNU71: Pallet Charge | UNV71: 15 | UNY71: Pallet Charge | UOF71: =ROUNDUP(SUM(UOD45:UOD52),0) -> 0 | UOG71: =UNV71 -> 15 | UOI71: =IF(UOG71*UOF71=0,"",UOG71*UOF71) ->  | UOJ71: Pallet Charge | UOK71: 15 | UON71: Pallet Charge | UOU71: =ROUNDUP(SUM(UOS45:UOS52),0) -> 0 | UOV71: =UOK71 -> 15 | UOX71: =IF(UOV71*UOU71=0,"",UOV71*UOU71) ->  | UOY71: Pallet Charge | UOZ71: 15 | UPC71: Pallet Charge | UPJ71: =ROUNDUP(SUM(UPH45:UPH52),0) -> 0 | UPK71: =UOZ71 -> 15 | UPM71: =IF(UPK71*UPJ71=0,"",UPK71*UPJ71) ->  | UPN71: Pallet Charge | UPO71: 15 | UPR71: Pallet Charge | UPY71: =ROUNDUP(SUM(UPW45:UPW52),0) -> 0 | UPZ71: =UPO71 -> 15 | UQB71: =IF(UPZ71*UPY71=0,"",UPZ71*UPY71) ->  | UQC71: Pallet Charge | UQD71: 15 | UQG71: Pallet Charge | UQN71: =ROUNDUP(SUM(UQL45:UQL52),0) -> 0 | UQO71: =UQD71 -> 15 | UQQ71: =IF(UQO71*UQN71=0,"",UQO71*UQN71) ->  | UQR71: Pallet Charge | UQS71: 15 | UQV71: Pallet Charge | URC71: =ROUNDUP(SUM(URA45:URA52),0) -> 0 | URD71: =UQS71 -> 15 | URF71: =IF(URD71*URC71=0,"",URD71*URC71) ->  | URG71: Pallet Charge | URH71: 15 | URK71: Pallet Charge | URR71: =ROUNDUP(SUM(URP45:URP52),0) -> 0 | URS71: =URH71 -> 15 | URU71: =IF(URS71*URR71=0,"",URS71*URR71) ->  | URV71: Pallet Charge | URW71: 15 | URZ71: Pallet Charge | USG71: =ROUNDUP(SUM(USE45:USE52),0) -> 0 | USH71: =URW71 -> 15 | USJ71: =IF(USH71*USG71=0,"",USH71*USG71) ->  | USK71: Pallet Charge | USL71: 15 | USO71: Pallet Charge | USV71: =ROUNDUP(SUM(UST45:UST52),0) -> 0 | USW71: =USL71 -> 15 | USY71: =IF(USW71*USV71=0,"",USW71*USV71) ->  | USZ71: Pallet Charge | UTA71: 15 | UTD71: Pallet Charge | UTK71: =ROUNDUP(SUM(UTI45:UTI52),0) -> 0 | UTL71: =UTA71 -> 15 | UTN71: =IF(UTL71*UTK71=0,"",UTL71*UTK71) ->  | UTO71: Pallet Charge | UTP71: 15 | UTS71: Pallet Charge | UTZ71: =ROUNDUP(SUM(UTX45:UTX52),0) -> 0 | UUA71: =UTP71 -> 15 | UUC71: =IF(UUA71*UTZ71=0,"",UUA71*UTZ71) ->  | UUD71: Pallet Charge | UUE71: 15 | UUH71: Pallet Charge | UUO71: =ROUNDUP(SUM(UUM45:UUM52),0) -> 0 | UUP71: =UUE71 -> 15 | UUR71: =IF(UUP71*UUO71=0,"",UUP71*UUO71) ->  | UUS71: Pallet Charge | UUT71: 15 | UUW71: Pallet Charge | UVD71: =ROUNDUP(SUM(UVB45:UVB52),0) -> 0 | UVE71: =UUT71 -> 15 | UVG71: =IF(UVE71*UVD71=0,"",UVE71*UVD71) ->  | UVH71: Pallet Charge | UVI71: 15 | UVL71: Pallet Charge | UVS71: =ROUNDUP(SUM(UVQ45:UVQ52),0) -> 0 | UVT71: =UVI71 -> 15 | UVV71: =IF(UVT71*UVS71=0,"",UVT71*UVS71) ->  | UVW71: Pallet Charge | UVX71: 15 | UWA71: Pallet Charge | UWH71: =ROUNDUP(SUM(UWF45:UWF52),0) -> 0 | UWI71: =UVX71 -> 15 | UWK71: =IF(UWI71*UWH71=0,"",UWI71*UWH71) ->  | UWL71: Pallet Charge | UWM71: 15 | UWP71: Pallet Charge | UWW71: =ROUNDUP(SUM(UWU45:UWU52),0) -> 0 | UWX71: =UWM71 -> 15 | UWZ71: =IF(UWX71*UWW71=0,"",UWX71*UWW71) ->  | UXA71: Pallet Charge | UXB71: 15 | UXE71: Pallet Charge | UXL71: =ROUNDUP(SUM(UXJ45:UXJ52),0) -> 0 | UXM71: =UXB71 -> 15 | UXO71: =IF(UXM71*UXL71=0,"",UXM71*UXL71) ->  | UXP71: Pallet Charge | UXQ71: 15 | UXT71: Pallet Charge | UYA71: =ROUNDUP(SUM(UXY45:UXY52),0) -> 0 | UYB71: =UXQ71 -> 15 | UYD71: =IF(UYB71*UYA71=0,"",UYB71*UYA71) ->  | UYE71: Pallet Charge | UYF71: 15 | UYI71: Pallet Charge | UYP71: =ROUNDUP(SUM(UYN45:UYN52),0) -> 0 | UYQ71: =UYF71 -> 15 | UYS71: =IF(UYQ71*UYP71=0,"",UYQ71*UYP71) ->  | UYT71: Pallet Charge | UYU71: 15 | UYX71: Pallet Charge | UZE71: =ROUNDUP(SUM(UZC45:UZC52),0) -> 0 | UZF71: =UYU71 -> 15 | UZH71: =IF(UZF71*UZE71=0,"",UZF71*UZE71) ->  | UZI71: Pallet Charge | UZJ71: 15 | UZM71: Pallet Charge | UZT71: =ROUNDUP(SUM(UZR45:UZR52),0) -> 0 | UZU71: =UZJ71 -> 15 | UZW71: =IF(UZU71*UZT71=0,"",UZU71*UZT71) ->  | UZX71: Pallet Charge | UZY71: 15 | VAB71: Pallet Charge | VAI71: =ROUNDUP(SUM(VAG45:VAG52),0) -> 0 | VAJ71: =UZY71 -> 15 | VAL71: =IF(VAJ71*VAI71=0,"",VAJ71*VAI71) ->  | VAM71: Pallet Charge | VAN71: 15 | VAQ71: Pallet Charge | VAX71: =ROUNDUP(SUM(VAV45:VAV52),0) -> 0 | VAY71: =VAN71 -> 15 | VBA71: =IF(VAY71*VAX71=0,"",VAY71*VAX71) ->  | VBB71: Pallet Charge | VBC71: 15 | VBF71: Pallet Charge | VBM71: =ROUNDUP(SUM(VBK45:VBK52),0) -> 0 | VBN71: =VBC71 -> 15 | VBP71: =IF(VBN71*VBM71=0,"",VBN71*VBM71) ->  | VBQ71: Pallet Charge | VBR71: 15 | VBU71: Pallet Charge | VCB71: =ROUNDUP(SUM(VBZ45:VBZ52),0) -> 0 | VCC71: =VBR71 -> 15 | VCE71: =IF(VCC71*VCB71=0,"",VCC71*VCB71) ->  | VCF71: Pallet Charge | VCG71: 15 | VCJ71: Pallet Charge | VCQ71: =ROUNDUP(SUM(VCO45:VCO52),0) -> 0 | VCR71: =VCG71 -> 15 | VCT71: =IF(VCR71*VCQ71=0,"",VCR71*VCQ71) ->  | VCU71: Pallet Charge | VCV71: 15 | VCY71: Pallet Charge | VDF71: =ROUNDUP(SUM(VDD45:VDD52),0) -> 0 | VDG71: =VCV71 -> 15 | VDI71: =IF(VDG71*VDF71=0,"",VDG71*VDF71) ->  | VDJ71: Pallet Charge | VDK71: 15 | VDN71: Pallet Charge | VDU71: =ROUNDUP(SUM(VDS45:VDS52),0) -> 0 | VDV71: =VDK71 -> 15 | VDX71: =IF(VDV71*VDU71=0,"",VDV71*VDU71) ->  | VDY71: Pallet Charge | VDZ71: 15 | VEC71: Pallet Charge | VEJ71: =ROUNDUP(SUM(VEH45:VEH52),0) -> 0 | VEK71: =VDZ71 -> 15 | VEM71: =IF(VEK71*VEJ71=0,"",VEK71*VEJ71) ->  | VEN71: Pallet Charge | VEO71: 15 | VER71: Pallet Charge | VEY71: =ROUNDUP(SUM(VEW45:VEW52),0) -> 0 | VEZ71: =VEO71 -> 15 | VFB71: =IF(VEZ71*VEY71=0,"",VEZ71*VEY71) ->  | VFC71: Pallet Charge | VFD71: 15 | VFG71: Pallet Charge | VFN71: =ROUNDUP(SUM(VFL45:VFL52),0) -> 0 | VFO71: =VFD71 -> 15 | VFQ71: =IF(VFO71*VFN71=0,"",VFO71*VFN71) ->  | VFR71: Pallet Charge | VFS71: 15 | VFV71: Pallet Charge | VGC71: =ROUNDUP(SUM(VGA45:VGA52),0) -> 0 | VGD71: =VFS71 -> 15 | VGF71: =IF(VGD71*VGC71=0,"",VGD71*VGC71) ->  | VGG71: Pallet Charge | VGH71: 15 | VGK71: Pallet Charge | VGR71: =ROUNDUP(SUM(VGP45:VGP52),0) -> 0 | VGS71: =VGH71 -> 15 | VGU71: =IF(VGS71*VGR71=0,"",VGS71*VGR71) ->  | VGV71: Pallet Charge | VGW71: 15 | VGZ71: Pallet Charge | VHG71: =ROUNDUP(SUM(VHE45:VHE52),0) -> 0 | VHH71: =VGW71 -> 15 | VHJ71: =IF(VHH71*VHG71=0,"",VHH71*VHG71) ->  | VHK71: Pallet Charge | VHL71: 15 | VHO71: Pallet Charge | VHV71: =ROUNDUP(SUM(VHT45:VHT52),0) -> 0 | VHW71: =VHL71 -> 15 | VHY71: =IF(VHW71*VHV71=0,"",VHW71*VHV71) ->  | VHZ71: Pallet Charge | VIA71: 15 | VID71: Pallet Charge | VIK71: =ROUNDUP(SUM(VII45:VII52),0) -> 0 | VIL71: =VIA71 -> 15 | VIN71: =IF(VIL71*VIK71=0,"",VIL71*VIK71) ->  | VIO71: Pallet Charge | VIP71: 15 | VIS71: Pallet Charge | VIZ71: =ROUNDUP(SUM(VIX45:VIX52),0) -> 0 | VJA71: =VIP71 -> 15 | VJC71: =IF(VJA71*VIZ71=0,"",VJA71*VIZ71) ->  | VJD71: Pallet Charge | VJE71: 15 | VJH71: Pallet Charge | VJO71: =ROUNDUP(SUM(VJM45:VJM52),0) -> 0 | VJP71: =VJE71 -> 15 | VJR71: =IF(VJP71*VJO71=0,"",VJP71*VJO71) ->  | VJS71: Pallet Charge | VJT71: 15 | VJW71: Pallet Charge | VKD71: =ROUNDUP(SUM(VKB45:VKB52),0) -> 0 | VKE71: =VJT71 -> 15 | VKG71: =IF(VKE71*VKD71=0,"",VKE71*VKD71) ->  | VKH71: Pallet Charge | VKI71: 15 | VKL71: Pallet Charge | VKS71: =ROUNDUP(SUM(VKQ45:VKQ52),0) -> 0 | VKT71: =VKI71 -> 15 | VKV71: =IF(VKT71*VKS71=0,"",VKT71*VKS71) ->  | VKW71: Pallet Charge | VKX71: 15 | VLA71: Pallet Charge | VLH71: =ROUNDUP(SUM(VLF45:VLF52),0) -> 0 | VLI71: =VKX71 -> 15 | VLK71: =IF(VLI71*VLH71=0,"",VLI71*VLH71) ->  | VLL71: Pallet Charge | VLM71: 15 | VLP71: Pallet Charge | VLW71: =ROUNDUP(SUM(VLU45:VLU52),0) -> 0 | VLX71: =VLM71 -> 15 | VLZ71: =IF(VLX71*VLW71=0,"",VLX71*VLW71) ->  | VMA71: Pallet Charge | VMB71: 15 | VME71: Pallet Charge | VML71: =ROUNDUP(SUM(VMJ45:VMJ52),0) -> 0 | VMM71: =VMB71 -> 15 | VMO71: =IF(VMM71*VML71=0,"",VMM71*VML71) ->  | VMP71: Pallet Charge | VMQ71: 15 | VMT71: Pallet Charge | VNA71: =ROUNDUP(SUM(VMY45:VMY52),0) -> 0 | VNB71: =VMQ71 -> 15 | VND71: =IF(VNB71*VNA71=0,"",VNB71*VNA71) ->  | VNE71: Pallet Charge | VNF71: 15 | VNI71: Pallet Charge | VNP71: =ROUNDUP(SUM(VNN45:VNN52),0) -> 0 | VNQ71: =VNF71 -> 15 | VNS71: =IF(VNQ71*VNP71=0,"",VNQ71*VNP71) ->  | VNT71: Pallet Charge | VNU71: 15 | VNX71: Pallet Charge | VOE71: =ROUNDUP(SUM(VOC45:VOC52),0) -> 0 | VOF71: =VNU71 -> 15 | VOH71: =IF(VOF71*VOE71=0,"",VOF71*VOE71) ->  | VOI71: Pallet Charge | VOJ71: 15 | VOM71: Pallet Charge | VOT71: =ROUNDUP(SUM(VOR45:VOR52),0) -> 0 | VOU71: =VOJ71 -> 15 | VOW71: =IF(VOU71*VOT71=0,"",VOU71*VOT71) ->  | VOX71: Pallet Charge | VOY71: 15 | VPB71: Pallet Charge | VPI71: =ROUNDUP(SUM(VPG45:VPG52),0) -> 0 | VPJ71: =VOY71 -> 15 | VPL71: =IF(VPJ71*VPI71=0,"",VPJ71*VPI71) ->  | VPM71: Pallet Charge | VPN71: 15 | VPQ71: Pallet Charge | VPX71: =ROUNDUP(SUM(VPV45:VPV52),0) -> 0 | VPY71: =VPN71 -> 15 | VQA71: =IF(VPY71*VPX71=0,"",VPY71*VPX71) ->  | VQB71: Pallet Charge | VQC71: 15 | VQF71: Pallet Charge | VQM71: =ROUNDUP(SUM(VQK45:VQK52),0) -> 0 | VQN71: =VQC71 -> 15 | VQP71: =IF(VQN71*VQM71=0,"",VQN71*VQM71) ->  | VQQ71: Pallet Charge | VQR71: 15 | VQU71: Pallet Charge | VRB71: =ROUNDUP(SUM(VQZ45:VQZ52),0) -> 0 | VRC71: =VQR71 -> 15 | VRE71: =IF(VRC71*VRB71=0,"",VRC71*VRB71) ->  | VRF71: Pallet Charge | VRG71: 15 | VRJ71: Pallet Charge | VRQ71: =ROUNDUP(SUM(VRO45:VRO52),0) -> 0 | VRR71: =VRG71 -> 15 | VRT71: =IF(VRR71*VRQ71=0,"",VRR71*VRQ71) ->  | VRU71: Pallet Charge | VRV71: 15 | VRY71: Pallet Charge | VSF71: =ROUNDUP(SUM(VSD45:VSD52),0) -> 0 | VSG71: =VRV71 -> 15 | VSI71: =IF(VSG71*VSF71=0,"",VSG71*VSF71) ->  | VSJ71: Pallet Charge | VSK71: 15 | VSN71: Pallet Charge | VSU71: =ROUNDUP(SUM(VSS45:VSS52),0) -> 0 | VSV71: =VSK71 -> 15 | VSX71: =IF(VSV71*VSU71=0,"",VSV71*VSU71) ->  | VSY71: Pallet Charge | VSZ71: 15 | VTC71: Pallet Charge | VTJ71: =ROUNDUP(SUM(VTH45:VTH52),0) -> 0 | VTK71: =VSZ71 -> 15 | VTM71: =IF(VTK71*VTJ71=0,"",VTK71*VTJ71) ->  | VTN71: Pallet Charge | VTO71: 15 | VTR71: Pallet Charge | VTY71: =ROUNDUP(SUM(VTW45:VTW52),0) -> 0 | VTZ71: =VTO71 -> 15 | VUB71: =IF(VTZ71*VTY71=0,"",VTZ71*VTY71) ->  | VUC71: Pallet Charge | VUD71: 15 | VUG71: Pallet Charge | VUN71: =ROUNDUP(SUM(VUL45:VUL52),0) -> 0 | VUO71: =VUD71 -> 15 | VUQ71: =IF(VUO71*VUN71=0,"",VUO71*VUN71) ->  | VUR71: Pallet Charge | VUS71: 15 | VUV71: Pallet Charge | VVC71: =ROUNDUP(SUM(VVA45:VVA52),0) -> 0 | VVD71: =VUS71 -> 15 | VVF71: =IF(VVD71*VVC71=0,"",VVD71*VVC71) ->  | VVG71: Pallet Charge | VVH71: 15 | VVK71: Pallet Charge | VVR71: =ROUNDUP(SUM(VVP45:VVP52),0) -> 0 | VVS71: =VVH71 -> 15 | VVU71: =IF(VVS71*VVR71=0,"",VVS71*VVR71) ->  | VVV71: Pallet Charge | VVW71: 15 | VVZ71: Pallet Charge | VWG71: =ROUNDUP(SUM(VWE45:VWE52),0) -> 0 | VWH71: =VVW71 -> 15 | VWJ71: =IF(VWH71*VWG71=0,"",VWH71*VWG71) ->  | VWK71: Pallet Charge | VWL71: 15 | VWO71: Pallet Charge | VWV71: =ROUNDUP(SUM(VWT45:VWT52),0) -> 0 | VWW71: =VWL71 -> 15 | VWY71: =IF(VWW71*VWV71=0,"",VWW71*VWV71) ->  | VWZ71: Pallet Charge | VXA71: 15 | VXD71: Pallet Charge | VXK71: =ROUNDUP(SUM(VXI45:VXI52),0) -> 0 | VXL71: =VXA71 -> 15 | VXN71: =IF(VXL71*VXK71=0,"",VXL71*VXK71) ->  | VXO71: Pallet Charge | VXP71: 15 | VXS71: Pallet Charge | VXZ71: =ROUNDUP(SUM(VXX45:VXX52),0) -> 0 | VYA71: =VXP71 -> 15 | VYC71: =IF(VYA71*VXZ71=0,"",VYA71*VXZ71) ->  | VYD71: Pallet Charge | VYE71: 15 | VYH71: Pallet Charge | VYO71: =ROUNDUP(SUM(VYM45:VYM52),0) -> 0 | VYP71: =VYE71 -> 15 | VYR71: =IF(VYP71*VYO71=0,"",VYP71*VYO71) ->  | VYS71: Pallet Charge | VYT71: 15 | VYW71: Pallet Charge | VZD71: =ROUNDUP(SUM(VZB45:VZB52),0) -> 0 | VZE71: =VYT71 -> 15 | VZG71: =IF(VZE71*VZD71=0,"",VZE71*VZD71) ->  | VZH71: Pallet Charge | VZI71: 15 | VZL71: Pallet Charge | VZS71: =ROUNDUP(SUM(VZQ45:VZQ52),0) -> 0 | VZT71: =VZI71 -> 15 | VZV71: =IF(VZT71*VZS71=0,"",VZT71*VZS71) ->  | VZW71: Pallet Charge | VZX71: 15 | WAA71: Pallet Charge | WAH71: =ROUNDUP(SUM(WAF45:WAF52),0) -> 0 | WAI71: =VZX71 -> 15 | WAK71: =IF(WAI71*WAH71=0,"",WAI71*WAH71) ->  | WAL71: Pallet Charge | WAM71: 15 | WAP71: Pallet Charge | WAW71: =ROUNDUP(SUM(WAU45:WAU52),0) -> 0 | WAX71: =WAM71 -> 15 | WAZ71: =IF(WAX71*WAW71=0,"",WAX71*WAW71) ->  | WBA71: Pallet Charge | WBB71: 15 | WBE71: Pallet Charge | WBL71: =ROUNDUP(SUM(WBJ45:WBJ52),0) -> 0 | WBM71: =WBB71 -> 15 | WBO71: =IF(WBM71*WBL71=0,"",WBM71*WBL71) ->  | WBP71: Pallet Charge | WBQ71: 15 | WBT71: Pallet Charge | WCA71: =ROUNDUP(SUM(WBY45:WBY52),0) -> 0 | WCB71: =WBQ71 -> 15 | WCD71: =IF(WCB71*WCA71=0,"",WCB71*WCA71) ->  | WCE71: Pallet Charge | WCF71: 15 | WCI71: Pallet Charge | WCP71: =ROUNDUP(SUM(WCN45:WCN52),0) -> 0 | WCQ71: =WCF71 -> 15 | WCS71: =IF(WCQ71*WCP71=0,"",WCQ71*WCP71) ->  | WCT71: Pallet Charge | WCU71: 15 | WCX71: Pallet Charge | WDE71: =ROUNDUP(SUM(WDC45:WDC52),0) -> 0 | WDF71: =WCU71 -> 15 | WDH71: =IF(WDF71*WDE71=0,"",WDF71*WDE71) ->  | WDI71: Pallet Charge | WDJ71: 15 | WDM71: Pallet Charge | WDT71: =ROUNDUP(SUM(WDR45:WDR52),0) -> 0 | WDU71: =WDJ71 -> 15 | WDW71: =IF(WDU71*WDT71=0,"",WDU71*WDT71) ->  | WDX71: Pallet Charge | WDY71: 15 | WEB71: Pallet Charge | WEI71: =ROUNDUP(SUM(WEG45:WEG52),0) -> 0 | WEJ71: =WDY71 -> 15 | WEL71: =IF(WEJ71*WEI71=0,"",WEJ71*WEI71) ->  | WEM71: Pallet Charge | WEN71: 15 | WEQ71: Pallet Charge | WEX71: =ROUNDUP(SUM(WEV45:WEV52),0) -> 0 | WEY71: =WEN71 -> 15 | WFA71: =IF(WEY71*WEX71=0,"",WEY71*WEX71) ->  | WFB71: Pallet Charge | WFC71: 15 | WFF71: Pallet Charge | WFM71: =ROUNDUP(SUM(WFK45:WFK52),0) -> 0 | WFN71: =WFC71 -> 15 | WFP71: =IF(WFN71*WFM71=0,"",WFN71*WFM71) ->  | WFQ71: Pallet Charge | WFR71: 15 | WFU71: Pallet Charge | WGB71: =ROUNDUP(SUM(WFZ45:WFZ52),0) -> 0 | WGC71: =WFR71 -> 15 | WGE71: =IF(WGC71*WGB71=0,"",WGC71*WGB71) ->  | WGF71: Pallet Charge | WGG71: 15 | WGJ71: Pallet Charge | WGQ71: =ROUNDUP(SUM(WGO45:WGO52),0) -> 0 | WGR71: =WGG71 -> 15 | WGT71: =IF(WGR71*WGQ71=0,"",WGR71*WGQ71) ->  | WGU71: Pallet Charge | WGV71: 15 | WGY71: Pallet Charge | WHF71: =ROUNDUP(SUM(WHD45:WHD52),0) -> 0 | WHG71: =WGV71 -> 15 | WHI71: =IF(WHG71*WHF71=0,"",WHG71*WHF71) ->  | WHJ71: Pallet Charge | WHK71: 15 | WHN71: Pallet Charge | WHU71: =ROUNDUP(SUM(WHS45:WHS52),0) -> 0 | WHV71: =WHK71 -> 15 | WHX71: =IF(WHV71*WHU71=0,"",WHV71*WHU71) ->  | WHY71: Pallet Charge | WHZ71: 15 | WIC71: Pallet Charge | WIJ71: =ROUNDUP(SUM(WIH45:WIH52),0) -> 0 | WIK71: =WHZ71 -> 15 | WIM71: =IF(WIK71*WIJ71=0,"",WIK71*WIJ71) ->  | WIN71: Pallet Charge | WIO71: 15 | WIR71: Pallet Charge | WIY71: =ROUNDUP(SUM(WIW45:WIW52),0) -> 0 | WIZ71: =WIO71 -> 15 | WJB71: =IF(WIZ71*WIY71=0,"",WIZ71*WIY71) ->  | WJC71: Pallet Charge | WJD71: 15 | WJG71: Pallet Charge | WJN71: =ROUNDUP(SUM(WJL45:WJL52),0) -> 0 | WJO71: =WJD71 -> 15 | WJQ71: =IF(WJO71*WJN71=0,"",WJO71*WJN71) ->  | WJR71: Pallet Charge | WJS71: 15 | WJV71: Pallet Charge | WKC71: =ROUNDUP(SUM(WKA45:WKA52),0) -> 0 | WKD71: =WJS71 -> 15 | WKF71: =IF(WKD71*WKC71=0,"",WKD71*WKC71) ->  | WKG71: Pallet Charge | WKH71: 15 | WKK71: Pallet Charge | WKR71: =ROUNDUP(SUM(WKP45:WKP52),0) -> 0 | WKS71: =WKH71 -> 15 | WKU71: =IF(WKS71*WKR71=0,"",WKS71*WKR71) ->  | WKV71: Pallet Charge | WKW71: 15 | WKZ71: Pallet Charge | WLG71: =ROUNDUP(SUM(WLE45:WLE52),0) -> 0 | WLH71: =WKW71 -> 15 | WLJ71: =IF(WLH71*WLG71=0,"",WLH71*WLG71) ->  | WLK71: Pallet Charge | WLL71: 15 | WLO71: Pallet Charge | WLV71: =ROUNDUP(SUM(WLT45:WLT52),0) -> 0 | WLW71: =WLL71 -> 15 | WLY71: =IF(WLW71*WLV71=0,"",WLW71*WLV71) ->  | WLZ71: Pallet Charge | WMA71: 15 | WMD71: Pallet Charge | WMK71: =ROUNDUP(SUM(WMI45:WMI52),0) -> 0 | WML71: =WMA71 -> 15 | WMN71: =IF(WML71*WMK71=0,"",WML71*WMK71) ->  | WMO71: Pallet Charge | WMP71: 15 | WMS71: Pallet Charge | WMZ71: =ROUNDUP(SUM(WMX45:WMX52),0) -> 0 | WNA71: =WMP71 -> 15 | WNC71: =IF(WNA71*WMZ71=0,"",WNA71*WMZ71) ->  | WND71: Pallet Charge | WNE71: 15 | WNH71: Pallet Charge | WNO71: =ROUNDUP(SUM(WNM45:WNM52),0) -> 0 | WNP71: =WNE71 -> 15 | WNR71: =IF(WNP71*WNO71=0,"",WNP71*WNO71) ->  | WNS71: Pallet Charge | WNT71: 15 | WNW71: Pallet Charge | WOD71: =ROUNDUP(SUM(WOB45:WOB52),0) -> 0 | WOE71: =WNT71 -> 15 | WOG71: =IF(WOE71*WOD71=0,"",WOE71*WOD71) ->  | WOH71: Pallet Charge | WOI71: 15 | WOL71: Pallet Charge | WOS71: =ROUNDUP(SUM(WOQ45:WOQ52),0) -> 0 | WOT71: =WOI71 -> 15 | WOV71: =IF(WOT71*WOS71=0,"",WOT71*WOS71) ->  | WOW71: Pallet Charge | WOX71: 15 | WPA71: Pallet Charge | WPH71: =ROUNDUP(SUM(WPF45:WPF52),0) -> 0 | WPI71: =WOX71 -> 15 | WPK71: =IF(WPI71*WPH71=0,"",WPI71*WPH71) ->  | WPL71: Pallet Charge | WPM71: 15 | WPP71: Pallet Charge | WPW71: =ROUNDUP(SUM(WPU45:WPU52),0) -> 0 | WPX71: =WPM71 -> 15 | WPZ71: =IF(WPX71*WPW71=0,"",WPX71*WPW71) ->  | WQA71: Pallet Charge | WQB71: 15 | WQE71: Pallet Charge | WQL71: =ROUNDUP(SUM(WQJ45:WQJ52),0) -> 0 | WQM71: =WQB71 -> 15 | WQO71: =IF(WQM71*WQL71=0,"",WQM71*WQL71) ->  | WQP71: Pallet Charge | WQQ71: 15 | WQT71: Pallet Charge | WRA71: =ROUNDUP(SUM(WQY45:WQY52),0) -> 0 | WRB71: =WQQ71 -> 15 | WRD71: =IF(WRB71*WRA71=0,"",WRB71*WRA71) ->  | WRE71: Pallet Charge | WRF71: 15 | WRI71: Pallet Charge | WRP71: =ROUNDUP(SUM(WRN45:WRN52),0) -> 0 | WRQ71: =WRF71 -> 15 | WRS71: =IF(WRQ71*WRP71=0,"",WRQ71*WRP71) ->  | WRT71: Pallet Charge | WRU71: 15 | WRX71: Pallet Charge | WSE71: =ROUNDUP(SUM(WSC45:WSC52),0) -> 0 | WSF71: =WRU71 -> 15 | WSH71: =IF(WSF71*WSE71=0,"",WSF71*WSE71) ->  | WSI71: Pallet Charge | WSJ71: 15 | WSM71: Pallet Charge | WST71: =ROUNDUP(SUM(WSR45:WSR52),0) -> 0 | WSU71: =WSJ71 -> 15 | WSW71: =IF(WSU71*WST71=0,"",WSU71*WST71) ->  | WSX71: Pallet Charge | WSY71: 15 | WTB71: Pallet Charge | WTI71: =ROUNDUP(SUM(WTG45:WTG52),0) -> 0 | WTJ71: =WSY71 -> 15 | WTL71: =IF(WTJ71*WTI71=0,"",WTJ71*WTI71) ->  | WTM71: Pallet Charge | WTN71: 15 | WTQ71: Pallet Charge | WTX71: =ROUNDUP(SUM(WTV45:WTV52),0) -> 0 | WTY71: =WTN71 -> 15 | WUA71: =IF(WTY71*WTX71=0,"",WTY71*WTX71) ->  | WUB71: Pallet Charge | WUC71: 15 | WUF71: Pallet Charge | WUM71: =ROUNDUP(SUM(WUK45:WUK52),0) -> 0 | WUN71: =WUC71 -> 15 | WUP71: =IF(WUN71*WUM71=0,"",WUN71*WUM71) ->  | WUQ71: Pallet Charge | WUR71: 15 | WUU71: Pallet Charge | WVB71: =ROUNDUP(SUM(WUZ45:WUZ52),0) -> 0 | WVC71: =WUR71 -> 15 | WVE71: =IF(WVC71*WVB71=0,"",WVC71*WVB71) ->  | WVF71: Pallet Charge | WVG71: 15 | WVJ71: Pallet Charge | WVQ71: =ROUNDUP(SUM(WVO45:WVO52),0) -> 0 | WVR71: =WVG71 -> 15 | WVT71: =IF(WVR71*WVQ71=0,"",WVR71*WVQ71) ->  | WVU71: Pallet Charge | WVV71: 15 | WVY71: Pallet Charge | WWF71: =ROUNDUP(SUM(WWD45:WWD52),0) -> 0 | WWG71: =WVV71 -> 15 | WWI71: =IF(WWG71*WWF71=0,"",WWG71*WWF71) ->  | WWJ71: Pallet Charge | WWK71: 15 | WWN71: Pallet Charge | WWU71: =ROUNDUP(SUM(WWS45:WWS52),0) -> 0 | WWV71: =WWK71 -> 15 | WWX71: =IF(WWV71*WWU71=0,"",WWV71*WWU71) ->  | WWY71: Pallet Charge | WWZ71: 15 | WXC71: Pallet Charge | WXJ71: =ROUNDUP(SUM(WXH45:WXH52),0) -> 0 | WXK71: =WWZ71 -> 15 | WXM71: =IF(WXK71*WXJ71=0,"",WXK71*WXJ71) ->  | WXN71: Pallet Charge | WXO71: 15 | WXR71: Pallet Charge | WXY71: =ROUNDUP(SUM(WXW45:WXW52),0) -> 0 | WXZ71: =WXO71 -> 15 | WYB71: =IF(WXZ71*WXY71=0,"",WXZ71*WXY71) ->  | WYC71: Pallet Charge | WYD71: 15 | WYG71: Pallet Charge | WYN71: =ROUNDUP(SUM(WYL45:WYL52),0) -> 0 | WYO71: =WYD71 -> 15 | WYQ71: =IF(WYO71*WYN71=0,"",WYO71*WYN71) ->  | WYR71: Pallet Charge | WYS71: 15 | WYV71: Pallet Charge | WZC71: =ROUNDUP(SUM(WZA45:WZA52),0) -> 0 | WZD71: =WYS71 -> 15 | WZF71: =IF(WZD71*WZC71=0,"",WZD71*WZC71) ->  | WZG71: Pallet Charge | WZH71: 15 | WZK71: Pallet Charge | WZR71: =ROUNDUP(SUM(WZP45:WZP52),0) -> 0 | WZS71: =WZH71 -> 15 | WZU71: =IF(WZS71*WZR71=0,"",WZS71*WZR71) ->  | WZV71: Pallet Charge | WZW71: 15 | WZZ71: Pallet Charge | XAG71: =ROUNDUP(SUM(XAE45:XAE52),0) -> 0 | XAH71: =WZW71 -> 15 | XAJ71: =IF(XAH71*XAG71=0,"",XAH71*XAG71) ->  | XAK71: Pallet Charge | XAL71: 15 | XAO71: Pallet Charge | XAV71: =ROUNDUP(SUM(XAT45:XAT52),0) -> 0 | XAW71: =XAL71 -> 15 | XAY71: =IF(XAW71*XAV71=0,"",XAW71*XAV71) ->  | XAZ71: Pallet Charge | XBA71: 15 | XBD71: Pallet Charge | XBK71: =ROUNDUP(SUM(XBI45:XBI52),0) -> 0 | XBL71: =XBA71 -> 15 | XBN71: =IF(XBL71*XBK71=0,"",XBL71*XBK71) ->  | XBO71: Pallet Charge | XBP71: 15 | XBS71: Pallet Charge | XBZ71: =ROUNDUP(SUM(XBX45:XBX52),0) -> 0 | XCA71: =XBP71 -> 15 | XCC71: =IF(XCA71*XBZ71=0,"",XCA71*XBZ71) ->  | XCD71: Pallet Charge | XCE71: 15 | XCH71: Pallet Charge | XCO71: =ROUNDUP(SUM(XCM45:XCM52),0) -> 0 | XCP71: =XCE71 -> 15 | XCR71: =IF(XCP71*XCO71=0,"",XCP71*XCO71) ->  | XCS71: Pallet Charge | XCT71: 15 | XCW71: Pallet Charge | XDD71: =ROUNDUP(SUM(XDB45:XDB52),0) -> 0 | XDE71: =XCT71 -> 15 | XDG71: =IF(XDE71*XDD71=0,"",XDE71*XDD71) ->  | XDH71: Pallet Charge | XDI71: 15 | XDL71: Pallet Charge | XDS71: =ROUNDUP(SUM(XDQ45:XDQ52),0) -> 0 | XDT71: =XDI71 -> 15 | XDV71: =IF(XDT71*XDS71=0,"",XDT71*XDS71) ->  | XDW71: Pallet Charge | XDX71: 15 | XEA71: Pallet Charge | XEH71: =ROUNDUP(SUM(XEF45:XEF52),0) -> 0 | XEI71: =XDX71 -> 15 | XEK71: =IF(XEI71*XEH71=0,"",XEI71*XEH71) ->  | XEL71: Pallet Charge | XEM71: 15 | XEP71: Pallet Charge | XEW71: =ROUNDUP(SUM(XEU45:XEU52),0) -> 0 | XEX71: =XEM71 -> 15 | XEZ71: =IF(XEX71*XEW71=0,"",XEX71*XEW71) ->  | XFA71: Pallet Charge | XFB71: 15
A72: Pallet Shrink Wrap Fee | B72: 2 | E72: Pallet Shrink Wrap Fee | L72: =L71 -> 34 | M72: =B72 -> 2 | N72: =IF(M72*L72=0,"",M72*L72) -> 68 | Q72: Quick Estimate | U72: =U69*U71 -> 8497.5
AD73: =AD71+$AD$4 -> 
D74: TOTAL | N74: =IF(SUM(N71:N72)>0,N63+N69+N71+N72,N63+N69) -> 12318.4 | Q74: Gross Block | U74: =U69/0.89 -> 2546.067416 | X74: 30 | Y74: =ROUND($X74*$Y$4,2) -> 20 | AD74: =#REF!+$AD$4 -> 
Q75: Less Egress | U75: 0.15 | X75: 31 | Y75: =ROUND($X75*$Y$4,2) -> 20.67 | AB75: 9.2 | AC75: 10 | AD75: =AD74+$AD$4 -> 
X76: 32 | Y76: =ROUND($X76*$Y$4,2) -> 21.33 | AB76: 9.8 | AC76: 11 | AD76: =AD75+$AD$4 -> 
A77: Pallet Refund | B77: 11 | D77: Pallet Refund (if returned back to origin) | L77: =L71 -> 34 | M77: =-B77 -> -11 | N77: =L77*M77 -> -374 | Q77: Net Block | U77: =U74*(1-U75) -> 2164.157303
D79: Estimate Prepared By: | AD79: =AD76+$AD$4 -> 
AD81: =AD79+$AD$4 -> 
AD82: =AD81+$AD$4 -> 
AD89: =AD88+$AD$4 -> 
AD90: =AD89+$AD$4 -> 
AD91: =AD90+$AD$4 -> 
